Body Name,Body,Service Area Catergorisation,Service Division Catergorisation,Responsible Unit,Expenses Type,Detailed Expenses Type,Expenses Code,Date,Transaction Number,Amount,Capital / Revenue,Supplier Name,Supplier ID
North East Lincolnshire Council,http://statistics.data.gov.uk/id/local-authority/00FC),Gov  Dem Community Engagement,"Gov, Dem & Comm Engagement",The Knoll - Armed Forces Hub,Cap Land/Build-Build Enh Wrk,Cap Land/Build-Build Enh Wrk,YA102,7/31/2019,579927,2127.02,CAPITAL,JOINT SERVICES MAJOR EVENTS TEAM N E LINCS,109747
North East Lincolnshire Council,http://statistics.data.gov.uk/id/local-authority/00FC),Gov  Dem Community Engagement,"Gov, Dem & Comm Engagement",The Knoll - Armed Forces Hub,Cap Land/Build-Build Enh Wrk,Cap Land/Build-Build Enh Wrk,YA102,7/31/2019,579927,1344,CAPITAL,JOINT SERVICES MAJOR EVENTS TEAM N E LINCS,109747
North East Lincolnshire Council,http://statistics.data.gov.uk/id/local-authority/00FC),Gov  Dem Community Engagement,"Gov, Dem & Comm Engagement",The Knoll - Armed Forces Hub,Cap Land/Build-Build Enh Wrk,Cap Land/Build-Build Enh Wrk,YA102,7/31/2019,579927,1944.08,CAPITAL,JOINT SERVICES MAJOR EVENTS TEAM N E LINCS,109747
North East Lincolnshire Council,http://statistics.data.gov.uk/id/local-authority/00FC),Resources And Governance,Resources,Backlog Maintenance,Cap Land/Build-Build Enh Wrk,Cap Land/Build-Build Enh Wrk,YA102,7/9/2019,575831,8545,CAPITAL,ETON-LINCS LIMITED,101510
North East Lincolnshire Council,http://statistics.data.gov.uk/id/local-authority/00FC),Resources And Governance,Resources,Backlog Maintenance,Cap Land/Build-Prof Fees,Cap Land/Build-Prof Fees,YA103,7/31/2019,579919,2500,CAPITAL,ENGIE SERVICES LTD,133267
North East Lincolnshire Council,http://statistics.data.gov.uk/id/local-authority/00FC),Resources And Governance,Resources,Backlog Maintenance,Cap Land/Build-Build Enh Wrk,Cap Land/Build-Build Enh Wrk,YA102,7/30/2019,579253,580,CAPITAL,KES BUILDING MAINTENANCE LIMITED,100786
North East Lincolnshire Council,http://statistics.data.gov.uk/id/local-authority/00FC),Resources And Governance,Resources,Backlog Maintenance,Cap Land/Build-Build Enh Wrk,Cap Land/Build-Build Enh Wrk,YA102,7/30/2019,579522,1708.8,CAPITAL,MIDDLETONS GLASS LTD,101748
North East Lincolnshire Council,http://statistics.data.gov.uk/id/local-authority/00FC),Resources And Governance,Resources,Backlog Maintenance,Cap Land/Build-Build Enh Wrk,Cap Land/Build-Build Enh Wrk,YA102,7/9/2019,575845,3660,CAPITAL,ETON-LINCS LIMITED,101510
North East Lincolnshire Council,http://statistics.data.gov.uk/id/local-authority/00FC),Resources And Governance,Resources,Backlog Maintenance,Cap Land/Build-Build Enh Wrk,Cap Land/Build-Build Enh Wrk,YA102,7/30/2019,579394,2070,CAPITAL,ENGIE SERVICES LTD,133267
North East Lincolnshire Council,http://statistics.data.gov.uk/id/local-authority/00FC),Resources And Governance,Resources,Backlog Maintenance,Cap Land/Build-Build Enh Wrk,Cap Land/Build-Build Enh Wrk,YA102,7/22/2019,578273,365,CAPITAL,ENGIE SERVICES LTD,133267
North East Lincolnshire Council,http://statistics.data.gov.uk/id/local-authority/00FC),Resources And Governance,Resources,Backlog Maintenance,Cap Land/Build-Prof Fees,Cap Land/Build-Prof Fees,YA103,7/4/2019,575547,1955.48,CAPITAL,ENGIE SERVICES LTD,133267
North East Lincolnshire Council,http://statistics.data.gov.uk/id/local-authority/00FC),Resources And Governance,Resources,Backlog Maintenance,Cap Land/Build-Prof Fees,Cap Land/Build-Prof Fees,YA103,7/4/2019,575548,3817.34,CAPITAL,ENGIE SERVICES LTD,133267
North East Lincolnshire Council,http://statistics.data.gov.uk/id/local-authority/00FC),Resources And Governance,Resources,Backlog Maintenance,Cap Land/Build-Build Enh Wrk,Cap Land/Build-Build Enh Wrk,YA102,7/22/2019,577396,3720,CAPITAL,UNIBUILD BUILDING CONTRACTORS LTD,101469
North East Lincolnshire Council,http://statistics.data.gov.uk/id/local-authority/00FC),Resources And Governance,Resources,Backlog Maintenance,Cap Land/Build-Build Enh Wrk,Cap Land/Build-Build Enh Wrk,YA102,7/2/2019,574900,12685.79,CAPITAL,STAGE ELECTRICS PARTNERSHIP,142173
North East Lincolnshire Council,http://statistics.data.gov.uk/id/local-authority/00FC),Resources And Governance,Resources,Backlog Maintenance,Cap Land/Build-Build Enh Wrk,Cap Land/Build-Build Enh Wrk,YA102,7/17/2019,577779,1685.07,CAPITAL,ENGIE SERVICES LTD,133267
North East Lincolnshire Council,http://statistics.data.gov.uk/id/local-authority/00FC),Resources And Governance,Resources,Backlog Maintenance,Cap Land/Build-Build Enh Wrk,Cap Land/Build-Build Enh Wrk,YA102,7/31/2019,579920,490.45,CAPITAL,ENGIE SERVICES LTD,133267
North East Lincolnshire Council,http://statistics.data.gov.uk/id/local-authority/00FC),Resources And Governance,Resources,Backlog Maintenance,Cap Land/Build-Prof Fees,Cap Land/Build-Prof Fees,YA103,7/31/2019,579525,15493.1,CAPITAL,ENGIE SERVICES LTD,133267
North East Lincolnshire Council,http://statistics.data.gov.uk/id/local-authority/00FC),Resources And Governance,Resources,Heritage Assets At Risk,Cap Land/Build-Build Enh Wrk,Cap Land/Build-Build Enh Wrk,YA102,7/9/2019,575861,18273.22,CAPITAL,SHEPLEY ENGINEERS LIMITED,143173
North East Lincolnshire Council,http://statistics.data.gov.uk/id/local-authority/00FC),Resources And Governance,Resources,Heritage Assets At Risk,Cap Land/Build-Prof Fees,Cap Land/Build-Prof Fees,YA103,7/10/2019,576560,3153.47,CAPITAL,ENGIE SERVICES LTD,133267
North East Lincolnshire Council,http://statistics.data.gov.uk/id/local-authority/00FC),Resources And Governance,Resources,Heritage Assets At Risk,Cap Land/Build-Prof Fees,Cap Land/Build-Prof Fees,YA103,7/31/2019,579921,975.23,CAPITAL,ENGIE SERVICES LTD,133267
North East Lincolnshire Council,http://statistics.data.gov.uk/id/local-authority/00FC),Resources And Governance,Resources,Heritage Assets At Risk,Cap Land/Build-Prof Fees,Cap Land/Build-Prof Fees,YA103,7/11/2019,576570,2850.13,CAPITAL,ENGIE SERVICES LTD,133267
North East Lincolnshire Council,http://statistics.data.gov.uk/id/local-authority/00FC),Resources And Governance,Resources,Town Deal Investment,Cap Land/Build-Purchase,Cap Land/Build-Purchase,YA101,7/2/2019,575066,2567,CAPITAL,HMRC SHIPLEY,143831
North East Lincolnshire Council,http://statistics.data.gov.uk/id/local-authority/00FC),Resources And Governance,Shared Services,Ict Refresh,Cap Land/Build-Build Enh Wrk,Cap Land/Build-Build Enh Wrk,YA102,7/10/2019,574100,1572.13,CAPITAL,PROFESSIONAL TELECOM INSTALLATIONS LTD,143057
North East Lincolnshire Council,http://statistics.data.gov.uk/id/local-authority/00FC),Resources And Governance,Shared Services,System Investment,Cap Intangible Assets,Cap Intangible Assets,YH101,7/16/2019,575463,9944,CAPITAL,ADVANCED BUSINESS SOLUTIONS,101614
North East Lincolnshire Council,http://statistics.data.gov.uk/id/local-authority/00FC),Environment Economy And Growth,Environment,Enhancement Bereavement Serv,Cap Infrastr-Build Enh Wrk,Cap Infrastr-Build Enh Wrk,YC102,7/30/2019,579395,621.8,CAPITAL,ENGIE SERVICES LTD,133267
North East Lincolnshire Council,http://statistics.data.gov.uk/id/local-authority/00FC),Environment Economy And Growth,Environment,Enhancement Bereavement Serv,Cap Infrastr-Build Enh Wrk,Cap Infrastr-Build Enh Wrk,YC102,7/9/2019,575698,291.36,CAPITAL,HUMBERSIDE MATERIALS LABORATORY LTD,122103
North East Lincolnshire Council,http://statistics.data.gov.uk/id/local-authority/00FC),Environment Economy And Growth,Economy & Growth,Local Transport Plan Schemes,Cap Infrastr-Build Enh Wrk,Cap Infrastr-Build Enh Wrk,YC102,7/8/2019,575194,3000,CAPITAL,ENGIE SERVICES LTD,133267
North East Lincolnshire Council,http://statistics.data.gov.uk/id/local-authority/00FC),Environment Economy And Growth,Economy & Growth,Local Transport Plan Schemes,Cap Infrastr-Build Enh Wrk,Cap Infrastr-Build Enh Wrk,YC102,7/8/2019,575191,900,CAPITAL,ENGIE SERVICES LTD,133267
North East Lincolnshire Council,http://statistics.data.gov.uk/id/local-authority/00FC),Environment Economy And Growth,Economy & Growth,Local Transport Plan Schemes,Cap Infrastr-Build Enh Wrk,Cap Infrastr-Build Enh Wrk,YC102,7/8/2019,575094,1000,CAPITAL,ENGIE SERVICES LTD,133267
North East Lincolnshire Council,http://statistics.data.gov.uk/id/local-authority/00FC),Environment Economy And Growth,Economy & Growth,Local Transport Plan Schemes,Cap Infrastr-Build Enh Wrk,Cap Infrastr-Build Enh Wrk,YC102,7/8/2019,575095,600,CAPITAL,ENGIE SERVICES LTD,133267
North East Lincolnshire Council,http://statistics.data.gov.uk/id/local-authority/00FC),Environment Economy And Growth,Economy & Growth,Local Transport Plan Schemes,Cap Infrastr-Build Enh Wrk,Cap Infrastr-Build Enh Wrk,YC102,7/8/2019,575960,275,CAPITAL,JAPANESE KNOTWEED SOLUTIONS LTD,127717
North East Lincolnshire Council,http://statistics.data.gov.uk/id/local-authority/00FC),Environment Economy And Growth,Economy & Growth,Local Transport Plan Schemes,Cap Infrastr-Build Enh Wrk,Cap Infrastr-Build Enh Wrk,YC102,7/2/2019,561305,2514.6,CAPITAL,ENGIE SERVICES LTD,133267
North East Lincolnshire Council,http://statistics.data.gov.uk/id/local-authority/00FC),Environment Economy And Growth,Economy & Growth,Local Transport Plan Schemes,Cap Infrastr-Build Enh Wrk,Cap Infrastr-Build Enh Wrk,YC102,7/8/2019,575199,800,CAPITAL,ENGIE SERVICES LTD,133267
North East Lincolnshire Council,http://statistics.data.gov.uk/id/local-authority/00FC),Environment Economy And Growth,Economy & Growth,Local Transport Plan Schemes,Cap Infrastr-Build Enh Wrk,Cap Infrastr-Build Enh Wrk,YC102,7/24/2019,578318,2200,CAPITAL,ONEWAY TM LIMITED,128602
North East Lincolnshire Council,http://statistics.data.gov.uk/id/local-authority/00FC),Environment Economy And Growth,Economy & Growth,Local Transport Plan Schemes,Cap Infrastr-Build Enh Wrk,Cap Infrastr-Build Enh Wrk,YC102,7/8/2019,566776,2644,CAPITAL,MASON CLARK ASSOCIATES,100793
North East Lincolnshire Council,http://statistics.data.gov.uk/id/local-authority/00FC),Environment Economy And Growth,Economy & Growth,Local Transport Plan Schemes,Cap Infrastr-Build Enh Wrk,Cap Infrastr-Build Enh Wrk,YC102,7/9/2019,576023,3450,CAPITAL,BASEMAP LTD,143677
North East Lincolnshire Council,http://statistics.data.gov.uk/id/local-authority/00FC),Environment Economy And Growth,Economy & Growth,Local Transport Plan Schemes,Cap Infrastr-Build Enh Wrk,Cap Infrastr-Build Enh Wrk,YC102,7/9/2019,575093,500,CAPITAL,ENGIE SERVICES LTD,133267
North East Lincolnshire Council,http://statistics.data.gov.uk/id/local-authority/00FC),Environment Economy And Growth,Economy & Growth,Local Transport Plan Schemes,Cap Infrastr-Purchase,Cap Infrastr-Purchase,YC101,7/2/2019,575050,6301,CAPITAL,BUCKINGHAMSHIRE COUNTY COUNCIL,105623
North East Lincolnshire Council,http://statistics.data.gov.uk/id/local-authority/00FC),Environment Economy And Growth,Economy & Growth,Local Transport Plan Schemes,Cap Land/Build-Build Enh Wrk,Cap Land/Build-Build Enh Wrk,YA102,7/22/2019,578344,2800,CAPITAL,ALMEGA PROMOTIONAL GIFTS LTD,129985
North East Lincolnshire Council,http://statistics.data.gov.uk/id/local-authority/00FC),Environment Economy And Growth,Economy & Growth,Local Transport Plan Schemes,Cap Land/Build-Build Enh Wrk,Cap Land/Build-Build Enh Wrk,YA102,7/22/2019,578344,1865,CAPITAL,ALMEGA PROMOTIONAL GIFTS LTD,129985
North East Lincolnshire Council,http://statistics.data.gov.uk/id/local-authority/00FC),Environment Economy And Growth,Economy & Growth,Local Transport Plan Schemes,Cap Land/Build-Build Enh Wrk,Cap Land/Build-Build Enh Wrk,YA102,7/22/2019,578344,1200,CAPITAL,ALMEGA PROMOTIONAL GIFTS LTD,129985
North East Lincolnshire Council,http://statistics.data.gov.uk/id/local-authority/00FC),Environment Economy And Growth,Economy & Growth,Local Transport Plan Schemes,Cap Infrastr-Build Enh Wrk,Cap Infrastr-Build Enh Wrk,YC102,7/5/2019,575886,3829.05,CAPITAL,SPECIALIST SURFACING LIMITED,100579
North East Lincolnshire Council,http://statistics.data.gov.uk/id/local-authority/00FC),Environment Economy And Growth,Economy & Growth,Local Transport Plan Schemes,Cap Infrastr-Build Enh Wrk,Cap Infrastr-Build Enh Wrk,YC102,7/8/2019,575198,7475.98,CAPITAL,ENGIE SERVICES LTD,133267
North East Lincolnshire Council,http://statistics.data.gov.uk/id/local-authority/00FC),Environment Economy And Growth,Economy & Growth,Local Transport Plan Schemes,Cap Infrastr-Build Enh Wrk,Cap Infrastr-Build Enh Wrk,YC102,7/8/2019,575168,15000,CAPITAL,ENGIE SERVICES LTD,133267
North East Lincolnshire Council,http://statistics.data.gov.uk/id/local-authority/00FC),Environment Economy And Growth,Economy & Growth,Local Transport Plan Schemes,Cap Infrastr-Build Enh Wrk,Cap Infrastr-Build Enh Wrk,YC102,7/22/2019,578343,4250,CAPITAL,SOUTHAM SERVICES (LINCS) LTD,140951
North East Lincolnshire Council,http://statistics.data.gov.uk/id/local-authority/00FC),Environment Economy And Growth,Economy & Growth,Local Transport Plan Schemes,Cap Infrastr-Build Enh Wrk,Cap Infrastr-Build Enh Wrk,YC102,7/26/2019,578422,25161.5,CAPITAL,SOUTHAM SERVICES (LINCS) LTD,140951
North East Lincolnshire Council,http://statistics.data.gov.uk/id/local-authority/00FC),Environment Economy And Growth,Economy & Growth,Local Transport Plan Schemes,Cap Infrastr-Build Enh Wrk,Cap Infrastr-Build Enh Wrk,YC102,7/24/2019,578934,784.87,CAPITAL,HUMBERSIDE MATERIALS LABORATORY LTD,122103
North East Lincolnshire Council,http://statistics.data.gov.uk/id/local-authority/00FC),Environment Economy And Growth,Economy & Growth,Local Transport Plan Schemes,Cap Infrastr-Build Enh Wrk,Cap Infrastr-Build Enh Wrk,YC102,7/19/2019,577259,20600,CAPITAL,ONEWAY TM LIMITED,128602
North East Lincolnshire Council,http://statistics.data.gov.uk/id/local-authority/00FC),Environment Economy And Growth,Economy & Growth,Local Transport Plan Schemes,Cap Infrastr-Build Enh Wrk,Cap Infrastr-Build Enh Wrk,YC102,7/4/2019,575682,2800,CAPITAL,SOUTHAM SERVICES (LINCS) LTD,140951
North East Lincolnshire Council,http://statistics.data.gov.uk/id/local-authority/00FC),Environment Economy And Growth,Economy & Growth,Local Transport Plan Schemes,Cap Infrastr-Build Enh Wrk,Cap Infrastr-Build Enh Wrk,YC102,7/31/2019,579565,250000,CAPITAL,SPECIALIST SURFACING LIMITED,100579
North East Lincolnshire Council,http://statistics.data.gov.uk/id/local-authority/00FC),Environment Economy And Growth,Economy & Growth,Local Transport Plan Schemes,Cap Infrastr-Build Enh Wrk,Cap Infrastr-Build Enh Wrk,YC102,7/8/2019,575196,15000,CAPITAL,ENGIE SERVICES LTD,133267
North East Lincolnshire Council,http://statistics.data.gov.uk/id/local-authority/00FC),Environment Economy And Growth,Economy & Growth,Local Transport Plan Schemes,Cap Infrastr-Build Enh Wrk,Cap Infrastr-Build Enh Wrk,YC102,7/9/2019,576031,12500,CAPITAL,SPECIALIST SURFACING LIMITED,100579
North East Lincolnshire Council,http://statistics.data.gov.uk/id/local-authority/00FC),Environment Economy And Growth,Economy & Growth,Local Transport Plan Schemes,Cap Infrastr-Build Enh Wrk,Cap Infrastr-Build Enh Wrk,YC102,7/5/2019,575880,197948.14,CAPITAL,SPECIALIST SURFACING LIMITED,100579
North East Lincolnshire Council,http://statistics.data.gov.uk/id/local-authority/00FC),Environment Economy And Growth,Economy & Growth,Local Transport Plan Schemes,Cap Infrastr-Build Enh Wrk,Cap Infrastr-Build Enh Wrk,YC102,7/8/2019,575195,9000,CAPITAL,ENGIE SERVICES LTD,133267
North East Lincolnshire Council,http://statistics.data.gov.uk/id/local-authority/00FC),Environment Economy And Growth,Economy & Growth,Local Transport Plan Schemes,Cap Infrastr-Build Enh Wrk,Cap Infrastr-Build Enh Wrk,YC102,7/2/2019,571629,2555,CAPITAL,CLUGSTON SERVICES LTD,105668
North East Lincolnshire Council,http://statistics.data.gov.uk/id/local-authority/00FC),Environment Economy And Growth,Economy & Growth,Local Transport Plan Schemes,Cap Infrastr-Build Enh Wrk,Cap Infrastr-Build Enh Wrk,YC102,7/8/2019,575193,1200,CAPITAL,ENGIE SERVICES LTD,133267
North East Lincolnshire Council,http://statistics.data.gov.uk/id/local-authority/00FC),Environment Economy And Growth,Economy & Growth,Local Transport Plan Schemes,Cap Infrastr-Build Enh Wrk,Cap Infrastr-Build Enh Wrk,YC102,7/8/2019,575163,500,CAPITAL,ENGIE SERVICES LTD,133267
North East Lincolnshire Council,http://statistics.data.gov.uk/id/local-authority/00FC),Environment Economy And Growth,Economy & Growth,Local Transport Plan Schemes,Cap Infrastr-Build Enh Wrk,Cap Infrastr-Build Enh Wrk,YC102,7/8/2019,575192,2000,CAPITAL,ENGIE SERVICES LTD,133267
North East Lincolnshire Council,http://statistics.data.gov.uk/id/local-authority/00FC),Environment Economy And Growth,Economy & Growth,Local Transport Plan Schemes,Cap Infrastr-Build Enh Wrk,Cap Infrastr-Build Enh Wrk,YC102,7/8/2019,575167,1000,CAPITAL,ENGIE SERVICES LTD,133267
North East Lincolnshire Council,http://statistics.data.gov.uk/id/local-authority/00FC),Environment Economy And Growth,Economy & Growth,Local Transport Plan Schemes,Cap Infrastr-Build Enh Wrk,Cap Infrastr-Build Enh Wrk,YC102,7/8/2019,575879,1783.23,CAPITAL,C R REYNOLDS (CONSTRUCTION) LTD,103021
North East Lincolnshire Council,http://statistics.data.gov.uk/id/local-authority/00FC),Environment Economy And Growth,Economy & Growth,Gllep Junction Improvement,Cap Infrastr-Prof Fees,Cap Infrastr-Prof Fees,YC103,7/17/2019,571414,2600,CAPITAL,NIGEL LOWTHER ASSOCIATES LTD,101750
North East Lincolnshire Council,http://statistics.data.gov.uk/id/local-authority/00FC),Environment Economy And Growth,Economy & Growth,Gllep Junction Improvement,Cap Infrastr-Prof Fees,Cap Infrastr-Prof Fees,YC103,7/17/2019,572001,3250,CAPITAL,NIGEL LOWTHER ASSOCIATES LTD,101750
North East Lincolnshire Council,http://statistics.data.gov.uk/id/local-authority/00FC),Environment Economy And Growth,Economy & Growth,Gllep Junction Improvement,Cap Infrastr-Build Enh Wrk,Cap Infrastr-Build Enh Wrk,YC102,7/8/2019,575169,12000,CAPITAL,ENGIE SERVICES LTD,133267
North East Lincolnshire Council,http://statistics.data.gov.uk/id/local-authority/00FC),Environment Economy And Growth,Economy & Growth,Shiip Scheme,Cap Infrastr-Prof Fees,Cap Infrastr-Prof Fees,YC103,7/2/2019,575065,158510,CAPITAL,ENGIE SERVICES LTD,133267
North East Lincolnshire Council,http://statistics.data.gov.uk/id/local-authority/00FC),Environment Economy And Growth,Economy & Growth,Shiip Scheme,Cap Infrastr-Prof Fees,Cap Infrastr-Prof Fees,YC103,7/12/2019,575950,8478.93,CAPITAL,DIVA CREATIVE LTD,138748
North East Lincolnshire Council,http://statistics.data.gov.uk/id/local-authority/00FC),Environment Economy And Growth,Economy & Growth,Shiip Scheme,Cap Infrastr-Prof Fees,Cap Infrastr-Prof Fees,YC103,7/22/2019,577443,10701.97,CAPITAL,DIVA CREATIVE LTD,138748
North East Lincolnshire Council,http://statistics.data.gov.uk/id/local-authority/00FC),Environment Economy And Growth,Economy & Growth,Shiip Scheme,Cap Infrastr-Purchase,Cap Infrastr-Purchase,YC101,7/2/2019,575096,448.31,CAPITAL,NORTH EAST LINDSEY DRAINAGE BOARD,108853
North East Lincolnshire Council,http://statistics.data.gov.uk/id/local-authority/00FC),Environment Economy And Growth,Economy & Growth,Shiip Scheme,Cap Infrastr-Build Enh Wrk,Cap Infrastr-Build Enh Wrk,YC102,7/17/2019,577341,189803.39,CAPITAL,INTEGRATED UTILITY SERVICES,104162
North East Lincolnshire Council,http://statistics.data.gov.uk/id/local-authority/00FC),Environment Economy And Growth,Economy & Growth,Shiip Scheme,Cap Infrastr-Prof Fees,Cap Infrastr-Prof Fees,YC103,7/15/2019,577154,999,CAPITAL,BEVAN BRITTAN LLP,131317
North East Lincolnshire Council,http://statistics.data.gov.uk/id/local-authority/00FC),Environment Economy And Growth,Economy & Growth,Shiip Scheme,Cap Infrastr-Prof Fees,Cap Infrastr-Prof Fees,YC103,7/12/2019,576204,909.42,CAPITAL,BEVAN BRITTAN LLP,131317
North East Lincolnshire Council,http://statistics.data.gov.uk/id/local-authority/00FC),Environment Economy And Growth,Economy & Growth,Shiip Scheme,Cap Infrastr-Build Enh Wrk,Cap Infrastr-Build Enh Wrk,YC102,7/2/2019,575127,147280.42,CAPITAL,COLAS SIAC  LTD,100605
North East Lincolnshire Council,http://statistics.data.gov.uk/id/local-authority/00FC),Environment Economy And Growth,Economy & Growth,Shiip Scheme,Cap Infrastr-Build Enh Wrk,Cap Infrastr-Build Enh Wrk,YC102,7/19/2019,578151,274777.64,CAPITAL,COLAS SIAC  LTD,100605
North East Lincolnshire Council,http://statistics.data.gov.uk/id/local-authority/00FC),Environment Economy And Growth,Economy & Growth,Shiip Scheme,Cap Infrastr-Prof Fees,Cap Infrastr-Prof Fees,YC103,7/17/2019,577395,8352.14,CAPITAL,ENGIE SERVICES LTD,133267
North East Lincolnshire Council,http://statistics.data.gov.uk/id/local-authority/00FC),Environment Economy And Growth,Economy & Growth,Unlocking The Potential,Cap Infrastr-Prof Fees,Cap Infrastr-Prof Fees,YC103,7/10/2019,576553,780,CAPITAL,ENGIE SERVICES LTD,133267
North East Lincolnshire Council,http://statistics.data.gov.uk/id/local-authority/00FC),Environment Economy And Growth,Economy & Growth,Unlocking The Potential,Cap Infrastr-Prof Fees,Cap Infrastr-Prof Fees,YC103,7/11/2019,576561,1327.5,CAPITAL,ENGIE SERVICES LTD,133267
North East Lincolnshire Council,http://statistics.data.gov.uk/id/local-authority/00FC),Environment Economy And Growth,Economy & Growth,Unlocking The Potential,Cap Infrastr-Build Enh Wrk,Cap Infrastr-Build Enh Wrk,YC102,7/2/2019,574998,117990.57,CAPITAL,C R REYNOLDS (CONSTRUCTION) LTD,103021
North East Lincolnshire Council,http://statistics.data.gov.uk/id/local-authority/00FC),Environment Economy And Growth,Economy & Growth,Unlocking The Potential,Cap Infrastr-Prof Fees,Cap Infrastr-Prof Fees,YC103,7/3/2019,575543,2045.5,CAPITAL,ENGIE SERVICES LTD,133267
North East Lincolnshire Council,http://statistics.data.gov.uk/id/local-authority/00FC),Environment Economy And Growth,Economy & Growth,Coastal Communities Fund,Cap Infrastr-Build Enh Wrk,Cap Infrastr-Build Enh Wrk,YC102,7/2/2019,574882,216319.52,CAPITAL,PBS CONSTRUCTION (NORTH EAST) LTD,127459
North East Lincolnshire Council,http://statistics.data.gov.uk/id/local-authority/00FC),Environment Economy And Growth,Economy & Growth,Coastal Communities Fund,Cap Infrastr-Build Enh Wrk,Cap Infrastr-Build Enh Wrk,YC102,7/26/2019,579258,243379.37,CAPITAL,PBS CONSTRUCTION (NORTH EAST) LTD,127459
North East Lincolnshire Council,http://statistics.data.gov.uk/id/local-authority/00FC),Environment Economy And Growth,Economy & Growth,Coastal Communities Fund,Cap Infrastr-Build Enh Wrk,Cap Infrastr-Build Enh Wrk,YC102,7/3/2019,575544,6743.52,CAPITAL,ENGIE SERVICES LTD,133267
North East Lincolnshire Council,http://statistics.data.gov.uk/id/local-authority/00FC),Environment Economy And Growth,Economy & Growth,Coastal Communities Fund,Cap Infrastr-Build Enh Wrk,Cap Infrastr-Build Enh Wrk,YC102,7/3/2019,575545,6743.52,CAPITAL,ENGIE SERVICES LTD,133267
North East Lincolnshire Council,http://statistics.data.gov.uk/id/local-authority/00FC),Environment Economy And Growth,Economy & Growth,Coastal Communities Fund,Cap Infrastr-Build Enh Wrk,Cap Infrastr-Build Enh Wrk,YC102,7/8/2019,575171,3749.97,CAPITAL,ENGIE SERVICES LTD,133267
North East Lincolnshire Council,http://statistics.data.gov.uk/id/local-authority/00FC),Environment Economy And Growth,Economy & Growth,Coastal Communities Fund,Cap Infrastr-Build Enh Wrk,Cap Infrastr-Build Enh Wrk,YC102,7/2/2019,572429,8400,CAPITAL,ONEWAY TM LIMITED,128602
North East Lincolnshire Council,http://statistics.data.gov.uk/id/local-authority/00FC),Environment Economy And Growth,Economy & Growth,Coastal Communities Fund,Cap Infrastr-Build Enh Wrk,Cap Infrastr-Build Enh Wrk,YC102,7/24/2019,578236,24922.93,CAPITAL,SPECIALIST SURFACING LIMITED,100579
North East Lincolnshire Council,http://statistics.data.gov.uk/id/local-authority/00FC),Environment Economy And Growth,Economy & Growth,Coastal Communities Fund,Cap Infrastr-Prof Fees,Cap Infrastr-Prof Fees,YC103,7/4/2019,575571,5280,CAPITAL,HODSON ARCHITECTS LTD,101328
North East Lincolnshire Council,http://statistics.data.gov.uk/id/local-authority/00FC),Environment Economy And Growth,Economy & Growth,A18 Laceby To Ludborough,Cap Infrastr-Build Enh Wrk,Cap Infrastr-Build Enh Wrk,YC102,7/8/2019,575170,10284.06,CAPITAL,ENGIE SERVICES LTD,133267
North East Lincolnshire Council,http://statistics.data.gov.uk/id/local-authority/00FC),Environment Economy And Growth,Economy & Growth,A18 Laceby To Ludborough,Cap Infrastr-Build Enh Wrk,Cap Infrastr-Build Enh Wrk,YC102,7/3/2019,574561,591.68,CAPITAL,HUMBERSIDE MATERIALS LABORATORY LTD,122103
North East Lincolnshire Council,http://statistics.data.gov.uk/id/local-authority/00FC),Environment Economy And Growth,Economy & Growth,Smart Energy For Business,Cap Land/Build-Build Enh Wrk,Cap Land/Build-Build Enh Wrk,YA102,7/16/2019,577444,10416.67,CAPITAL,N D J LIMITED,143058
North East Lincolnshire Council,http://statistics.data.gov.uk/id/local-authority/00FC),Environment Economy And Growth,Economy & Growth,Smart Energy For Business,Cap Land/Build-Build Enh Wrk,Cap Land/Build-Build Enh Wrk,YA102,7/16/2019,577441,13765.84,CAPITAL,STANBOROUGH PRESS LTD,143036
North East Lincolnshire Council,http://statistics.data.gov.uk/id/local-authority/00FC),Environment Economy And Growth,Economy & Growth,A180 Sth Humb Bank Major Maint,Cap Land/Build-Build Enh Wrk,Cap Land/Build-Build Enh Wrk,YA102,7/18/2019,577484,34725.02,CAPITAL,J MCCANN & CO LTD,100841
North East Lincolnshire Council,http://statistics.data.gov.uk/id/local-authority/00FC),Environment Economy And Growth,Economy & Growth,A180 Sth Humb Bank Major Maint,Cap Land/Build-Build Enh Wrk,Cap Land/Build-Build Enh Wrk,YA102,7/2/2019,575059,35986.8,CAPITAL,J MCCANN & CO LTD,100841
North East Lincolnshire Council,http://statistics.data.gov.uk/id/local-authority/00FC),Environment Economy And Growth,Economy & Growth,A180 Sth Humb Bank Major Maint,Cap Land/Build-Build Enh Wrk,Cap Land/Build-Build Enh Wrk,YA102,7/26/2019,579297,95760.78,CAPITAL,C R REYNOLDS (CONSTRUCTION) LTD,103021
North East Lincolnshire Council,http://statistics.data.gov.uk/id/local-authority/00FC),Environment Economy And Growth,Economy & Growth,A180 Sth Humb Bank Major Maint,Cap Land/Build-Build Enh Wrk,Cap Land/Build-Build Enh Wrk,YA102,7/10/2019,576581,645.64,CAPITAL,HUMBERSIDE MATERIALS LABORATORY LTD,122103
North East Lincolnshire Council,http://statistics.data.gov.uk/id/local-authority/00FC),Environment Economy And Growth,Economy & Growth,A180 Sth Humb Bank Major Maint,Cap Land/Build-Build Enh Wrk,Cap Land/Build-Build Enh Wrk,YA102,7/11/2019,576571,1028.44,CAPITAL,HUMBERSIDE MATERIALS LABORATORY LTD,122103
North East Lincolnshire Council,http://statistics.data.gov.uk/id/local-authority/00FC),Environment Economy And Growth,Economy & Growth,A180 Sth Humb Bank Major Maint,Cap Infrastr-Build Enh Wrk,Cap Infrastr-Build Enh Wrk,YC102,7/8/2019,575197,10502.31,CAPITAL,ENGIE SERVICES LTD,133267
North East Lincolnshire Council,http://statistics.data.gov.uk/id/local-authority/00FC),Environment Economy And Growth,Economy & Growth,Heritage Action Zone,Cap Land/Build-Prof Fees,Cap Land/Build-Prof Fees,YA103,7/30/2019,570548,4800,CAPITAL,FLEET ARCHITECTS LTD,143390
North East Lincolnshire Council,http://statistics.data.gov.uk/id/local-authority/00FC),Environment Economy And Growth,Economy & Growth,Europarc Fez,Cap Land/Build-Build Enh Wrk,Cap Land/Build-Build Enh Wrk,YA102,7/23/2019,578053,5152,CAPITAL,WYKELAND GROUP LTD,101729
North East Lincolnshire Council,http://statistics.data.gov.uk/id/local-authority/00FC),Environment Economy And Growth,Housing,Housing Assist Grants And Loan,Cap Grants To O/Side Sources,Cap Grants To O/Side Sources,YJ101,7/9/2019,575852,15195,CAPITAL,SHEFFIELD CITY COUNCIL,119344
North East Lincolnshire Council,http://statistics.data.gov.uk/id/local-authority/00FC),Environment Economy And Growth,Housing,Housing Assist Grants And Loan,Cap Grants To O/Side Sources,Cap Grants To O/Side Sources,YJ101,7/26/2019,579234,5336.36,CAPITAL,ENGIE SERVICES LTD,133267
North East Lincolnshire Council,http://statistics.data.gov.uk/id/local-authority/00FC),Environment Economy And Growth,Housing,Housing Assist Grants And Loan,Cap Grants To O/Side Sources,Cap Grants To O/Side Sources,YJ101,7/26/2019,578964,874.13,CAPITAL,YES ENERGY SOLUTIONS,138575
North East Lincolnshire Council,http://statistics.data.gov.uk/id/local-authority/00FC),Environment Economy And Growth,Housing,Housing Assist Grants And Loan,Cap Grants To O/Side Sources,Cap Grants To O/Side Sources,YJ101,7/26/2019,578962,2692.86,CAPITAL,YES ENERGY SOLUTIONS,138575
North East Lincolnshire Council,http://statistics.data.gov.uk/id/local-authority/00FC),Environment Economy And Growth,Housing,Housing Assist Grants And Loan,Cap Grants To O/Side Sources,Cap Grants To O/Side Sources,YJ101,7/30/2019,578991,880,CAPITAL,YES ENERGY SOLUTIONS,138575
North East Lincolnshire Council,http://statistics.data.gov.uk/id/local-authority/00FC),Environment Economy And Growth,Housing,Housing Assist Grants And Loan,Cap Grants To O/Side Sources,Cap Grants To O/Side Sources,YJ101,7/24/2019,578526,474.35,CAPITAL,KES BUILDING MAINTENANCE LIMITED,100786
North East Lincolnshire Council,http://statistics.data.gov.uk/id/local-authority/00FC),Environment Economy And Growth,Housing,Community Hsg Fund,Cap Auc-Prof Fees,Cap Auc-Prof Fees,YF103,7/31/2019,579526,8077.93,CAPITAL,ENGIE SERVICES LTD,133267
North East Lincolnshire Council,http://statistics.data.gov.uk/id/local-authority/00FC),Environment Economy And Growth,Housing,Community Hsg Fund,Cap Auc-Prof Fees,Cap Auc-Prof Fees,YF103,7/30/2019,578173,8200,CAPITAL,LOCALITY (UK),143783
North East Lincolnshire Council,http://statistics.data.gov.uk/id/local-authority/00FC),Public Health And Leisure,Public Health,Drug & Alcohol Recovery,Cap Land/Build-Build Enh Wrk,Cap Land/Build-Build Enh Wrk,YA102,7/30/2019,579254,478,CAPITAL,NEWGLAZE,100642
North East Lincolnshire Council,http://statistics.data.gov.uk/id/local-authority/00FC),Public Health And Leisure,Public Health,Drug & Alcohol Recovery,Cap Land/Build-Build Enh Wrk,Cap Land/Build-Build Enh Wrk,YA102,7/16/2019,577146,1965.96,CAPITAL,ENGIE SERVICES LTD,133267
North East Lincolnshire Council,http://statistics.data.gov.uk/id/local-authority/00FC),Public Health And Leisure,Leisure,Playing Pitch Reprovision,Cap Land/Build-Build Enh Wrk,Cap Land/Build-Build Enh Wrk,YA102,7/2/2019,574604,6450,CAPITAL,ROBINSON LOW FRANCIS LLP,136534
North East Lincolnshire Council,http://statistics.data.gov.uk/id/local-authority/00FC),Public Health And Leisure,Leisure,Playing Pitch Reprovision,Cap Land/Build-Prof Fees,Cap Land/Build-Prof Fees,YA103,7/9/2019,575850,996.6,CAPITAL,ENGIE SERVICES LTD,133267
North East Lincolnshire Council,http://statistics.data.gov.uk/id/local-authority/00FC),Public Health And Leisure,Leisure,Playing Pitch Reprovision,Cap Land/Build-Prof Fees,Cap Land/Build-Prof Fees,YA103,7/9/2019,575851,933.2,CAPITAL,ENGIE SERVICES LTD,133267
North East Lincolnshire Council,http://statistics.data.gov.uk/id/local-authority/00FC),Public Health And Leisure,Leisure,Bradley Football Redevelopment,Cap Land/Build-Build Enh Wrk,Cap Land/Build-Build Enh Wrk,YA102,7/26/2019,578985,399,CAPITAL,ROBINSON LOW FRANCIS LLP,136534
North East Lincolnshire Council,http://statistics.data.gov.uk/id/local-authority/00FC),Adult Services,Adult Services,Hps-Disabled Fac. Grants,Cap Grants To O/Side Sources,Cap Grants To O/Side Sources,YJ101,7/11/2019,576901,2441.26,CAPITAL,PRISM MEDICAL UK LTD,119507
North East Lincolnshire Council,http://statistics.data.gov.uk/id/local-authority/00FC),Adult Services,Adult Services,Hps-Disabled Fac. Grants,Cap Grants To O/Side Sources,Cap Grants To O/Side Sources,YJ101,7/26/2019,579234,37382.76,CAPITAL,ENGIE SERVICES LTD,133267
North East Lincolnshire Council,http://statistics.data.gov.uk/id/local-authority/00FC),Adult Services,Adult Services,Hps-Disabled Fac. Grants,Cap Grants To O/Side Sources,Cap Grants To O/Side Sources,YJ101,7/30/2019,579443,7121.34,CAPITAL,LINDUM GROUP LIMITED,101185
North East Lincolnshire Council,http://statistics.data.gov.uk/id/local-authority/00FC),Adult Services,Adult Services,Hps-Disabled Fac. Grants,Cap Grants To O/Side Sources,Cap Grants To O/Side Sources,YJ101,7/2/2019,575043,11695.2,CAPITAL,VIC HANSEN BUILDING & JOINERY LTD,103981
North East Lincolnshire Council,http://statistics.data.gov.uk/id/local-authority/00FC),Adult Services,Adult Services,Hps-Disabled Fac. Grants,Cap Grants To O/Side Sources,Cap Grants To O/Side Sources,YJ101,7/22/2019,578238,1202.5,CAPITAL,P G INGOLDBY & SONS LTD,100591
North East Lincolnshire Council,http://statistics.data.gov.uk/id/local-authority/00FC),Adult Services,Adult Services,Hps-Disabled Fac. Grants,Cap Grants To O/Side Sources,Cap Grants To O/Side Sources,YJ101,7/2/2019,575044,6299.9,CAPITAL,ABLE 4 ENTERPRISE LTD,120159
North East Lincolnshire Council,http://statistics.data.gov.uk/id/local-authority/00FC),Adult Services,Adult Services,Hps-Disabled Fac. Grants,Cap Grants To O/Side Sources,Cap Grants To O/Side Sources,YJ101,7/2/2019,574957,6635.59,CAPITAL,VIC HANSEN BUILDING & JOINERY LTD,103981
North East Lincolnshire Council,http://statistics.data.gov.uk/id/local-authority/00FC),Adult Services,Adult Services,Hps-Disabled Fac. Grants,Cap Grants To O/Side Sources,Cap Grants To O/Side Sources,YJ101,7/2/2019,574943,8475.21,CAPITAL,F R TOWNSEND & CO LTD,104217
North East Lincolnshire Council,http://statistics.data.gov.uk/id/local-authority/00FC),Adult Services,Adult Services,Hps-Disabled Fac. Grants,Cap Grants To O/Side Sources,Cap Grants To O/Side Sources,YJ101,7/11/2019,577123,14747.15,CAPITAL,ABLE 4 ENTERPRISE LTD,120159
North East Lincolnshire Council,http://statistics.data.gov.uk/id/local-authority/00FC),Adult Services,Adult Services,Hps-Disabled Fac. Grants,Cap Grants To O/Side Sources,Cap Grants To O/Side Sources,YJ101,7/19/2019,578200,6782.39,CAPITAL,F R TOWNSEND & CO LTD,104217
North East Lincolnshire Council,http://statistics.data.gov.uk/id/local-authority/00FC),Adult Services,Adult Services,Hps-Disabled Fac. Grants,Cap Grants To O/Side Sources,Cap Grants To O/Side Sources,YJ101,7/2/2019,575046,5611.42,CAPITAL,DOLPHIN MOBILITY EAST MIDLANDS LTD,101317
North East Lincolnshire Council,http://statistics.data.gov.uk/id/local-authority/00FC),Adult Services,Adult Services,Hps-Disabled Fac. Grants,Cap Grants To O/Side Sources,Cap Grants To O/Side Sources,YJ101,7/2/2019,574956,9332.12,CAPITAL,E S RUDKIN LTD,100632
North East Lincolnshire Council,http://statistics.data.gov.uk/id/local-authority/00FC),Adult Services,Adult Services,Hps-Disabled Fac. Grants,Cap Grants To O/Side Sources,Cap Grants To O/Side Sources,YJ101,7/19/2019,578177,6487.33,CAPITAL,VIC HANSEN BUILDING & JOINERY LTD,103981
North East Lincolnshire Council,http://statistics.data.gov.uk/id/local-authority/00FC),Adult Services,Adult Services,Hps-Disabled Fac. Grants,Cap Grants To O/Side Sources,Cap Grants To O/Side Sources,YJ101,7/2/2019,574958,6106.51,CAPITAL,ABLE 4 ENTERPRISE LTD,120159
North East Lincolnshire Council,http://statistics.data.gov.uk/id/local-authority/00FC),Adult Services,Adult Services,Hps-Disabled Fac. Grants,Cap Grants To O/Side Sources,Cap Grants To O/Side Sources,YJ101,7/24/2019,578522,5298.25,CAPITAL,ABLE 4 ENTERPRISE LTD,120159
North East Lincolnshire Council,http://statistics.data.gov.uk/id/local-authority/00FC),Adult Services,Adult Services,Hps-Disabled Fac. Grants,Cap Grants To O/Side Sources,Cap Grants To O/Side Sources,YJ101,7/17/2019,577394,1648,CAPITAL,OBAM LIFT SERVICES LTD,112666
North East Lincolnshire Council,http://statistics.data.gov.uk/id/local-authority/00FC),Adult Services,Adult Services,Hps-Disabled Fac. Grants,Cap Grants To O/Side Sources,Cap Grants To O/Side Sources,YJ101,7/30/2019,579403,4266,CAPITAL,DH2 SOLUTIONS LTD,131392
North East Lincolnshire Council,http://statistics.data.gov.uk/id/local-authority/00FC),Adult Services,Adult Services,Hps-Disabled Fac. Grants,Cap Grants To O/Side Sources,Cap Grants To O/Side Sources,YJ101,7/23/2019,578080,3968,CAPITAL,OBAM LIFT SERVICES LTD,112666
North East Lincolnshire Council,http://statistics.data.gov.uk/id/local-authority/00FC),Adult Services,Adult Services,Hps-Disabled Fac. Grants,Cap Grants To O/Side Sources,Cap Grants To O/Side Sources,YJ101,7/15/2019,577354,5701.41,CAPITAL,P G INGOLDBY & SONS LTD,100591
North East Lincolnshire Council,http://statistics.data.gov.uk/id/local-authority/00FC),Adult Services,Adult Services,Hps-Disabled Fac. Grants,Cap Grants To O/Side Sources,Cap Grants To O/Side Sources,YJ101,7/5/2019,575884,10967.88,CAPITAL,MARK BENNETT,101838
North East Lincolnshire Council,http://statistics.data.gov.uk/id/local-authority/00FC),Adult Services,Adult Services,Hps-Disabled Fac. Grants,Cap Grants To O/Side Sources,Cap Grants To O/Side Sources,YJ101,7/2/2019,574954,1996.87,CAPITAL,E S RUDKIN LTD,100632
North East Lincolnshire Council,http://statistics.data.gov.uk/id/local-authority/00FC),Adult Services,Adult Services,Hps-Disabled Fac. Grants,Cap Grants To O/Side Sources,Cap Grants To O/Side Sources,YJ101,7/11/2019,576947,4280,CAPITAL,OBAM LIFT SERVICES LTD,112666
North East Lincolnshire Council,http://statistics.data.gov.uk/id/local-authority/00FC),Adult Services,Adult Services,Hps-Disabled Fac. Grants,Cap Grants To O/Side Sources,Cap Grants To O/Side Sources,YJ101,7/23/2019,577262,8545.57,CAPITAL,E S RUDKIN LTD,100632
North East Lincolnshire Council,http://statistics.data.gov.uk/id/local-authority/00FC),Adult Services,Adult Services,Hps-Disabled Fac. Grants,Cap Grants To O/Side Sources,Cap Grants To O/Side Sources,YJ101,7/23/2019,578085,4428,CAPITAL,CLOSOMAT LTD,100849
North East Lincolnshire Council,http://statistics.data.gov.uk/id/local-authority/00FC),Adult Services,Adult Services,Hps-Disabled Fac. Grants,Cap Grants To O/Side Sources,Cap Grants To O/Side Sources,YJ101,7/19/2019,578179,4030,CAPITAL,CLOSOMAT LTD,100849
North East Lincolnshire Council,http://statistics.data.gov.uk/id/local-authority/00FC),Adult Services,Adult Services,Hps-Disabled Fac. Grants,Cap Grants To O/Side Sources,Cap Grants To O/Side Sources,YJ101,7/23/2019,577759,1679,CAPITAL,OBAM LIFT SERVICES LTD,112666
North East Lincolnshire Council,http://statistics.data.gov.uk/id/local-authority/00FC),Adult Services,Adult Services,Hps-Disabled Fac. Grants,Cap Grants To O/Side Sources,Cap Grants To O/Side Sources,YJ101,7/31/2019,579941,1629,CAPITAL,OBAM LIFT SERVICES LTD,112666
North East Lincolnshire Council,http://statistics.data.gov.uk/id/local-authority/00FC),Adult Services,Adult Services,Hps-Disabled Fac. Grants,Cap Grants To O/Side Sources,Cap Grants To O/Side Sources,YJ101,7/17/2019,577920,320,CAPITAL,STEPHEN HEYWOOD DESIGN LTD,132818
North East Lincolnshire Council,http://statistics.data.gov.uk/id/local-authority/00FC),Children & Family Services,Ass Dir - Skills,Family Hubs,Catering,Provisions,LB101,7/17/2019,577786,1000,REVENUE,TESCO STORES LIMITED,102576
North East Lincolnshire Council,http://statistics.data.gov.uk/id/local-authority/00FC),Children & Family Services,Ass Dir - Skills,Community Learning Services,Miscellaneous Expenses,Activities - Service Users,LL114,7/2/2019,575006,1938,REVENUE,MRS SONIA SMITH,132584
North East Lincolnshire Council,http://statistics.data.gov.uk/id/local-authority/00FC),Children & Family Services,Ass Dir - Skills,Community Learning Services,Miscellaneous Expenses,Activities - Service Users,LL114,7/31/2019,579562,2600,REVENUE,LEARNING4LIFE-GY-CIC,144120
North East Lincolnshire Council,http://statistics.data.gov.uk/id/local-authority/00FC),Children & Family Services,Ass Dir - Skills,Community Learning Services,Contributions To Provisions,Contributions - Other,LK103,7/26/2019,579321,269.5,REVENUE,SHELLY AND SONYA,139603
North East Lincolnshire Council,http://statistics.data.gov.uk/id/local-authority/00FC),Children & Family Services,Ass Dir - Skills,Community Learning Services,Contributions To Provisions,Contributions - Other,LK103,7/26/2019,579257,532,REVENUE,THE COURTYARD CAFE,135980
North East Lincolnshire Council,http://statistics.data.gov.uk/id/local-authority/00FC),Children & Family Services,Ass Dir - Skills,Community Learning Services,Contributions To Provisions,Contributions - Other,LK103,7/2/2019,574831,1665,REVENUE,FLEX E VOUCHERS,103348
North East Lincolnshire Council,http://statistics.data.gov.uk/id/local-authority/00FC),Children & Family Services,Ass Dir - Skills,Community Learning Services,Miscellaneous Expenses,Activities - Service Users,LL114,7/30/2019,708720,331.25,REVENUE,REDACTED PERSONAL INFORMATION,REDACTED PERSONAL INFORMATION
North East Lincolnshire Council,http://statistics.data.gov.uk/id/local-authority/00FC),Children & Family Services,Ass Dir - Skills,Community Learning Services,Miscellaneous Expenses,Activities - Service Users,LL114,7/26/2019,579312,650,REVENUE,CENTRE4 LIMITED,126893
North East Lincolnshire Council,http://statistics.data.gov.uk/id/local-authority/00FC),Children & Family Services,Ass Dir - Skills,Community Learning Services,Miscellaneous Expenses,Activities - Service Users,LL114,7/26/2019,579367,520,REVENUE,COOPERS TOURS (LINCS) LTD,111878
North East Lincolnshire Council,http://statistics.data.gov.uk/id/local-authority/00FC),Children & Family Services,Ass Dir - Skills,Community Learning Services,Miscellaneous Expenses,Activities - Service Users,LL114,7/2/2019,574833,858,REVENUE,MRS MARIA JOHNSON,140171
North East Lincolnshire Council,http://statistics.data.gov.uk/id/local-authority/00FC),Children & Family Services,Ass Dir - Skills,Community Learning Services,Miscellaneous Expenses,Exam Fees,LL115,7/24/2019,578562,1165,REVENUE,NOCN,123052
North East Lincolnshire Council,http://statistics.data.gov.uk/id/local-authority/00FC),Children & Family Services,Ass Dir - Skills,Community Learning Services,Miscellaneous Expenses,Exam Fees,LL115,7/26/2019,579002,270,REVENUE,NOCN,123052
North East Lincolnshire Council,http://statistics.data.gov.uk/id/local-authority/00FC),Children & Family Services,Ass Dir - Skills,Community Learning Services,Miscellaneous Expenses,Activities - Service Users,LL114,7/10/2019,576547,327,REVENUE,ONE STOP PROMOTIONS LTD,109821
North East Lincolnshire Council,http://statistics.data.gov.uk/id/local-authority/00FC),Children & Family Services,Ass Dir - Skills,Community Learning Services,Miscellaneous Expenses,Activities - Service Users,LL114,7/24/2019,576957,310,REVENUE,SYSTEMATIC PRINT MANAGEMENT LTD,101147
North East Lincolnshire Council,http://statistics.data.gov.uk/id/local-authority/00FC),Children & Family Services,Ass Dir - Skills,Community Learning Services,Miscellaneous Expenses,Activities - Service Users,LL114,7/31/2019,579476,1436.8,REVENUE,THE SAVILLE GROUP LTD,100560
North East Lincolnshire Council,http://statistics.data.gov.uk/id/local-authority/00FC),Children & Family Services,Ass Dir - Skills,Community Learning Services,Miscellaneous Expenses,Activities - Service Users,LL114,7/31/2019,579310,325,REVENUE,CASPIAN ACCESS & PLANT HIRE LTD,101225
North East Lincolnshire Council,http://statistics.data.gov.uk/id/local-authority/00FC),Children & Family Services,Ass Dir - Skills,Community Learning Services,Miscellaneous Expenses,Activities - Service Users,LL114,7/22/2019,578317,2475,REVENUE,DELI-LICIOUS,101903
North East Lincolnshire Council,http://statistics.data.gov.uk/id/local-authority/00FC),Children & Family Services,Ass Dir - Skills,Community Learning Services,Miscellaneous Expenses,Activities - Service Users,LL114,7/22/2019,578319,1940,REVENUE,AMVALE LIMITED,101030
North East Lincolnshire Council,http://statistics.data.gov.uk/id/local-authority/00FC),Children & Family Services,Ass Dir - Skills,Community Learning Services,Miscellaneous Expenses,Activities - Service Users,LL114,7/23/2019,578852,1869.2,REVENUE,WELLS & SONS MARQUEES LTD,129509
North East Lincolnshire Council,http://statistics.data.gov.uk/id/local-authority/00FC),Children & Family Services,Ass Dir - Skills,Community Learning Services,Miscellaneous Expenses,Activities - Service Users,LL114,7/26/2019,579304,528.54,REVENUE,GRIMSBY AUDITORIUM,128160
North East Lincolnshire Council,http://statistics.data.gov.uk/id/local-authority/00FC),Children & Family Services,Ass Dir - Skills,Pause,Rents,Rent,GC101,7/11/2019,576535,253.33,REVENUE,CENTRE4 LIMITED,126893
North East Lincolnshire Council,http://statistics.data.gov.uk/id/local-authority/00FC),Children & Family Services,Ass Dir - Skills,Pause,Miscellaneous Expenses,Other Supplies & Services,LL110,7/17/2019,577814,280.81,REVENUE,PAUSE,137708
North East Lincolnshire Council,http://statistics.data.gov.uk/id/local-authority/00FC),Children & Family Services,Ass Dir - Education,Access And Education Services,Contract Hire-Operating Leases,Vehicles - Contract Hire,JC101,7/2/2019,575023,820,REVENUE,AMVALE LIMITED,101030
North East Lincolnshire Council,http://statistics.data.gov.uk/id/local-authority/00FC),Children & Family Services,Ass Dir - Education,Access And Education Services,Contract Hire-Operating Leases,Vehicles - Contract Hire,JC101,7/31/2019,579926,820,REVENUE,AMVALE LIMITED,101030
North East Lincolnshire Council,http://statistics.data.gov.uk/id/local-authority/00FC),Children & Family Services,Ass Dir - Education,Access And Education Services,Contract Hire-Operating Leases,Vehicles - Contract Hire,JC101,7/30/2019,579635,640,REVENUE,LINKS TAXIS,100546
North East Lincolnshire Council,http://statistics.data.gov.uk/id/local-authority/00FC),Children & Family Services,Ass Dir - Education,Access And Education Services,Contract Hire-Operating Leases,Vehicles - Contract Hire,JC101,7/2/2019,575039,1726.88,REVENUE,REDACTED PERSONAL INFORMATION,REDACTED PERSONAL INFORMATION
North East Lincolnshire Council,http://statistics.data.gov.uk/id/local-authority/00FC),Children & Family Services,Ass Dir - Education,Access And Education Services,Contract Hire-Operating Leases,Vehicles - Contract Hire,JC101,7/2/2019,575117,555,REVENUE,COXONS CARS LIMITED,100578
North East Lincolnshire Council,http://statistics.data.gov.uk/id/local-authority/00FC),Children & Family Services,Ass Dir - Education,Access And Education Services,Contract Hire-Operating Leases,Vehicles - Contract Hire,JC101,7/10/2019,576623,820,REVENUE,LINKS TAXIS,100546
North East Lincolnshire Council,http://statistics.data.gov.uk/id/local-authority/00FC),Children & Family Services,Ass Dir - Education,Access And Education Services,Contract Hire-Operating Leases,Vehicles - Contract Hire,JC101,7/10/2019,576621,1028,REVENUE,LINKS TAXIS,100546
North East Lincolnshire Council,http://statistics.data.gov.uk/id/local-authority/00FC),Children & Family Services,Ass Dir - Education,Access And Education Services,Contract Hire-Operating Leases,Vehicles - Contract Hire,JC101,7/10/2019,576613,460,REVENUE,LINKS TAXIS,100546
North East Lincolnshire Council,http://statistics.data.gov.uk/id/local-authority/00FC),Children & Family Services,Ass Dir - Education,Access And Education Services,Contract Hire-Operating Leases,Vehicles - Contract Hire,JC101,7/24/2019,578449,945,REVENUE,AA RADIO CARS LTD,101222
North East Lincolnshire Council,http://statistics.data.gov.uk/id/local-authority/00FC),Children & Family Services,Ass Dir - Education,Access And Education Services,Contract Hire-Operating Leases,Vehicles - Contract Hire,JC101,7/26/2019,579090,1260,REVENUE,AA RADIO CARS LTD,101222
North East Lincolnshire Council,http://statistics.data.gov.uk/id/local-authority/00FC),Children & Family Services,Ass Dir - Education,Access And Education Services,Contract Hire-Operating Leases,Vehicles - Contract Hire,JC101,7/10/2019,576624,772,REVENUE,LINKS TAXIS,100546
North East Lincolnshire Council,http://statistics.data.gov.uk/id/local-authority/00FC),Children & Family Services,Ass Dir - Education,Access And Education Services,Contract Hire-Operating Leases,Vehicles - Contract Hire,JC101,7/10/2019,576608,770,REVENUE,LINKS TAXIS,100546
North East Lincolnshire Council,http://statistics.data.gov.uk/id/local-authority/00FC),Children & Family Services,Ass Dir - Education,Access And Education Services,Contract Hire-Operating Leases,Vehicles - Contract Hire,JC101,7/11/2019,577162,362,REVENUE,LINKS TAXIS,100546
North East Lincolnshire Council,http://statistics.data.gov.uk/id/local-authority/00FC),Children & Family Services,Ass Dir - Education,Access And Education Services,Contract Hire-Operating Leases,Vehicles - Contract Hire,JC101,7/10/2019,576095,289,REVENUE,LINKS TAXIS,100546
North East Lincolnshire Council,http://statistics.data.gov.uk/id/local-authority/00FC),Children & Family Services,Ass Dir - Education,Access And Education Services,Contract Hire-Operating Leases,Vehicles - Contract Hire,JC101,7/15/2019,576960,1100,REVENUE,LINKS TAXIS,100546
North East Lincolnshire Council,http://statistics.data.gov.uk/id/local-authority/00FC),Children & Family Services,Ass Dir - Education,Access And Education Services,Contract Hire-Operating Leases,Vehicles - Contract Hire,JC101,7/11/2019,576962,700,REVENUE,LINKS TAXIS,100546
North East Lincolnshire Council,http://statistics.data.gov.uk/id/local-authority/00FC),Children & Family Services,Ass Dir - Education,Access And Education Services,Contract Hire-Operating Leases,Vehicles - Contract Hire,JC101,7/30/2019,579637,1985,REVENUE,LINKS TAXIS,100546
North East Lincolnshire Council,http://statistics.data.gov.uk/id/local-authority/00FC),Children & Family Services,Ass Dir - Education,Access And Education Services,Contract Hire-Operating Leases,Vehicles - Contract Hire,JC101,7/2/2019,575211,2850,REVENUE,BEST FUTURES COMMUNITY INTEREST COMPANY,128600
North East Lincolnshire Council,http://statistics.data.gov.uk/id/local-authority/00FC),Children & Family Services,Ass Dir - Education,Access And Education Services,Contract Hire-Operating Leases,Vehicles - Contract Hire,JC101,7/23/2019,578903,2550,REVENUE,BEST FUTURES COMMUNITY INTEREST COMPANY,128600
North East Lincolnshire Council,http://statistics.data.gov.uk/id/local-authority/00FC),Children & Family Services,Ass Dir - Education,Access And Education Services,Contract Hire-Operating Leases,Vehicles - Contract Hire,JC101,7/10/2019,576617,963,REVENUE,LINKS TAXIS,100546
North East Lincolnshire Council,http://statistics.data.gov.uk/id/local-authority/00FC),Children & Family Services,Ass Dir - Education,Access And Education Services,Contract Hire-Operating Leases,Vehicles - Contract Hire,JC101,7/11/2019,576075,1520,REVENUE,MINICABS CLEETHORPES (LINCS) LTD,102124
North East Lincolnshire Council,http://statistics.data.gov.uk/id/local-authority/00FC),Children & Family Services,Ass Dir - Education,Access And Education Services,Contract Hire-Operating Leases,Vehicles - Contract Hire,JC101,7/5/2019,575875,1220,REVENUE,AA RADIO CARS LTD,101222
North East Lincolnshire Council,http://statistics.data.gov.uk/id/local-authority/00FC),Children & Family Services,Ass Dir - Education,Access And Education Services,Contract Hire-Operating Leases,Vehicles - Contract Hire,JC101,7/22/2019,578350,922.5,REVENUE,AA RADIO CARS LTD,101222
North East Lincolnshire Council,http://statistics.data.gov.uk/id/local-authority/00FC),Children & Family Services,Ass Dir - Education,Access And Education Services,Contract Hire-Operating Leases,Vehicles - Contract Hire,JC101,7/10/2019,576626,365.25,REVENUE,LINKS TAXIS,100546
North East Lincolnshire Council,http://statistics.data.gov.uk/id/local-authority/00FC),Children & Family Services,Ass Dir - Education,Access And Education Services,Contract Hire-Operating Leases,Vehicles - Contract Hire,JC101,7/10/2019,576615,570,REVENUE,LINKS TAXIS,100546
North East Lincolnshire Council,http://statistics.data.gov.uk/id/local-authority/00FC),Children & Family Services,Ass Dir - Education,Access And Education Services,Contract Hire-Operating Leases,Vehicles - Contract Hire,JC101,7/5/2019,575877,1286,REVENUE,AA RADIO CARS LTD,101222
North East Lincolnshire Council,http://statistics.data.gov.uk/id/local-authority/00FC),Children & Family Services,Ass Dir - Education,Access And Education Services,Contract Hire-Operating Leases,Vehicles - Contract Hire,JC101,7/22/2019,578347,970,REVENUE,AA RADIO CARS LTD,101222
North East Lincolnshire Council,http://statistics.data.gov.uk/id/local-authority/00FC),Children & Family Services,Ass Dir - Education,Access And Education Services,Private Contractors,Concessionary Fares,PH104,7/31/2019,579454,2645.5,REVENUE,STAGECOACH SERVICES,101404
North East Lincolnshire Council,http://statistics.data.gov.uk/id/local-authority/00FC),Children & Family Services,Ass Dir - Education,Access And Education Services,Contract Hire-Operating Leases,Vehicles - Contract Hire,JC101,7/30/2019,579628,1240,REVENUE,LINKS TAXIS,100546
North East Lincolnshire Council,http://statistics.data.gov.uk/id/local-authority/00FC),Children & Family Services,Ass Dir - Education,Access And Education Services,Contract Hire-Operating Leases,Vehicles - Contract Hire,JC101,7/11/2019,576014,2480,REVENUE,AMVALE MEDICAL TRANSPORT LTD,130777
North East Lincolnshire Council,http://statistics.data.gov.uk/id/local-authority/00FC),Children & Family Services,Ass Dir - Education,Access And Education Services,Contract Hire-Operating Leases,Vehicles - Contract Hire,JC101,7/31/2019,579913,720,REVENUE,AMVALE LIMITED,101030
North East Lincolnshire Council,http://statistics.data.gov.uk/id/local-authority/00FC),Children & Family Services,Ass Dir - Education,Access And Education Services,Contract Hire-Operating Leases,Vehicles - Contract Hire,JC101,7/2/2019,575201,3300,REVENUE,AMVALE LIMITED,101030
North East Lincolnshire Council,http://statistics.data.gov.uk/id/local-authority/00FC),Children & Family Services,Ass Dir - Education,Access And Education Services,Contract Hire-Operating Leases,Vehicles - Contract Hire,JC101,7/31/2019,579992,2475,REVENUE,AMVALE LIMITED,101030
North East Lincolnshire Council,http://statistics.data.gov.uk/id/local-authority/00FC),Children & Family Services,Ass Dir - Education,Access And Education Services,Contract Hire-Operating Leases,Vehicles - Contract Hire,JC101,7/2/2019,575202,3500,REVENUE,AMVALE LIMITED,101030
North East Lincolnshire Council,http://statistics.data.gov.uk/id/local-authority/00FC),Children & Family Services,Ass Dir - Education,Access And Education Services,Contract Hire-Operating Leases,Vehicles - Contract Hire,JC101,7/31/2019,579990,2625,REVENUE,AMVALE LIMITED,101030
North East Lincolnshire Council,http://statistics.data.gov.uk/id/local-authority/00FC),Children & Family Services,Ass Dir - Education,Access And Education Services,Contract Hire-Operating Leases,Vehicles - Contract Hire,JC101,7/2/2019,575203,3300,REVENUE,AMVALE LIMITED,101030
North East Lincolnshire Council,http://statistics.data.gov.uk/id/local-authority/00FC),Children & Family Services,Ass Dir - Education,Access And Education Services,Contract Hire-Operating Leases,Vehicles - Contract Hire,JC101,7/31/2019,579991,2475,REVENUE,AMVALE LIMITED,101030
North East Lincolnshire Council,http://statistics.data.gov.uk/id/local-authority/00FC),Children & Family Services,Ass Dir - Education,Access And Education Services,Contract Hire-Operating Leases,Vehicles - Contract Hire,JC101,7/4/2019,575727,4098.2,REVENUE,MILLMAN COACHES,100700
North East Lincolnshire Council,http://statistics.data.gov.uk/id/local-authority/00FC),Children & Family Services,Ass Dir - Education,Access And Education Services,Contract Hire-Operating Leases,Vehicles - Contract Hire,JC101,7/31/2019,579944,3688.38,REVENUE,MILLMAN COACHES,100700
North East Lincolnshire Council,http://statistics.data.gov.uk/id/local-authority/00FC),Children & Family Services,Ass Dir - Education,Access And Education Services,Contract Hire-Operating Leases,Vehicles - Contract Hire,JC101,7/24/2019,578451,358,REVENUE,AA RADIO CARS LTD,101222
North East Lincolnshire Council,http://statistics.data.gov.uk/id/local-authority/00FC),Children & Family Services,Ass Dir - Education,Access And Education Services,Contract Hire-Operating Leases,Vehicles - Contract Hire,JC101,7/26/2019,579097,375.2,REVENUE,AA RADIO CARS LTD,101222
North East Lincolnshire Council,http://statistics.data.gov.uk/id/local-authority/00FC),Children & Family Services,Ass Dir - Education,Access And Education Services,Contract Hire-Operating Leases,Vehicles - Contract Hire,JC101,7/2/2019,575204,3100,REVENUE,AMVALE LIMITED,101030
North East Lincolnshire Council,http://statistics.data.gov.uk/id/local-authority/00FC),Children & Family Services,Ass Dir - Education,Access And Education Services,Contract Hire-Operating Leases,Vehicles - Contract Hire,JC101,7/31/2019,579989,2325,REVENUE,AMVALE LIMITED,101030
North East Lincolnshire Council,http://statistics.data.gov.uk/id/local-authority/00FC),Children & Family Services,Ass Dir - Education,Access And Education Services,Contract Hire-Operating Leases,Vehicles - Contract Hire,JC101,7/2/2019,575120,600,REVENUE,COXONS CARS LIMITED,100578
North East Lincolnshire Council,http://statistics.data.gov.uk/id/local-authority/00FC),Children & Family Services,Ass Dir - Education,Access And Education Services,Contract Hire-Operating Leases,Vehicles - Contract Hire,JC101,7/26/2019,579365,450,REVENUE,COXONS CARS LIMITED,100578
North East Lincolnshire Council,http://statistics.data.gov.uk/id/local-authority/00FC),Children & Family Services,Ass Dir - Education,Access And Education Services,Contract Hire-Operating Leases,Vehicles - Contract Hire,JC101,7/11/2019,577160,1272,REVENUE,LINKS TAXIS,100546
North East Lincolnshire Council,http://statistics.data.gov.uk/id/local-authority/00FC),Children & Family Services,Ass Dir - Education,Access And Education Services,Contract Hire-Operating Leases,Vehicles - Contract Hire,JC101,7/24/2019,578450,784,REVENUE,AA RADIO CARS LTD,101222
North East Lincolnshire Council,http://statistics.data.gov.uk/id/local-authority/00FC),Children & Family Services,Ass Dir - Education,Access And Education Services,Contract Hire-Operating Leases,Vehicles - Contract Hire,JC101,7/26/2019,579093,980,REVENUE,AA RADIO CARS LTD,101222
North East Lincolnshire Council,http://statistics.data.gov.uk/id/local-authority/00FC),Children & Family Services,Ass Dir - Education,Access And Education Services,Private Contractors,Concessionary Fares,PH104,7/31/2019,579454,1443.9,REVENUE,STAGECOACH SERVICES,101404
North East Lincolnshire Council,http://statistics.data.gov.uk/id/local-authority/00FC),Children & Family Services,Ass Dir - Education,Access And Education Services,Contract Hire-Operating Leases,Vehicles - Contract Hire,JC101,7/30/2019,579634,760,REVENUE,LINKS TAXIS,100546
North East Lincolnshire Council,http://statistics.data.gov.uk/id/local-authority/00FC),Children & Family Services,Ass Dir - Education,Access And Education Services,Contract Hire-Operating Leases,Vehicles - Contract Hire,JC101,7/16/2019,577401,651,REVENUE,LINKS TAXIS,100546
North East Lincolnshire Council,http://statistics.data.gov.uk/id/local-authority/00FC),Children & Family Services,Ass Dir - Education,Access And Education Services,Contract Hire-Operating Leases,Vehicles - Contract Hire,JC101,7/30/2019,579636,594,REVENUE,LINKS TAXIS,100546
North East Lincolnshire Council,http://statistics.data.gov.uk/id/local-authority/00FC),Children & Family Services,Ass Dir - Education,Access And Education Services,Contract Hire-Operating Leases,Vehicles - Contract Hire,JC101,7/30/2019,579629,1102,REVENUE,LINKS TAXIS,100546
North East Lincolnshire Council,http://statistics.data.gov.uk/id/local-authority/00FC),Children & Family Services,Ass Dir - Education,Access And Education Services,Contract Hire-Operating Leases,Vehicles - Contract Hire,JC101,7/8/2019,576020,2580,REVENUE,AMVALE MEDICAL TRANSPORT LTD,130777
North East Lincolnshire Council,http://statistics.data.gov.uk/id/local-authority/00FC),Children & Family Services,Ass Dir - Education,Access And Education Services,Contract Hire-Operating Leases,Vehicles - Contract Hire,JC101,7/11/2019,577164,3592,REVENUE,LINKS TAXIS,100546
North East Lincolnshire Council,http://statistics.data.gov.uk/id/local-authority/00FC),Children & Family Services,Ass Dir - Education,Access And Education Services,Contract Hire-Operating Leases,Vehicles - Contract Hire,JC101,7/2/2019,575206,2000,REVENUE,REDACTED PERSONAL INFORMATION,REDACTED PERSONAL INFORMATION
North East Lincolnshire Council,http://statistics.data.gov.uk/id/local-authority/00FC),Children & Family Services,Ass Dir - Education,Access And Education Services,Contract Hire-Operating Leases,Vehicles - Contract Hire,JC101,7/9/2019,576072,1200,REVENUE,MINICABS CLEETHORPES (LINCS) LTD,102124
North East Lincolnshire Council,http://statistics.data.gov.uk/id/local-authority/00FC),Children & Family Services,Ass Dir - Education,Access And Education Services,Contract Hire-Operating Leases,Vehicles - Contract Hire,JC101,7/9/2019,576049,2310,REVENUE,AMVALE MEDICAL TRANSPORT LTD,130777
North East Lincolnshire Council,http://statistics.data.gov.uk/id/local-authority/00FC),Children & Family Services,Ass Dir - Education,Access And Education Services,Contract Hire-Operating Leases,Vehicles - Contract Hire,JC101,7/10/2019,576604,1030,REVENUE,LINKS TAXIS,100546
North East Lincolnshire Council,http://statistics.data.gov.uk/id/local-authority/00FC),Children & Family Services,Ass Dir - Education,Access And Education Services,Contract Hire-Operating Leases,Vehicles - Contract Hire,JC101,7/2/2019,575212,2186.1,REVENUE,GRIMSBY MINIBUSES LTD,121524
North East Lincolnshire Council,http://statistics.data.gov.uk/id/local-authority/00FC),Children & Family Services,Ass Dir - Education,Access And Education Services,Contract Hire-Operating Leases,Vehicles - Contract Hire,JC101,7/22/2019,578354,2064.65,REVENUE,GRIMSBY MINIBUSES LTD,121524
North East Lincolnshire Council,http://statistics.data.gov.uk/id/local-authority/00FC),Children & Family Services,Ass Dir - Education,Access And Education Services,Contract Hire-Operating Leases,Vehicles - Contract Hire,JC101,7/23/2019,578901,465,REVENUE,ANDY'S MINIBUS TAXI SERVICE,136184
North East Lincolnshire Council,http://statistics.data.gov.uk/id/local-authority/00FC),Children & Family Services,Ass Dir - Education,Access And Education Services,Contract Hire-Operating Leases,Vehicles - Contract Hire,JC101,7/2/2019,575039,575.62,REVENUE,REDACTED PERSONAL INFORMATION,REDACTED PERSONAL INFORMATION
North East Lincolnshire Council,http://statistics.data.gov.uk/id/local-authority/00FC),Children & Family Services,Ass Dir - Education,Access And Education Services,Contract Hire-Operating Leases,Vehicles - Contract Hire,JC101,7/31/2019,579951,1710,REVENUE,REDACTED PERSONAL INFORMATION,REDACTED PERSONAL INFORMATION
North East Lincolnshire Council,http://statistics.data.gov.uk/id/local-authority/00FC),Children & Family Services,Ass Dir - Education,Access And Education Services,Contract Hire-Operating Leases,Vehicles - Contract Hire,JC101,7/10/2019,576617,2794,REVENUE,LINKS TAXIS,100546
North East Lincolnshire Council,http://statistics.data.gov.uk/id/local-authority/00FC),Children & Family Services,Ass Dir - Education,Access And Education Services,Contract Hire-Operating Leases,Vehicles - Contract Hire,JC101,7/24/2019,578452,561,REVENUE,AA RADIO CARS LTD,101222
North East Lincolnshire Council,http://statistics.data.gov.uk/id/local-authority/00FC),Children & Family Services,Ass Dir - Education,Access And Education Services,Contract Hire-Operating Leases,Vehicles - Contract Hire,JC101,7/26/2019,579094,594,REVENUE,AA RADIO CARS LTD,101222
North East Lincolnshire Council,http://statistics.data.gov.uk/id/local-authority/00FC),Children & Family Services,Ass Dir - Education,Access And Education Services,Contract Hire-Operating Leases,Vehicles - Contract Hire,JC101,7/16/2019,577405,900,REVENUE,LINKS TAXIS,100546
North East Lincolnshire Council,http://statistics.data.gov.uk/id/local-authority/00FC),Children & Family Services,Ass Dir - Education,Access And Education Services,Contract Hire-Operating Leases,Vehicles - Contract Hire,JC101,7/8/2019,576080,522,REVENUE,COUNTRY CABS,101999
North East Lincolnshire Council,http://statistics.data.gov.uk/id/local-authority/00FC),Children & Family Services,Ass Dir - Education,Access And Education Services,Contract Hire-Operating Leases,Vehicles - Contract Hire,JC101,7/5/2019,575876,2555,REVENUE,THE BUS RUN,101522
North East Lincolnshire Council,http://statistics.data.gov.uk/id/local-authority/00FC),Children & Family Services,Ass Dir - Education,Access And Education Services,Contract Hire-Operating Leases,Vehicles - Contract Hire,JC101,7/31/2019,579400,2380,REVENUE,THE BUS RUN,101522
North East Lincolnshire Council,http://statistics.data.gov.uk/id/local-authority/00FC),Children & Family Services,Ass Dir - Education,Access And Education Services,Contract Hire-Operating Leases,Vehicles - Contract Hire,JC101,7/2/2019,575209,2534.4,REVENUE,GRIMSBY MINIBUSES LTD,121524
North East Lincolnshire Council,http://statistics.data.gov.uk/id/local-authority/00FC),Children & Family Services,Ass Dir - Education,Access And Education Services,Contract Hire-Operating Leases,Vehicles - Contract Hire,JC101,7/22/2019,578352,2393.6,REVENUE,GRIMSBY MINIBUSES LTD,121524
North East Lincolnshire Council,http://statistics.data.gov.uk/id/local-authority/00FC),Children & Family Services,Ass Dir - Education,Access And Education Services,Contract Hire-Operating Leases,Vehicles - Contract Hire,JC101,7/2/2019,575210,2525.4,REVENUE,GRIMSBY MINIBUSES LTD,121524
North East Lincolnshire Council,http://statistics.data.gov.uk/id/local-authority/00FC),Children & Family Services,Ass Dir - Education,Access And Education Services,Contract Hire-Operating Leases,Vehicles - Contract Hire,JC101,7/22/2019,578353,2385.1,REVENUE,GRIMSBY MINIBUSES LTD,121524
North East Lincolnshire Council,http://statistics.data.gov.uk/id/local-authority/00FC),Children & Family Services,Ass Dir - Education,Access And Education Services,Contract Hire-Operating Leases,Vehicles - Contract Hire,JC101,7/8/2019,576066,810,REVENUE,MINICABS CLEETHORPES (LINCS) LTD,102124
North East Lincolnshire Council,http://statistics.data.gov.uk/id/local-authority/00FC),Children & Family Services,Ass Dir - Education,Access And Education Services,Contract Hire-Operating Leases,Vehicles - Contract Hire,JC101,7/10/2019,576607,720,REVENUE,LINKS TAXIS,100546
North East Lincolnshire Council,http://statistics.data.gov.uk/id/local-authority/00FC),Children & Family Services,Ass Dir - Education,Access And Education Services,Contract Hire-Operating Leases,Vehicles - Contract Hire,JC101,7/8/2019,576069,1080,REVENUE,MINICABS CLEETHORPES (LINCS) LTD,102124
North East Lincolnshire Council,http://statistics.data.gov.uk/id/local-authority/00FC),Children & Family Services,Ass Dir - Education,Access And Education Services,Contract Hire-Operating Leases,Vehicles - Contract Hire,JC101,7/4/2019,575067,504,REVENUE,COXONS CARS LIMITED,100578
North East Lincolnshire Council,http://statistics.data.gov.uk/id/local-authority/00FC),Children & Family Services,Ass Dir - Education,Access And Education Services,Contract Hire-Operating Leases,Vehicles - Contract Hire,JC101,7/26/2019,579360,476,REVENUE,COXONS CARS LIMITED,100578
North East Lincolnshire Council,http://statistics.data.gov.uk/id/local-authority/00FC),Children & Family Services,Ass Dir - Education,Access And Education Services,Contract Hire-Operating Leases,Vehicles - Contract Hire,JC101,7/16/2019,577410,846,REVENUE,LINKS TAXIS,100546
North East Lincolnshire Council,http://statistics.data.gov.uk/id/local-authority/00FC),Children & Family Services,Ass Dir - Education,Access And Education Services,Contract Hire-Operating Leases,Vehicles - Contract Hire,JC101,7/3/2019,575123,580,REVENUE,COXONS CARS LIMITED,100578
North East Lincolnshire Council,http://statistics.data.gov.uk/id/local-authority/00FC),Children & Family Services,Ass Dir - Education,Access And Education Services,Contract Hire-Operating Leases,Vehicles - Contract Hire,JC101,7/26/2019,579364,548,REVENUE,COXONS CARS LIMITED,100578
North East Lincolnshire Council,http://statistics.data.gov.uk/id/local-authority/00FC),Children & Family Services,Ass Dir - Education,Access And Education Services,Contract Hire-Operating Leases,Vehicles - Contract Hire,JC101,7/10/2019,576606,810,REVENUE,LINKS TAXIS,100546
North East Lincolnshire Council,http://statistics.data.gov.uk/id/local-authority/00FC),Children & Family Services,Ass Dir - Education,Access And Education Services,Contract Hire-Operating Leases,Vehicles - Contract Hire,JC101,7/4/2019,575070,665,REVENUE,COXONS CARS LIMITED,100578
North East Lincolnshire Council,http://statistics.data.gov.uk/id/local-authority/00FC),Children & Family Services,Ass Dir - Education,Access And Education Services,Contract Hire-Operating Leases,Vehicles - Contract Hire,JC101,7/26/2019,579359,570,REVENUE,COXONS CARS LIMITED,100578
North East Lincolnshire Council,http://statistics.data.gov.uk/id/local-authority/00FC),Children & Family Services,Ass Dir - Education,Access And Education Services,Contract Hire-Operating Leases,Vehicles - Contract Hire,JC101,7/9/2019,576074,810,REVENUE,MINICABS CLEETHORPES (LINCS) LTD,102124
North East Lincolnshire Council,http://statistics.data.gov.uk/id/local-authority/00FC),Children & Family Services,Ass Dir - Education,Access And Education Services,Contract Hire-Operating Leases,Vehicles - Contract Hire,JC101,7/10/2019,576618,1110,REVENUE,LINKS TAXIS,100546
North East Lincolnshire Council,http://statistics.data.gov.uk/id/local-authority/00FC),Children & Family Services,Ass Dir - Education,Access And Education Services,Contract Hire-Operating Leases,Vehicles - Contract Hire,JC101,7/10/2019,576614,540,REVENUE,LINKS TAXIS,100546
North East Lincolnshire Council,http://statistics.data.gov.uk/id/local-authority/00FC),Children & Family Services,Ass Dir - Education,Access And Education Services,Contract Hire-Operating Leases,Vehicles - Contract Hire,JC101,7/16/2019,577403,1131,REVENUE,LINKS TAXIS,100546
North East Lincolnshire Council,http://statistics.data.gov.uk/id/local-authority/00FC),Children & Family Services,Ass Dir - Education,Access And Education Services,Contract Hire-Operating Leases,Vehicles - Contract Hire,JC101,7/30/2019,579231,2000,REVENUE,HANSONS AIRPORT EXPRESS,111879
North East Lincolnshire Council,http://statistics.data.gov.uk/id/local-authority/00FC),Children & Family Services,Ass Dir - Education,Access And Education Services,Contract Hire-Operating Leases,Vehicles - Contract Hire,JC101,7/31/2019,579948,1700,REVENUE,HANSONS AIRPORT EXPRESS,111879
North East Lincolnshire Council,http://statistics.data.gov.uk/id/local-authority/00FC),Children & Family Services,Ass Dir - Education,Access And Education Services,Contract Hire-Operating Leases,Vehicles - Contract Hire,JC101,7/2/2019,575038,2000,REVENUE,HANSONS AIRPORT EXPRESS,111879
North East Lincolnshire Council,http://statistics.data.gov.uk/id/local-authority/00FC),Children & Family Services,Ass Dir - Education,Access And Education Services,Contract Hire-Operating Leases,Vehicles - Contract Hire,JC101,7/31/2019,579947,1700,REVENUE,HANSONS AIRPORT EXPRESS,111879
North East Lincolnshire Council,http://statistics.data.gov.uk/id/local-authority/00FC),Children & Family Services,Ass Dir - Education,Access And Education Services,Contract Hire-Operating Leases,Vehicles - Contract Hire,JC101,7/8/2019,576018,2232,REVENUE,AMVALE MEDICAL TRANSPORT LTD,130777
North East Lincolnshire Council,http://statistics.data.gov.uk/id/local-authority/00FC),Children & Family Services,Ass Dir - Education,Access And Education Services,Contract Hire-Operating Leases,Vehicles - Contract Hire,JC101,7/9/2019,576076,1327.5,REVENUE,MINICABS CLEETHORPES (LINCS) LTD,102124
North East Lincolnshire Council,http://statistics.data.gov.uk/id/local-authority/00FC),Children & Family Services,Ass Dir - Education,Access And Education Services,Contract Hire-Operating Leases,Vehicles - Contract Hire,JC101,7/2/2019,575022,820,REVENUE,AMVALE LIMITED,101030
North East Lincolnshire Council,http://statistics.data.gov.uk/id/local-authority/00FC),Children & Family Services,Ass Dir - Education,Access And Education Services,Contract Hire-Operating Leases,Vehicles - Contract Hire,JC101,7/31/2019,579930,820,REVENUE,AMVALE LIMITED,101030
North East Lincolnshire Council,http://statistics.data.gov.uk/id/local-authority/00FC),Children & Family Services,Ass Dir - Education,Access And Education Services,Contract Hire-Operating Leases,Vehicles - Contract Hire,JC101,7/2/2019,575041,820,REVENUE,AMVALE LIMITED,101030
North East Lincolnshire Council,http://statistics.data.gov.uk/id/local-authority/00FC),Children & Family Services,Ass Dir - Education,Access And Education Services,Contract Hire-Operating Leases,Vehicles - Contract Hire,JC101,7/31/2019,579928,820,REVENUE,AMVALE LIMITED,101030
North East Lincolnshire Council,http://statistics.data.gov.uk/id/local-authority/00FC),Children & Family Services,Ass Dir - Education,Access And Education Services,Contract Hire-Operating Leases,Vehicles - Contract Hire,JC101,7/8/2019,576070,990,REVENUE,MINICABS CLEETHORPES (LINCS) LTD,102124
North East Lincolnshire Council,http://statistics.data.gov.uk/id/local-authority/00FC),Children & Family Services,Ass Dir - Education,Access And Education Services,Contract Hire-Operating Leases,Vehicles - Contract Hire,JC101,7/4/2019,575681,841.5,REVENUE,REDACTED PERSONAL INFORMATION,REDACTED PERSONAL INFORMATION
North East Lincolnshire Council,http://statistics.data.gov.uk/id/local-authority/00FC),Children & Family Services,Ass Dir - Education,Access And Education Services,Contract Hire-Operating Leases,Vehicles - Contract Hire,JC101,7/8/2019,576071,1008,REVENUE,MINICABS CLEETHORPES (LINCS) LTD,102124
North East Lincolnshire Council,http://statistics.data.gov.uk/id/local-authority/00FC),Children & Family Services,Ass Dir - Education,Access And Education Services,Contract Hire-Operating Leases,Vehicles - Contract Hire,JC101,7/10/2019,576611,850,REVENUE,LINKS TAXIS,100546
North East Lincolnshire Council,http://statistics.data.gov.uk/id/local-authority/00FC),Children & Family Services,Ass Dir - Education,Access And Education Services,Contract Hire-Operating Leases,Vehicles - Contract Hire,JC101,7/11/2019,576640,1740,REVENUE,LINKS TAXIS,100546
North East Lincolnshire Council,http://statistics.data.gov.uk/id/local-authority/00FC),Children & Family Services,Ass Dir - Education,Access And Education Services,Contract Hire-Operating Leases,Vehicles - Contract Hire,JC101,7/8/2019,576019,3040,REVENUE,AMVALE MEDICAL TRANSPORT LTD,130777
North East Lincolnshire Council,http://statistics.data.gov.uk/id/local-authority/00FC),Children & Family Services,Ass Dir - Education,Access And Education Services,Contract Hire-Operating Leases,Vehicles - Contract Hire,JC101,7/11/2019,576573,936,REVENUE,DRS TAXI SERVICE,141083
North East Lincolnshire Council,http://statistics.data.gov.uk/id/local-authority/00FC),Children & Family Services,Ass Dir - Education,Access And Education Services,Contract Hire-Operating Leases,Vehicles - Contract Hire,JC101,7/11/2019,576073,1520,REVENUE,MINICABS CLEETHORPES (LINCS) LTD,102124
North East Lincolnshire Council,http://statistics.data.gov.uk/id/local-authority/00FC),Children & Family Services,Ass Dir - Education,Access And Education Services,Contract Hire-Operating Leases,Vehicles - Contract Hire,JC101,7/16/2019,577400,1710,REVENUE,LINKS TAXIS,100546
North East Lincolnshire Council,http://statistics.data.gov.uk/id/local-authority/00FC),Children & Family Services,Ass Dir - Education,Access And Education Services,Contract Hire-Operating Leases,Vehicles - Contract Hire,JC101,7/10/2019,576605,1720,REVENUE,LINKS TAXIS,100546
North East Lincolnshire Council,http://statistics.data.gov.uk/id/local-authority/00FC),Children & Family Services,Ass Dir - Education,Access And Education Services,Contract Hire-Operating Leases,Vehicles - Contract Hire,JC101,7/11/2019,576013,6000,REVENUE,AMVALE MEDICAL TRANSPORT LTD,130777
North East Lincolnshire Council,http://statistics.data.gov.uk/id/local-authority/00FC),Children & Family Services,Ass Dir - Education,Access And Education Services,Contract Hire-Operating Leases,Vehicles - Contract Hire,JC101,7/4/2019,575719,3393,REVENUE,WATAXIS,141297
North East Lincolnshire Council,http://statistics.data.gov.uk/id/local-authority/00FC),Children & Family Services,Ass Dir - Education,Access And Education Services,Contract Hire-Operating Leases,Vehicles - Contract Hire,JC101,7/16/2019,577430,2215,REVENUE,LINKS TAXIS,100546
North East Lincolnshire Council,http://statistics.data.gov.uk/id/local-authority/00FC),Children & Family Services,Ass Dir - Education,Access And Education Services,Contract Hire-Operating Leases,Vehicles - Contract Hire,JC101,7/16/2019,577407,2375,REVENUE,LINKS TAXIS,100546
North East Lincolnshire Council,http://statistics.data.gov.uk/id/local-authority/00FC),Children & Family Services,Ass Dir - Education,Access And Education Services,Contract Hire-Operating Leases,Vehicles - Contract Hire,JC101,7/11/2019,577162,362,REVENUE,LINKS TAXIS,100546
North East Lincolnshire Council,http://statistics.data.gov.uk/id/local-authority/00FC),Children & Family Services,Ass Dir - Education,Access And Education Services,Contract Hire-Operating Leases,Vehicles - Contract Hire,JC101,7/16/2019,577398,682.5,REVENUE,LINKS TAXIS,100546
North East Lincolnshire Council,http://statistics.data.gov.uk/id/local-authority/00FC),Children & Family Services,Ass Dir - Education,Access And Education Services,Contract Hire-Operating Leases,Vehicles - Contract Hire,JC101,7/16/2019,577411,725,REVENUE,LINKS TAXIS,100546
North East Lincolnshire Council,http://statistics.data.gov.uk/id/local-authority/00FC),Children & Family Services,Ass Dir - Education,Access And Education Services,Contract Hire-Operating Leases,Vehicles - Contract Hire,JC101,7/10/2019,576095,289,REVENUE,LINKS TAXIS,100546
North East Lincolnshire Council,http://statistics.data.gov.uk/id/local-authority/00FC),Children & Family Services,Ass Dir - Education,Access And Education Services,Contract Hire-Operating Leases,Vehicles - Contract Hire,JC101,7/11/2019,576963,600,REVENUE,LINKS TAXIS,100546
North East Lincolnshire Council,http://statistics.data.gov.uk/id/local-authority/00FC),Children & Family Services,Ass Dir - Education,Access And Education Services,Contract Hire-Operating Leases,Vehicles - Contract Hire,JC101,7/22/2019,578348,470,REVENUE,AA RADIO CARS LTD,101222
North East Lincolnshire Council,http://statistics.data.gov.uk/id/local-authority/00FC),Children & Family Services,Ass Dir - Education,Access And Education Services,Contract Hire-Operating Leases,Vehicles - Contract Hire,JC101,7/26/2019,579096,752,REVENUE,AA RADIO CARS LTD,101222
North East Lincolnshire Council,http://statistics.data.gov.uk/id/local-authority/00FC),Children & Family Services,Ass Dir - Education,Access And Education Services,Contract Hire-Operating Leases,Vehicles - Contract Hire,JC101,7/8/2019,576078,1000,REVENUE,MINICABS CLEETHORPES (LINCS) LTD,102124
North East Lincolnshire Council,http://statistics.data.gov.uk/id/local-authority/00FC),Children & Family Services,Ass Dir - Education,Access And Education Services,Contract Hire-Operating Leases,Vehicles - Contract Hire,JC101,7/10/2019,576556,880,REVENUE,LINKS TAXIS,100546
North East Lincolnshire Council,http://statistics.data.gov.uk/id/local-authority/00FC),Children & Family Services,Ass Dir - Education,Access And Education Services,Contract Hire-Operating Leases,Vehicles - Contract Hire,JC101,7/9/2019,575668,996,REVENUE,LINKS TAXIS,100546
North East Lincolnshire Council,http://statistics.data.gov.uk/id/local-authority/00FC),Children & Family Services,Ass Dir - Education,Access And Education Services,Contract Hire-Operating Leases,Vehicles - Contract Hire,JC101,7/11/2019,577163,1282.5,REVENUE,LINKS TAXIS,100546
North East Lincolnshire Council,http://statistics.data.gov.uk/id/local-authority/00FC),Children & Family Services,Ass Dir - Education,Access And Education Services,Contract Hire-Operating Leases,Vehicles - Contract Hire,JC101,7/10/2019,576557,704,REVENUE,LINKS TAXIS,100546
North East Lincolnshire Council,http://statistics.data.gov.uk/id/local-authority/00FC),Children & Family Services,Ass Dir - Education,Access And Education Services,Contract Hire-Operating Leases,Vehicles - Contract Hire,JC101,7/10/2019,576626,365.25,REVENUE,LINKS TAXIS,100546
North East Lincolnshire Council,http://statistics.data.gov.uk/id/local-authority/00FC),Children & Family Services,Ass Dir - Education,Access And Education Services,Contract Hire-Operating Leases,Vehicles - Contract Hire,JC101,7/8/2019,576079,2700,REVENUE,MINICABS CLEETHORPES (LINCS) LTD,102124
North East Lincolnshire Council,http://statistics.data.gov.uk/id/local-authority/00FC),Children & Family Services,Ass Dir - Education,Access And Education Services,Contract Hire-Operating Leases,Vehicles - Contract Hire,JC101,7/11/2019,576015,2580,REVENUE,AMVALE MEDICAL TRANSPORT LTD,130777
North East Lincolnshire Council,http://statistics.data.gov.uk/id/local-authority/00FC),Children & Family Services,Ass Dir - Education,Access And Education Services,Contract Hire-Operating Leases,Vehicles - Contract Hire,JC101,7/11/2019,576008,4340,REVENUE,AMVALE MEDICAL TRANSPORT LTD,130777
North East Lincolnshire Council,http://statistics.data.gov.uk/id/local-authority/00FC),Children & Family Services,Ass Dir - Education,Access And Education Services,Contract Hire-Operating Leases,Vehicles - Contract Hire,JC101,7/10/2019,576601,1100,REVENUE,LINKS TAXIS,100546
North East Lincolnshire Council,http://statistics.data.gov.uk/id/local-authority/00FC),Children & Family Services,Ass Dir - Education,Access And Education Services,Contract Hire-Operating Leases,Vehicles - Contract Hire,JC101,7/22/2019,578351,1060,REVENUE,AA RADIO CARS LTD,101222
North East Lincolnshire Council,http://statistics.data.gov.uk/id/local-authority/00FC),Children & Family Services,Ass Dir - Education,Access And Education Services,Contract Hire-Operating Leases,Vehicles - Contract Hire,JC101,7/26/2019,579089,1060,REVENUE,AA RADIO CARS LTD,101222
North East Lincolnshire Council,http://statistics.data.gov.uk/id/local-authority/00FC),Children & Family Services,Ass Dir - Education,Access And Education Services,Contract Hire-Operating Leases,Vehicles - Contract Hire,JC101,7/2/2019,575208,1200,REVENUE,WATAXIS,141297
North East Lincolnshire Council,http://statistics.data.gov.uk/id/local-authority/00FC),Children & Family Services,Ass Dir - Education,Access And Education Services,Contract Hire-Operating Leases,Vehicles - Contract Hire,JC101,7/11/2019,576016,5480,REVENUE,AMVALE MEDICAL TRANSPORT LTD,130777
North East Lincolnshire Council,http://statistics.data.gov.uk/id/local-authority/00FC),Children & Family Services,Ass Dir - Education,Access And Education Services,Contract Hire-Operating Leases,Vehicles - Contract Hire,JC101,7/16/2019,577404,1400,REVENUE,LINKS TAXIS,100546
North East Lincolnshire Council,http://statistics.data.gov.uk/id/local-authority/00FC),Children & Family Services,Ass Dir - Education,Access And Education Services,Contract Hire-Operating Leases,Vehicles - Contract Hire,JC101,7/11/2019,576002,2380,REVENUE,AMVALE MEDICAL TRANSPORT LTD,130777
North East Lincolnshire Council,http://statistics.data.gov.uk/id/local-authority/00FC),Children & Family Services,Ass Dir - Education,Access And Education Services,Contract Hire-Operating Leases,Vehicles - Contract Hire,JC101,7/4/2019,575068,912,REVENUE,COXONS CARS LIMITED,100578
North East Lincolnshire Council,http://statistics.data.gov.uk/id/local-authority/00FC),Children & Family Services,Ass Dir - Education,Access And Education Services,Contract Hire-Operating Leases,Vehicles - Contract Hire,JC101,7/26/2019,579358,768,REVENUE,COXONS CARS LIMITED,100578
North East Lincolnshire Council,http://statistics.data.gov.uk/id/local-authority/00FC),Children & Family Services,Ass Dir - Education,Access And Education Services,Contract Hire-Operating Leases,Vehicles - Contract Hire,JC101,7/2/2019,575121,1325,REVENUE,COXONS CARS LIMITED,100578
North East Lincolnshire Council,http://statistics.data.gov.uk/id/local-authority/00FC),Children & Family Services,Ass Dir - Education,Access And Education Services,Contract Hire-Operating Leases,Vehicles - Contract Hire,JC101,7/10/2019,576628,640,REVENUE,LINKS TAXIS,100546
North East Lincolnshire Council,http://statistics.data.gov.uk/id/local-authority/00FC),Children & Family Services,Ass Dir - Education,Access And Education Services,Contract Hire-Operating Leases,Vehicles - Contract Hire,JC101,7/2/2019,575118,384,REVENUE,COXONS CARS LIMITED,100578
North East Lincolnshire Council,http://statistics.data.gov.uk/id/local-authority/00FC),Children & Family Services,Ass Dir - Education,Access And Education Services,Contract Hire-Operating Leases,Vehicles - Contract Hire,JC101,7/26/2019,579363,276,REVENUE,COXONS CARS LIMITED,100578
North East Lincolnshire Council,http://statistics.data.gov.uk/id/local-authority/00FC),Children & Family Services,Ass Dir - Education,Access And Education Services,Contract Hire-Operating Leases,Vehicles - Contract Hire,JC101,7/3/2019,575119,576,REVENUE,COXONS CARS LIMITED,100578
North East Lincolnshire Council,http://statistics.data.gov.uk/id/local-authority/00FC),Children & Family Services,Ass Dir - Education,Access And Education Services,Contract Hire-Operating Leases,Vehicles - Contract Hire,JC101,7/26/2019,579362,544,REVENUE,COXONS CARS LIMITED,100578
North East Lincolnshire Council,http://statistics.data.gov.uk/id/local-authority/00FC),Children & Family Services,Ass Dir - Education,Access And Education Services,Contract Hire-Operating Leases,Vehicles - Contract Hire,JC101,7/5/2019,575864,462,REVENUE,COXONS CARS LIMITED,100578
North East Lincolnshire Council,http://statistics.data.gov.uk/id/local-authority/00FC),Children & Family Services,Ass Dir - Education,Access And Education Services,Contract Hire-Operating Leases,Vehicles - Contract Hire,JC101,7/26/2019,579361,561,REVENUE,COXONS CARS LIMITED,100578
North East Lincolnshire Council,http://statistics.data.gov.uk/id/local-authority/00FC),Children & Family Services,Ass Dir - Education,Access And Education Services,Contract Hire-Operating Leases,Vehicles - Contract Hire,JC101,7/10/2019,576620,500,REVENUE,LINKS TAXIS,100546
North East Lincolnshire Council,http://statistics.data.gov.uk/id/local-authority/00FC),Children & Family Services,Ass Dir - Education,Access And Education Services,Contract Hire-Operating Leases,Vehicles - Contract Hire,JC101,7/9/2019,576077,822.8,REVENUE,MINICABS CLEETHORPES (LINCS) LTD,102124
North East Lincolnshire Council,http://statistics.data.gov.uk/id/local-authority/00FC),Children & Family Services,Ass Dir - Education,Access And Education Services,Contract Hire-Operating Leases,Vehicles - Contract Hire,JC101,7/16/2019,577409,1225,REVENUE,LINKS TAXIS,100546
North East Lincolnshire Council,http://statistics.data.gov.uk/id/local-authority/00FC),Children & Family Services,Ass Dir - Education,Access And Education Services,Contract Hire-Operating Leases,Vehicles - Contract Hire,JC101,7/22/2019,578359,516,REVENUE,AA RADIO CARS LTD,101222
North East Lincolnshire Council,http://statistics.data.gov.uk/id/local-authority/00FC),Children & Family Services,Ass Dir - Education,Access And Education Services,Contract Hire-Operating Leases,Vehicles - Contract Hire,JC101,7/26/2019,579092,688,REVENUE,AA RADIO CARS LTD,101222
North East Lincolnshire Council,http://statistics.data.gov.uk/id/local-authority/00FC),Children & Family Services,Ass Dir - Education,Access And Education Services,Contract Hire-Operating Leases,Vehicles - Contract Hire,JC101,7/5/2019,575671,440,REVENUE,LINKS TAXIS,100546
North East Lincolnshire Council,http://statistics.data.gov.uk/id/local-authority/00FC),Children & Family Services,Ass Dir - Education,Access And Education Services,Contract Hire-Operating Leases,Vehicles - Contract Hire,JC101,7/10/2019,576602,500,REVENUE,LINKS TAXIS,100546
North East Lincolnshire Council,http://statistics.data.gov.uk/id/local-authority/00FC),Children & Family Services,Ass Dir - Education,Access And Education Services,Contract Hire-Operating Leases,Vehicles - Contract Hire,JC101,7/16/2019,577408,1240,REVENUE,LINKS TAXIS,100546
North East Lincolnshire Council,http://statistics.data.gov.uk/id/local-authority/00FC),Children & Family Services,Ass Dir - Education,Access And Education Services,Contract Hire-Operating Leases,Vehicles - Contract Hire,JC101,7/4/2019,575207,440,REVENUE,WATAXIS,141297
North East Lincolnshire Council,http://statistics.data.gov.uk/id/local-authority/00FC),Children & Family Services,Ass Dir - Education,Access And Education Services,Contract Hire-Operating Leases,Vehicles - Contract Hire,JC101,7/4/2019,575720,468,REVENUE,WATAXIS,141297
North East Lincolnshire Council,http://statistics.data.gov.uk/id/local-authority/00FC),Children & Family Services,Ass Dir - Education,Access And Education Services,Contract Hire-Operating Leases,Vehicles - Contract Hire,JC101,7/22/2019,578349,572,REVENUE,AA RADIO CARS LTD,101222
North East Lincolnshire Council,http://statistics.data.gov.uk/id/local-authority/00FC),Children & Family Services,Ass Dir - Education,Access And Education Services,Contract Hire-Operating Leases,Vehicles - Contract Hire,JC101,7/26/2019,579095,880,REVENUE,AA RADIO CARS LTD,101222
North East Lincolnshire Council,http://statistics.data.gov.uk/id/local-authority/00FC),Children & Family Services,Ass Dir - Education,Access And Education Services,Contract Hire-Operating Leases,Vehicles - Contract Hire,JC101,7/4/2019,575717,600,REVENUE,REDACTED PERSONAL INFORMATION,REDACTED PERSONAL INFORMATION
North East Lincolnshire Council,http://statistics.data.gov.uk/id/local-authority/00FC),Children & Family Services,Ass Dir - Education,Access And Education Services,Contract Hire-Operating Leases,Vehicles - Contract Hire,JC101,7/4/2019,575725,1400,REVENUE,HANSONS AIRPORT EXPRESS,111879
North East Lincolnshire Council,http://statistics.data.gov.uk/id/local-authority/00FC),Children & Family Services,Ass Dir - Education,Access And Education Services,Contract Hire-Operating Leases,Vehicles - Contract Hire,JC101,7/31/2019,579945,1300,REVENUE,HANSONS AIRPORT EXPRESS,111879
North East Lincolnshire Council,http://statistics.data.gov.uk/id/local-authority/00FC),Children & Family Services,Ass Dir - Education,Access And Education Services,Contract Hire-Operating Leases,Vehicles - Contract Hire,JC101,7/5/2019,575721,774,REVENUE,MOTORVATION TRAINING LTD,138704
North East Lincolnshire Council,http://statistics.data.gov.uk/id/local-authority/00FC),Children & Family Services,Ass Dir - Education,Access And Education Services,Contributions To Provisions,Contributions - Other,LK103,7/25/2019,707936,418.06,REVENUE,REDACTED PERSONAL INFORMATION,REDACTED PERSONAL INFORMATION
North East Lincolnshire Council,http://statistics.data.gov.uk/id/local-authority/00FC),Children & Family Services,Ass Dir - Education,Access And Education Services,Contributions To Provisions,Contributions - Other,LK103,7/17/2019,706160,311.1,REVENUE,REDACTED PERSONAL INFORMATION,REDACTED PERSONAL INFORMATION
North East Lincolnshire Council,http://statistics.data.gov.uk/id/local-authority/00FC),Children & Family Services,Ass Dir - Education,Access And Education Services,Contributions To Provisions,Contributions - Other,LK103,7/16/2019,704962,460.9,REVENUE,REDACTED PERSONAL INFORMATION,REDACTED PERSONAL INFORMATION
North East Lincolnshire Council,http://statistics.data.gov.uk/id/local-authority/00FC),Children & Family Services,Ass Dir - Education,Access And Education Services,Direct Employee Expenses,Agency Supply Teachers,EA104,7/22/2019,578361,575,REVENUE,AMY NAYLOR,133863
North East Lincolnshire Council,http://statistics.data.gov.uk/id/local-authority/00FC),Children & Family Services,Ass Dir - Education,Access And Education Services,Direct Employee Expenses,Agency Supply Teachers,EA104,7/10/2019,576529,300,REVENUE,MATT GIDLOW,103864
North East Lincolnshire Council,http://statistics.data.gov.uk/id/local-authority/00FC),Children & Family Services,Ass Dir - Education,Access And Education Services,Direct Employee Expenses,Agency Supply Teachers,EA104,7/15/2019,577374,315,REVENUE,ELIZABETH GRIFFIN,139846
North East Lincolnshire Council,http://statistics.data.gov.uk/id/local-authority/00FC),Children & Family Services,Ass Dir - Education,Access And Education Services,Direct Employee Expenses,Agency Supply Teachers,EA104,7/10/2019,576537,300,REVENUE,ZOE EVERATT,106842
North East Lincolnshire Council,http://statistics.data.gov.uk/id/local-authority/00FC),Children & Family Services,Ass Dir - Education,Access And Education Services,Direct Employee Expenses,Agency Supply Teachers,EA104,7/11/2019,576906,320,REVENUE,ZOE EVERATT,106842
North East Lincolnshire Council,http://statistics.data.gov.uk/id/local-authority/00FC),Children & Family Services,Ass Dir - Education,Access And Education Services,Direct Employee Expenses,Agency Supply Teachers,EA104,7/22/2019,578303,300,REVENUE,MRS RUTH HART,101928
North East Lincolnshire Council,http://statistics.data.gov.uk/id/local-authority/00FC),Children & Family Services,Ass Dir - Education,Access And Education Services,Direct Employee Expenses,Agency Supply Teachers,EA104,7/22/2019,578304,300,REVENUE,MRS RUTH HART,101928
North East Lincolnshire Council,http://statistics.data.gov.uk/id/local-authority/00FC),Children & Family Services,Ass Dir - Education,Access And Education Services,Direct Employee Expenses,Agency Supply Teachers,EA104,7/22/2019,578302,750,REVENUE,MRS RUTH HART,101928
North East Lincolnshire Council,http://statistics.data.gov.uk/id/local-authority/00FC),Children & Family Services,Ass Dir - Education,Access And Education Services,Direct Employee Expenses,Agency Supply Teachers,EA104,7/19/2019,578218,690,REVENUE,JOSHUA ENGLAND,122088
North East Lincolnshire Council,http://statistics.data.gov.uk/id/local-authority/00FC),Children & Family Services,Ass Dir - Education,Access And Education Services,Direct Employee Expenses,Agency Supply Teachers,EA104,7/4/2019,575219,420,REVENUE,CAROLINE MASSDAM GOOCH,104894
North East Lincolnshire Council,http://statistics.data.gov.uk/id/local-authority/00FC),Children & Family Services,Ass Dir - Education,Access And Education Services,Direct Employee Expenses,Agency Supply Teachers,EA104,7/19/2019,578203,500,REVENUE,MUSIC LINCS LTD,100944
North East Lincolnshire Council,http://statistics.data.gov.uk/id/local-authority/00FC),Children & Family Services,Ass Dir - Education,Access And Education Services,Direct Employee Expenses,Agency Supply Teachers,EA104,7/19/2019,578185,300,REVENUE,MUSIC LINCS LTD,100944
North East Lincolnshire Council,http://statistics.data.gov.uk/id/local-authority/00FC),Children & Family Services,Ass Dir - Education,Access And Education Services,Direct Employee Expenses,Agency Supply Teachers,EA104,7/19/2019,578193,300,REVENUE,MUSIC LINCS LTD,100944
North East Lincolnshire Council,http://statistics.data.gov.uk/id/local-authority/00FC),Children & Family Services,Ass Dir - Education,Access And Education Services,Direct Employee Expenses,Agency Supply Teachers,EA104,7/2/2019,574981,262.5,REVENUE,CLARE O'CONNELL,133840
North East Lincolnshire Council,http://statistics.data.gov.uk/id/local-authority/00FC),Children & Family Services,Ass Dir - Education,Access And Education Services,Direct Employee Expenses,Agency Supply Teachers,EA104,7/15/2019,577382,270,REVENUE,KEVIN ROGERS,101480
North East Lincolnshire Council,http://statistics.data.gov.uk/id/local-authority/00FC),Children & Family Services,Ass Dir - Education,Access And Education Services,Direct Employee Expenses,Agency Supply Teachers,EA104,7/15/2019,577383,450,REVENUE,KEVIN ROGERS,101480
North East Lincolnshire Council,http://statistics.data.gov.uk/id/local-authority/00FC),Children & Family Services,Ass Dir - Education,Access And Education Services,Direct Employee Expenses,Agency Supply Teachers,EA104,7/15/2019,577273,1125,REVENUE,ANDREW IAN TAYLOR MUSIC,139100
North East Lincolnshire Council,http://statistics.data.gov.uk/id/local-authority/00FC),Children & Family Services,Ass Dir - Education,Access And Education Services,Direct Employee Expenses,Agency Supply Teachers,EA104,7/17/2019,577905,650,REVENUE,JOANNE TOWNELL,103709
North East Lincolnshire Council,http://statistics.data.gov.uk/id/local-authority/00FC),Children & Family Services,Ass Dir - Education,Access And Education Services,Direct Employee Expenses,Agency Supply Teachers,EA104,7/2/2019,575036,2587.33,REVENUE,FRANCESCA WHITE,102116
North East Lincolnshire Council,http://statistics.data.gov.uk/id/local-authority/00FC),Children & Family Services,Ass Dir - Education,Access And Education Services,Direct Employee Expenses,Agency Supply Teachers,EA104,7/5/2019,575878,340,REVENUE,KEVIN ROGERS,101480
North East Lincolnshire Council,http://statistics.data.gov.uk/id/local-authority/00FC),Children & Family Services,Ass Dir - Education,Access And Education Services,Direct Employee Expenses,Agency Supply Teachers,EA104,7/26/2019,578885,450,REVENUE,KEVIN ROGERS,101480
North East Lincolnshire Council,http://statistics.data.gov.uk/id/local-authority/00FC),Children & Family Services,Ass Dir - Education,Access And Education Services,Direct Employee Expenses,Agency Supply Teachers,EA104,7/2/2019,575035,2750,REVENUE,JACQUELINE KIRWIN,107311
North East Lincolnshire Council,http://statistics.data.gov.uk/id/local-authority/00FC),Children & Family Services,Ass Dir - Education,Access And Education Services,Direct Employee Expenses,Agency Supply Teachers,EA104,7/15/2019,577264,405,REVENUE,JOSHUA ENGLAND,122088
North East Lincolnshire Council,http://statistics.data.gov.uk/id/local-authority/00FC),Children & Family Services,Ass Dir - Education,Access And Education Services,Direct Employee Expenses,Agency Supply Teachers,EA104,7/22/2019,578187,530,REVENUE,CHARLOTTE HUBBARD,139924
North East Lincolnshire Council,http://statistics.data.gov.uk/id/local-authority/00FC),Children & Family Services,Ass Dir - Education,Access And Education Services,Direct Employee Expenses,Agency Supply Teachers,EA104,7/24/2019,578531,425,REVENUE,SAMUEL CARLTON,139890
North East Lincolnshire Council,http://statistics.data.gov.uk/id/local-authority/00FC),Children & Family Services,Ass Dir - Education,Access And Education Services,Direct Employee Expenses,Agency Supply Teachers,EA104,7/23/2019,578849,3175,REVENUE,DAVID J COOK,100937
North East Lincolnshire Council,http://statistics.data.gov.uk/id/local-authority/00FC),Children & Family Services,Ass Dir - Education,Access And Education Services,Direct Employee Expenses,Agency Supply Teachers,EA104,7/26/2019,578938,570,REVENUE,MRS RUTH HART,101928
North East Lincolnshire Council,http://statistics.data.gov.uk/id/local-authority/00FC),Children & Family Services,Ass Dir - Education,Access And Education Services,Rents,Rent,GC101,7/19/2019,578180,1250,REVENUE,JOHN WHITGIFT ACADEMY,106898
North East Lincolnshire Council,http://statistics.data.gov.uk/id/local-authority/00FC),Children & Family Services,Ass Dir - Education,Access And Education Services,Other Agencies,Performers,PJ101,7/11/2019,576091,1500,REVENUE,AMVALE LIMITED,101030
North East Lincolnshire Council,http://statistics.data.gov.uk/id/local-authority/00FC),Children & Family Services,Ass Dir - Education,Access And Education Services,Other Agencies,Performers,PJ101,7/4/2019,575222,400,REVENUE,CAROLINE MASSDAM GOOCH,104894
North East Lincolnshire Council,http://statistics.data.gov.uk/id/local-authority/00FC),Children & Family Services,Ass Dir - Education,Access And Education Services,Other Agencies,Performers,PJ101,7/17/2019,577839,350,REVENUE,STEPHEN J PRICE,133874
North East Lincolnshire Council,http://statistics.data.gov.uk/id/local-authority/00FC),Children & Family Services,Ass Dir - Education,Access And Education Services,Other Agencies,Performers,PJ101,7/26/2019,578865,450,REVENUE,DAVID LEE,103537
North East Lincolnshire Council,http://statistics.data.gov.uk/id/local-authority/00FC),Children & Family Services,Ass Dir - Education,Access And Education Services,Other Agencies,Performers,PJ101,7/26/2019,578884,450,REVENUE,KEVIN ROGERS,101480
North East Lincolnshire Council,http://statistics.data.gov.uk/id/local-authority/00FC),Children & Family Services,Ass Dir - Education,Access And Education Services,Other Agencies,Performers,PJ101,7/19/2019,578195,325,REVENUE,MUSIC LINCS LTD,100944
North East Lincolnshire Council,http://statistics.data.gov.uk/id/local-authority/00FC),Children & Family Services,Ass Dir - Education,Access And Education Services,Other Agencies,Performers,PJ101,7/15/2019,577275,1255,REVENUE,ANDREW IAN TAYLOR MUSIC,139100
North East Lincolnshire Council,http://statistics.data.gov.uk/id/local-authority/00FC),Children & Family Services,Ass Dir - Education,Access And Education Services,Other Agencies,Performers,PJ101,7/26/2019,578534,650,REVENUE,MICHAEL BETTERIDGE,140431
North East Lincolnshire Council,http://statistics.data.gov.uk/id/local-authority/00FC),Children & Family Services,Ass Dir - Education,Access And Education Services,Other Agencies,Tuition,PJ112,7/2/2019,700274,250,REVENUE,REDACTED PERSONAL INFORMATION,REDACTED PERSONAL INFORMATION
North East Lincolnshire Council,http://statistics.data.gov.uk/id/local-authority/00FC),Children & Family Services,Ass Dir - Education,Access And Education Services,Other Agencies,Tuition,PJ112,7/2/2019,700266,250,REVENUE,REDACTED PERSONAL INFORMATION,REDACTED PERSONAL INFORMATION
North East Lincolnshire Council,http://statistics.data.gov.uk/id/local-authority/00FC),Children & Family Services,Ass Dir - Education,Access And Education Services,Other Agencies,Tuition,PJ112,7/29/2019,709242,997,REVENUE,REDACTED PERSONAL INFORMATION,REDACTED PERSONAL INFORMATION
North East Lincolnshire Council,http://statistics.data.gov.uk/id/local-authority/00FC),Children & Family Services,Ass Dir - Education,Access And Education Services,Other Agencies,Tuition,PJ112,7/4/2019,575477,480,REVENUE,HORNDALE TAXIS,143152
North East Lincolnshire Council,http://statistics.data.gov.uk/id/local-authority/00FC),Children & Family Services,Ass Dir - Education,Access And Education Services,Other Agencies,Tuition,PJ112,7/4/2019,575582,960,REVENUE,LINKS TAXIS,100546
North East Lincolnshire Council,http://statistics.data.gov.uk/id/local-authority/00FC),Children & Family Services,Ass Dir - Education,Access And Education Services,Other Agencies,Tuition,PJ112,7/22/2019,578346,250,REVENUE,JOHN MORTON,107234
North East Lincolnshire Council,http://statistics.data.gov.uk/id/local-authority/00FC),Children & Family Services,Ass Dir - Education,Access And Education Services,Other Agencies,Tuition,PJ112,7/30/2019,578940,360,REVENUE,HORNDALE TAXIS,143152
North East Lincolnshire Council,http://statistics.data.gov.uk/id/local-authority/00FC),Children & Family Services,Ass Dir - Education,Access And Education Services,Government Grants,Grants - Pupil Premium,VA102,7/16/2019,577193,1500,REVENUE,LITTLECOATES PRIMARY ACADEMY,134261
North East Lincolnshire Council,http://statistics.data.gov.uk/id/local-authority/00FC),Children & Family Services,Ass Dir - Education,Sen/Inclusion,Communications And Computing,Computer S/Ware - Purchases,LF101,7/2/2019,575048,261.75,REVENUE,WIDGIT SOFTWARE,139006
North East Lincolnshire Council,http://statistics.data.gov.uk/id/local-authority/00FC),Children & Family Services,Ass Dir - Education,Sen/Inclusion,Private Contractors,Third Party Prov - Private,PH101,7/4/2019,574553,30028.17,REVENUE,IMPOWER CONSULTING LIMITED,133446
North East Lincolnshire Council,http://statistics.data.gov.uk/id/local-authority/00FC),Children & Family Services,Ass Dir - Education,Sen/Inclusion,Private Contractors,Third Party Prov - Private,PH101,7/11/2019,576887,52601.8,REVENUE,IMPOWER CONSULTING LIMITED,133446
North East Lincolnshire Council,http://statistics.data.gov.uk/id/local-authority/00FC),Children & Family Services,Ass Dir - Education,Sen/Inclusion,Private Contractors,Third Party Prov - Private,PH101,7/11/2019,576912,12809.76,REVENUE,IMPOWER CONSULTING LIMITED,133446
North East Lincolnshire Council,http://statistics.data.gov.uk/id/local-authority/00FC),Children & Family Services,Ass Dir - Education,Sen/Inclusion,Other Local Authorities,Third Pp - Other Local Auth,PC101,7/8/2019,575900,4095,REVENUE,REDACTED PERSONAL INFORMATION,REDACTED PERSONAL INFORMATION
North East Lincolnshire Council,http://statistics.data.gov.uk/id/local-authority/00FC),Children & Family Services,Ass Dir - Education,Sen/Inclusion,Other Local Authorities,Third Pp - Other Local Auth,PC101,7/19/2019,578157,-16544.21,REVENUE,REDACTED PERSONAL INFORMATION,REDACTED PERSONAL INFORMATION
North East Lincolnshire Council,http://statistics.data.gov.uk/id/local-authority/00FC),Children & Family Services,Ass Dir - Education,Sen/Inclusion,Other Local Authorities,Third Pp - Other Local Auth,PC101,7/22/2019,578269,16544.21,REVENUE,REDACTED PERSONAL INFORMATION,REDACTED PERSONAL INFORMATION
North East Lincolnshire Council,http://statistics.data.gov.uk/id/local-authority/00FC),Children & Family Services,Ass Dir - Education,Sen/Inclusion,Other Local Authorities,Third Pp - Other Local Auth,PC101,7/22/2019,578268,8612.05,REVENUE,REDACTED PERSONAL INFORMATION,REDACTED PERSONAL INFORMATION
North East Lincolnshire Council,http://statistics.data.gov.uk/id/local-authority/00FC),Children & Family Services,Ass Dir - Education,Sen/Inclusion,Other Local Authorities,Third Pp - Other Local Auth,PC101,7/22/2019,578267,8005.26,REVENUE,REDACTED PERSONAL INFORMATION,REDACTED PERSONAL INFORMATION
North East Lincolnshire Council,http://statistics.data.gov.uk/id/local-authority/00FC),Children & Family Services,Ass Dir - Education,Sen/Inclusion,Other Local Authorities,Third Pp - Other Local Auth,PC101,7/8/2019,575959,9396.94,REVENUE,REDACTED PERSONAL INFORMATION,REDACTED PERSONAL INFORMATION
North East Lincolnshire Council,http://statistics.data.gov.uk/id/local-authority/00FC),Children & Family Services,Ass Dir - Education,Sen/Inclusion,Other Local Authorities,Third Pp - Other Local Auth,PC101,7/9/2019,575958,9396.94,REVENUE,REDACTED PERSONAL INFORMATION,REDACTED PERSONAL INFORMATION
North East Lincolnshire Council,http://statistics.data.gov.uk/id/local-authority/00FC),Children & Family Services,Ass Dir - Education,Sen/Inclusion,Other Local Authorities,Third Pp - Other Local Auth,PC101,7/22/2019,578137,6421.49,REVENUE,REDACTED PERSONAL INFORMATION,REDACTED PERSONAL INFORMATION
North East Lincolnshire Council,http://statistics.data.gov.uk/id/local-authority/00FC),Children & Family Services,Ass Dir - Education,Sen/Inclusion,Other Local Authorities,Third Pp - Other Local Auth,PC101,7/22/2019,578138,6214.35,REVENUE,REDACTED PERSONAL INFORMATION,REDACTED PERSONAL INFORMATION
North East Lincolnshire Council,http://statistics.data.gov.uk/id/local-authority/00FC),Children & Family Services,Ass Dir - Education,Sen/Inclusion,Other Local Authorities,Third Pp - Other Local Auth,PC101,7/22/2019,578139,6421.5,REVENUE,REDACTED PERSONAL INFORMATION,REDACTED PERSONAL INFORMATION
North East Lincolnshire Council,http://statistics.data.gov.uk/id/local-authority/00FC),Children & Family Services,Ass Dir - Education,Sen/Inclusion,Other Local Authorities,Third Pp - Other Local Auth,PC101,7/22/2019,578136,6214.35,REVENUE,REDACTED PERSONAL INFORMATION,REDACTED PERSONAL INFORMATION
North East Lincolnshire Council,http://statistics.data.gov.uk/id/local-authority/00FC),Children & Family Services,Ass Dir - Education,Sen/Inclusion,Other Local Authorities,Third Pp - Other Local Auth,PC101,7/5/2019,575913,3984.67,REVENUE,REDACTED PERSONAL INFORMATION,REDACTED PERSONAL INFORMATION
North East Lincolnshire Council,http://statistics.data.gov.uk/id/local-authority/00FC),Children & Family Services,Ass Dir - Education,Sen/Inclusion,Other Local Authorities,Third Pp - Other Local Auth,PC101,7/5/2019,575883,1755.56,REVENUE,REDACTED PERSONAL INFORMATION,REDACTED PERSONAL INFORMATION
North East Lincolnshire Council,http://statistics.data.gov.uk/id/local-authority/00FC),Children & Family Services,Ass Dir - Education,Sen/Inclusion,Other Local Authorities,Third Pp - Other Local Auth,PC101,7/5/2019,575918,4611.67,REVENUE,REDACTED PERSONAL INFORMATION,REDACTED PERSONAL INFORMATION
North East Lincolnshire Council,http://statistics.data.gov.uk/id/local-authority/00FC),Children & Family Services,Ass Dir - Education,Sen/Inclusion,Other Local Authorities,Third Pp - Other Local Auth,PC101,7/9/2019,576062,15309.57,REVENUE,REDACTED PERSONAL INFORMATION,REDACTED PERSONAL INFORMATION
North East Lincolnshire Council,http://statistics.data.gov.uk/id/local-authority/00FC),Children & Family Services,Ass Dir - Education,Sen/Inclusion,Other Local Authorities,Third Pp - Other Local Auth,PC101,7/5/2019,575916,16928.4,REVENUE,REDACTED PERSONAL INFORMATION,REDACTED PERSONAL INFORMATION
North East Lincolnshire Council,http://statistics.data.gov.uk/id/local-authority/00FC),Children & Family Services,Ass Dir - Education,Sen/Inclusion,Other Local Authorities,Third Pp - Other Local Auth,PC101,7/5/2019,575920,9945.55,REVENUE,REDACTED PERSONAL INFORMATION,REDACTED PERSONAL INFORMATION
North East Lincolnshire Council,http://statistics.data.gov.uk/id/local-authority/00FC),Children & Family Services,Ass Dir - Education,Sen/Inclusion,Other Local Authorities,Third Pp - Other Local Auth,PC101,7/8/2019,575897,8321.25,REVENUE,REDACTED PERSONAL INFORMATION,REDACTED PERSONAL INFORMATION
North East Lincolnshire Council,http://statistics.data.gov.uk/id/local-authority/00FC),Children & Family Services,Ass Dir - Education,Sen/Inclusion,Other Local Authorities,Third Pp - Other Local Auth,PC101,7/8/2019,575912,11881.56,REVENUE,REDACTED PERSONAL INFORMATION,REDACTED PERSONAL INFORMATION
North East Lincolnshire Council,http://statistics.data.gov.uk/id/local-authority/00FC),Children & Family Services,Ass Dir - Education,Sen/Inclusion,Other Local Authorities,Third Pp - Other Local Auth,PC101,7/17/2019,577829,11032.88,REVENUE,REDACTED PERSONAL INFORMATION,REDACTED PERSONAL INFORMATION
North East Lincolnshire Council,http://statistics.data.gov.uk/id/local-authority/00FC),Children & Family Services,Ass Dir - Education,Sen/Inclusion,Other Local Authorities,Third Pp - Other Local Auth,PC101,7/10/2019,576519,6307.5,REVENUE,REDACTED PERSONAL INFORMATION,REDACTED PERSONAL INFORMATION
North East Lincolnshire Council,http://statistics.data.gov.uk/id/local-authority/00FC),Children & Family Services,Ass Dir - Education,Sen/Inclusion,Other Local Authorities,Third Pp - Other Local Auth,PC101,7/11/2019,576911,1075.33,REVENUE,REDACTED PERSONAL INFORMATION,REDACTED PERSONAL INFORMATION
North East Lincolnshire Council,http://statistics.data.gov.uk/id/local-authority/00FC),Children & Family Services,Ass Dir - Education,Sen/Inclusion,Other Local Authorities,Third Pp - Other Local Auth,PC101,7/10/2019,576598,7817.4,REVENUE,REDACTED PERSONAL INFORMATION,REDACTED PERSONAL INFORMATION
North East Lincolnshire Council,http://statistics.data.gov.uk/id/local-authority/00FC),Children & Family Services,Ass Dir - Education,Sen/Inclusion,Other Local Authorities,Third Pp - Other Local Auth,PC101,7/22/2019,578240,5981.8,REVENUE,REDACTED PERSONAL INFORMATION,REDACTED PERSONAL INFORMATION
North East Lincolnshire Council,http://statistics.data.gov.uk/id/local-authority/00FC),Children & Family Services,Ass Dir - Education,Sen/Inclusion,Other Local Authorities,Third Pp - Other Local Auth,PC101,7/23/2019,578140,3018.6,REVENUE,REDACTED PERSONAL INFORMATION,REDACTED PERSONAL INFORMATION
North East Lincolnshire Council,http://statistics.data.gov.uk/id/local-authority/00FC),Children & Family Services,Ass Dir - Education,Sen/Inclusion,Other Local Authorities,Third Pp - Other Local Auth,PC101,7/19/2019,578150,12600.05,REVENUE,REDACTED PERSONAL INFORMATION,REDACTED PERSONAL INFORMATION
North East Lincolnshire Council,http://statistics.data.gov.uk/id/local-authority/00FC),Children & Family Services,Ass Dir - Education,Sen/Inclusion,Other Local Authorities,Third Pp - Other Local Auth,PC101,7/2/2019,574983,15150,REVENUE,REDACTED PERSONAL INFORMATION,REDACTED PERSONAL INFORMATION
North East Lincolnshire Council,http://statistics.data.gov.uk/id/local-authority/00FC),Children & Family Services,Ass Dir - Education,Sen/Inclusion,Other Local Authorities,Third Pp - Other Local Auth,PC101,7/19/2019,578176,4072.56,REVENUE,REDACTED PERSONAL INFORMATION,REDACTED PERSONAL INFORMATION
North East Lincolnshire Council,http://statistics.data.gov.uk/id/local-authority/00FC),Children & Family Services,Ass Dir - Education,Sen/Inclusion,Other Local Authorities,Third Pp - Other Local Auth,PC101,7/2/2019,574977,20411.83,REVENUE,REDACTED PERSONAL INFORMATION,REDACTED PERSONAL INFORMATION
North East Lincolnshire Council,http://statistics.data.gov.uk/id/local-authority/00FC),Children & Family Services,Ass Dir - Education,Sen/Inclusion,Other Local Authorities,Third Pp - Other Local Auth,PC101,7/11/2019,575921,20685.4,REVENUE,REDACTED PERSONAL INFORMATION,REDACTED PERSONAL INFORMATION
North East Lincolnshire Council,http://statistics.data.gov.uk/id/local-authority/00FC),Children & Family Services,Ass Dir - Education,Sen/Inclusion,Other Local Authorities,Third Pp - Other Local Auth,PC101,7/8/2019,575896,4620,REVENUE,REDACTED PERSONAL INFORMATION,REDACTED PERSONAL INFORMATION
North East Lincolnshire Council,http://statistics.data.gov.uk/id/local-authority/00FC),Children & Family Services,Ass Dir - Education,Sen/Inclusion,Other Local Authorities,Third Pp - Other Local Auth,PC101,7/5/2019,575915,4095,REVENUE,REDACTED PERSONAL INFORMATION,REDACTED PERSONAL INFORMATION
North East Lincolnshire Council,http://statistics.data.gov.uk/id/local-authority/00FC),Children & Family Services,Ass Dir - Education,Sen/Inclusion,Other Local Authorities,Third Pp - Other Local Auth,PC101,7/5/2019,575914,4620,REVENUE,REDACTED PERSONAL INFORMATION,REDACTED PERSONAL INFORMATION
North East Lincolnshire Council,http://statistics.data.gov.uk/id/local-authority/00FC),Children & Family Services,Ass Dir - Education,Sen/Inclusion,Other Local Authorities,Third Pp - Other Local Auth,PC101,7/5/2019,575919,4620,REVENUE,REDACTED PERSONAL INFORMATION,REDACTED PERSONAL INFORMATION
North East Lincolnshire Council,http://statistics.data.gov.uk/id/local-authority/00FC),Children & Family Services,Ass Dir - Education,Sen/Inclusion,Other Local Authorities,Third Pp - Other Local Auth,PC101,7/9/2019,575956,18840,REVENUE,REDACTED PERSONAL INFORMATION,REDACTED PERSONAL INFORMATION
North East Lincolnshire Council,http://statistics.data.gov.uk/id/local-authority/00FC),Children & Family Services,Ass Dir - Education,Sen/Inclusion,Other Local Authorities,Third Pp - Other Local Auth,PC101,7/11/2019,576923,11140,REVENUE,REDACTED PERSONAL INFORMATION,REDACTED PERSONAL INFORMATION
North East Lincolnshire Council,http://statistics.data.gov.uk/id/local-authority/00FC),Children & Family Services,Ass Dir - Education,Sen/Inclusion,Other Local Authorities,Third Pp - Other Local Auth,PC101,7/17/2019,577854,3256,REVENUE,REDACTED PERSONAL INFORMATION,REDACTED PERSONAL INFORMATION
North East Lincolnshire Council,http://statistics.data.gov.uk/id/local-authority/00FC),Children & Family Services,Ass Dir - Education,Sen/Inclusion,Other Local Authorities,Third Pp - Other Local Auth,PC101,7/17/2019,577852,2886,REVENUE,REDACTED PERSONAL INFORMATION,REDACTED PERSONAL INFORMATION
North East Lincolnshire Council,http://statistics.data.gov.uk/id/local-authority/00FC),Children & Family Services,Ass Dir - Education,Sen/Inclusion,Other Local Authorities,Third Pp - Other Local Auth,PC101,7/17/2019,577851,2886,REVENUE,REDACTED PERSONAL INFORMATION,REDACTED PERSONAL INFORMATION
North East Lincolnshire Council,http://statistics.data.gov.uk/id/local-authority/00FC),Children & Family Services,Ass Dir - Education,Sen/Inclusion,Other Local Authorities,Third Pp - Other Local Auth,PC101,7/17/2019,577853,3256,REVENUE,REDACTED PERSONAL INFORMATION,REDACTED PERSONAL INFORMATION
North East Lincolnshire Council,http://statistics.data.gov.uk/id/local-authority/00FC),Children & Family Services,Ass Dir - Education,Sen/Inclusion,Other Local Authorities,Third Pp - Other Local Auth,PC101,7/19/2019,578188,1155,REVENUE,REDACTED PERSONAL INFORMATION,REDACTED PERSONAL INFORMATION
North East Lincolnshire Council,http://statistics.data.gov.uk/id/local-authority/00FC),Children & Family Services,Ass Dir - Education,Sen/Inclusion,Other Local Authorities,Third Pp - Other Local Auth,PC101,7/19/2019,578189,9710.17,REVENUE,REDACTED PERSONAL INFORMATION,REDACTED PERSONAL INFORMATION
North East Lincolnshire Council,http://statistics.data.gov.uk/id/local-authority/00FC),Children & Family Services,Ass Dir - Education,Sen/Inclusion,Private Contractors,Third Party Prov - Private,PH101,7/22/2019,578137,6421.5,REVENUE,REDACTED PERSONAL INFORMATION,REDACTED PERSONAL INFORMATION
North East Lincolnshire Council,http://statistics.data.gov.uk/id/local-authority/00FC),Children & Family Services,Ass Dir - Education,Sen/Inclusion,Private Contractors,Third Party Prov - Private,PH101,7/22/2019,578138,6214.35,REVENUE,REDACTED PERSONAL INFORMATION,REDACTED PERSONAL INFORMATION
North East Lincolnshire Council,http://statistics.data.gov.uk/id/local-authority/00FC),Children & Family Services,Ass Dir - Education,Sen/Inclusion,Private Contractors,Third Party Prov - Private,PH101,7/22/2019,578139,6421.49,REVENUE,REDACTED PERSONAL INFORMATION,REDACTED PERSONAL INFORMATION
North East Lincolnshire Council,http://statistics.data.gov.uk/id/local-authority/00FC),Children & Family Services,Ass Dir - Education,Sen/Inclusion,Private Contractors,Third Party Prov - Private,PH101,7/22/2019,578136,6214.35,REVENUE,REDACTED PERSONAL INFORMATION,REDACTED PERSONAL INFORMATION
North East Lincolnshire Council,http://statistics.data.gov.uk/id/local-authority/00FC),Children & Family Services,Ass Dir - Education,Sen/Inclusion,Private Contractors,Third Party Prov - Private,PH101,7/5/2019,575913,4731.11,REVENUE,REDACTED PERSONAL INFORMATION,REDACTED PERSONAL INFORMATION
North East Lincolnshire Council,http://statistics.data.gov.uk/id/local-authority/00FC),Children & Family Services,Ass Dir - Education,Sen/Inclusion,Private Contractors,Third Party Prov - Private,PH101,7/5/2019,575918,2837.33,REVENUE,REDACTED PERSONAL INFORMATION,REDACTED PERSONAL INFORMATION
North East Lincolnshire Council,http://statistics.data.gov.uk/id/local-authority/00FC),Children & Family Services,Ass Dir - Education,Sen/Inclusion,Private Contractors,Third Party Prov - Private,PH101,7/8/2019,575899,7962.85,REVENUE,REDACTED PERSONAL INFORMATION,REDACTED PERSONAL INFORMATION
North East Lincolnshire Council,http://statistics.data.gov.uk/id/local-authority/00FC),Children & Family Services,Ass Dir - Education,Sen/Inclusion,Private Contractors,Third Party Prov - Private,PH101,7/5/2019,575935,14840.14,REVENUE,REDACTED PERSONAL INFORMATION,REDACTED PERSONAL INFORMATION
North East Lincolnshire Council,http://statistics.data.gov.uk/id/local-authority/00FC),Children & Family Services,Ass Dir - Education,Sen/Inclusion,Private Contractors,Third Party Prov - Private,PH101,7/30/2019,578977,14401.43,REVENUE,REDACTED PERSONAL INFORMATION,REDACTED PERSONAL INFORMATION
North East Lincolnshire Council,http://statistics.data.gov.uk/id/local-authority/00FC),Children & Family Services,Ass Dir - Education,Sen/Inclusion,Private Contractors,Third Party Prov - Private,PH101,7/11/2019,574980,34134.33,REVENUE,REDACTED PERSONAL INFORMATION,REDACTED PERSONAL INFORMATION
North East Lincolnshire Council,http://statistics.data.gov.uk/id/local-authority/00FC),Children & Family Services,Ass Dir - Education,Sen/Inclusion,Private Contractors,Third Party Prov - Private,PH101,7/22/2019,578066,-7314.29,REVENUE,REDACTED PERSONAL INFORMATION,REDACTED PERSONAL INFORMATION
North East Lincolnshire Council,http://statistics.data.gov.uk/id/local-authority/00FC),Children & Family Services,Ass Dir - Education,Sen/Inclusion,Private Contractors,Third Party Prov - Private,PH101,7/5/2019,575902,17121.3,REVENUE,REDACTED PERSONAL INFORMATION,REDACTED PERSONAL INFORMATION
North East Lincolnshire Council,http://statistics.data.gov.uk/id/local-authority/00FC),Children & Family Services,Ass Dir - Education,Sen/Inclusion,Private Contractors,Third Party Prov - Private,PH101,7/11/2019,575917,14327.14,REVENUE,REDACTED PERSONAL INFORMATION,REDACTED PERSONAL INFORMATION
North East Lincolnshire Council,http://statistics.data.gov.uk/id/local-authority/00FC),Children & Family Services,Ass Dir - Education,Sen/Inclusion,Private Contractors,Third Party Prov - Private,PH101,7/17/2019,577830,14804.71,REVENUE,REDACTED PERSONAL INFORMATION,REDACTED PERSONAL INFORMATION
North East Lincolnshire Council,http://statistics.data.gov.uk/id/local-authority/00FC),Children & Family Services,Ass Dir - Education,Sen/Inclusion,Private Contractors,Third Party Prov - Private,PH101,7/5/2019,575882,14325.09,REVENUE,REDACTED PERSONAL INFORMATION,REDACTED PERSONAL INFORMATION
North East Lincolnshire Council,http://statistics.data.gov.uk/id/local-authority/00FC),Children & Family Services,Ass Dir - Education,Sen/Inclusion,Private Contractors,Third Party Prov - Private,PH101,7/17/2019,577831,14802.59,REVENUE,REDACTED PERSONAL INFORMATION,REDACTED PERSONAL INFORMATION
North East Lincolnshire Council,http://statistics.data.gov.uk/id/local-authority/00FC),Children & Family Services,Ass Dir - Education,Sen/Inclusion,Private Contractors,Third Party Prov - Private,PH101,7/10/2019,576517,15443.75,REVENUE,REDACTED PERSONAL INFORMATION,REDACTED PERSONAL INFORMATION
North East Lincolnshire Council,http://statistics.data.gov.uk/id/local-authority/00FC),Children & Family Services,Ass Dir - Education,Sen/Inclusion,Private Contractors,Third Party Prov - Private,PH101,7/10/2019,576519,16294.66,REVENUE,REDACTED PERSONAL INFORMATION,REDACTED PERSONAL INFORMATION
North East Lincolnshire Council,http://statistics.data.gov.uk/id/local-authority/00FC),Children & Family Services,Ass Dir - Education,Sen/Inclusion,Private Contractors,Third Party Prov - Private,PH101,7/8/2019,575898,22500,REVENUE,REDACTED PERSONAL INFORMATION,REDACTED PERSONAL INFORMATION
North East Lincolnshire Council,http://statistics.data.gov.uk/id/local-authority/00FC),Children & Family Services,Ass Dir - Education,Sen/Inclusion,Private Contractors,Third Party Prov - Private,PH101,7/2/2019,574022,14392.86,REVENUE,REDACTED PERSONAL INFORMATION,REDACTED PERSONAL INFORMATION
North East Lincolnshire Council,http://statistics.data.gov.uk/id/local-authority/00FC),Children & Family Services,Ass Dir - Education,Sen/Inclusion,Private Contractors,Third Party Prov - Private,PH101,7/2/2019,573925,-320,REVENUE,REDACTED PERSONAL INFORMATION,REDACTED PERSONAL INFORMATION
North East Lincolnshire Council,http://statistics.data.gov.uk/id/local-authority/00FC),Children & Family Services,Ass Dir - Education,Sen/Inclusion,Private Contractors,Third Party Prov - Private,PH101,7/2/2019,574975,16820.48,REVENUE,REDACTED PERSONAL INFORMATION,REDACTED PERSONAL INFORMATION
North East Lincolnshire Council,http://statistics.data.gov.uk/id/local-authority/00FC),Children & Family Services,Ass Dir - Education,Sen/Inclusion,Private Contractors,Third Party Prov - Private,PH101,7/2/2019,574976,13899.35,REVENUE,REDACTED PERSONAL INFORMATION,REDACTED PERSONAL INFORMATION
North East Lincolnshire Council,http://statistics.data.gov.uk/id/local-authority/00FC),Children & Family Services,Ass Dir - Education,Sen/Inclusion,Private Contractors,Third Party Prov - Private,PH101,7/2/2019,574978,16216,REVENUE,REDACTED PERSONAL INFORMATION,REDACTED PERSONAL INFORMATION
North East Lincolnshire Council,http://statistics.data.gov.uk/id/local-authority/00FC),Children & Family Services,Ass Dir - Education,Sen/Inclusion,Miscellaneous Expenses,Contingency Reserve,LL123,7/25/2019,579062,12825,REVENUE,THE CAMBRIDGE PARK ACADEMY,107472
North East Lincolnshire Council,http://statistics.data.gov.uk/id/local-authority/00FC),Children & Family Services,Ass Dir - Education,Sen/Inclusion,Miscellaneous Expenses,Contingency Reserve,LL123,7/11/2019,577157,4266.42,REVENUE,HEALING SCIENCE ACADEMY LTD,102702
North East Lincolnshire Council,http://statistics.data.gov.uk/id/local-authority/00FC),Children & Family Services,Ass Dir - Education,Sen/Inclusion,Miscellaneous Expenses,Contingency Reserve,LL123,7/11/2019,576934,5634.51,REVENUE,HEALING SCIENCE ACADEMY LTD,102702
North East Lincolnshire Council,http://statistics.data.gov.uk/id/local-authority/00FC),Children & Family Services,Ass Dir - Education,Sen/Inclusion,Miscellaneous Expenses,Other Expenses General,LL119,7/25/2019,579074,4654,REVENUE,PHOENIX PARK ACADEMY,126685
North East Lincolnshire Council,http://statistics.data.gov.uk/id/local-authority/00FC),Children & Family Services,Ass Dir - Education,Sen/Inclusion,Contributions To Provisions,Contributions - Other,LK103,7/4/2019,575084,463,REVENUE,R82 UK LTD,101710
North East Lincolnshire Council,http://statistics.data.gov.uk/id/local-authority/00FC),Children & Family Services,Ass Dir - Education,Sen/Inclusion,Direct Employee Expenses,Pay Teachers Supply Cover,EA106,7/16/2019,577175,315,REVENUE,SAAF SUPPLY LIMITED,141575
North East Lincolnshire Council,http://statistics.data.gov.uk/id/local-authority/00FC),Children & Family Services,Ass Dir - Education,Sen/Inclusion,Direct Employee Expenses,Pay Teachers Supply Cover,EA106,7/23/2019,577968,575,REVENUE,SAAF SUPPLY LIMITED,141575
North East Lincolnshire Council,http://statistics.data.gov.uk/id/local-authority/00FC),Children & Family Services,Ass Dir - Education,Sen/Inclusion,Direct Employee Expenses,Pay Teachers Supply Cover,EA106,7/9/2019,576011,1254.4,REVENUE,TEACHING PERSONNEL LTD,101305
North East Lincolnshire Council,http://statistics.data.gov.uk/id/local-authority/00FC),Children & Family Services,Ass Dir - Education,Sen/Inclusion,Direct Employee Expenses,Pay Teachers Supply Cover,EA106,7/16/2019,577366,1254.4,REVENUE,TEACHING PERSONNEL LTD,101305
North East Lincolnshire Council,http://statistics.data.gov.uk/id/local-authority/00FC),Children & Family Services,Ass Dir - Education,Sen/Inclusion,Direct Employee Expenses,Pay Teachers Supply Cover,EA106,7/2/2019,574877,1254.4,REVENUE,TEACHING PERSONNEL LTD,101305
North East Lincolnshire Council,http://statistics.data.gov.uk/id/local-authority/00FC),Children & Family Services,Ass Dir - Education,Sen/Inclusion,Direct Employee Expenses,Pay Teachers Supply Cover,EA106,7/25/2019,578416,1881.16,REVENUE,TEACHING PERSONNEL LTD,101305
North East Lincolnshire Council,http://statistics.data.gov.uk/id/local-authority/00FC),Children & Family Services,Ass Dir - Education,Sen/Inclusion,Equip / Furniture / Materials,Teaching Materials,LA117,7/10/2019,576549,558,REVENUE,CONNEVANS LIMITED,100898
North East Lincolnshire Council,http://statistics.data.gov.uk/id/local-authority/00FC),Children & Family Services,Ass Dir - Education,Sen/Inclusion,Equip / Furniture / Materials,Teaching Materials,LA117,7/10/2019,576549,473,REVENUE,CONNEVANS LIMITED,100898
North East Lincolnshire Council,http://statistics.data.gov.uk/id/local-authority/00FC),Children & Family Services,Ass Dir - Education,Sen/Inclusion,Private Contractors,Third Party Prov - Private,PH101,7/16/2019,705004,605.24,REVENUE,REDACTED PERSONAL INFORMATION,REDACTED PERSONAL INFORMATION
North East Lincolnshire Council,http://statistics.data.gov.uk/id/local-authority/00FC),Children & Family Services,Ass Dir - Education,Sen/Inclusion,Private Contractors,Third Party Prov - Private,PH101,7/23/2019,707598,605.24,REVENUE,REDACTED PERSONAL INFORMATION,REDACTED PERSONAL INFORMATION
North East Lincolnshire Council,http://statistics.data.gov.uk/id/local-authority/00FC),Children & Family Services,Ass Dir - Education,Sen/Inclusion,Miscellaneous Expenses,Contingency Reserve,LL123,7/25/2019,579071,1317,REVENUE,PHOENIX PARK ACADEMY,126685
North East Lincolnshire Council,http://statistics.data.gov.uk/id/local-authority/00FC),Children & Family Services,Ass Dir - Education,Sen/Inclusion,Miscellaneous Expenses,Contingency Reserve,LL123,7/25/2019,579073,15800,REVENUE,PHOENIX PARK ACADEMY,126685
North East Lincolnshire Council,http://statistics.data.gov.uk/id/local-authority/00FC),Children & Family Services,Ass Dir - Education,Sen/Inclusion,Miscellaneous Expenses,Contingency Reserve,LL123,7/25/2019,579072,44767,REVENUE,PHOENIX PARK ACADEMY,126685
North East Lincolnshire Council,http://statistics.data.gov.uk/id/local-authority/00FC),Children & Family Services,Ass Dir - Education,Sen/Inclusion,Miscellaneous Expenses,Contingency Reserve,LL123,7/25/2019,579076,26333,REVENUE,SEVENHILLS ACADEMY,128660
North East Lincolnshire Council,http://statistics.data.gov.uk/id/local-authority/00FC),Children & Family Services,Ass Dir - Education,Sen/Inclusion,Miscellaneous Expenses,Contingency Reserve,LL123,7/25/2019,579075,26333,REVENUE,SEVENHILLS ACADEMY,128660
North East Lincolnshire Council,http://statistics.data.gov.uk/id/local-authority/00FC),Children & Family Services,Ass Dir - Education,Sen/Inclusion,Contributions To Provisions,Contributions - Other,LK103,7/25/2019,579070,4833,REVENUE,CANON PETER HALL CE PRIMARY ACADEMY,126646
North East Lincolnshire Council,http://statistics.data.gov.uk/id/local-authority/00FC),Children & Family Services,Ass Dir - Education,Sen/Inclusion,Contributions To Provisions,Contributions - Other,LK103,7/1/2019,574944,163927.6,REVENUE,ORCHARD EDUCATION LTD,141243
North East Lincolnshire Council,http://statistics.data.gov.uk/id/local-authority/00FC),Children & Family Services,Ass Dir - Education,Sen/Inclusion,Contributions To Provisions,Contributions - Other,LK103,7/4/2019,574979,2720,REVENUE,ORCHARD EDUCATION LTD,141243
North East Lincolnshire Council,http://statistics.data.gov.uk/id/local-authority/00FC),Children & Family Services,Ass Dir - Education,Sen/Inclusion,Contributions To Provisions,Contributions - Other,LK103,7/11/2019,576207,553.5,REVENUE,TEACHING PERSONNEL LTD,101305
North East Lincolnshire Council,http://statistics.data.gov.uk/id/local-authority/00FC),Children & Family Services,Ass Dir - Education,Sen/Inclusion,Contributions To Provisions,Contributions - Third Sector,LK102,7/22/2019,706852,780,REVENUE,REDACTED PERSONAL INFORMATION,REDACTED PERSONAL INFORMATION
North East Lincolnshire Council,http://statistics.data.gov.uk/id/local-authority/00FC),Children & Family Services,Ass Dir - Education,Sen/Inclusion,Contributions To Provisions,Contributions - Third Sector,LK102,7/22/2019,706900,280,REVENUE,REDACTED PERSONAL INFORMATION,REDACTED PERSONAL INFORMATION
North East Lincolnshire Council,http://statistics.data.gov.uk/id/local-authority/00FC),Children & Family Services,Ass Dir - Education,Sen/Inclusion,Contributions To Provisions,Contributions - Third Sector,LK102,7/29/2019,709498,560,REVENUE,REDACTED PERSONAL INFORMATION,REDACTED PERSONAL INFORMATION
North East Lincolnshire Council,http://statistics.data.gov.uk/id/local-authority/00FC),Children & Family Services,Ass Dir - Education,Sen/Inclusion,Contributions To Provisions,Contributions - Third Sector,LK102,7/2/2019,700522,470.75,REVENUE,REDACTED PERSONAL INFORMATION,REDACTED PERSONAL INFORMATION
North East Lincolnshire Council,http://statistics.data.gov.uk/id/local-authority/00FC),Children & Family Services,Ass Dir - Education,Sen/Inclusion,Contributions To Provisions,Contributions - Third Sector,LK102,7/26/2019,578976,1107,REVENUE,TEACHING PERSONNEL LTD,101305
North East Lincolnshire Council,http://statistics.data.gov.uk/id/local-authority/00FC),Children & Family Services,Ass Dir - Education,Sen/Inclusion,Miscellaneous Expenses,Contingency Reserve,LL123,7/25/2019,579060,6094,REVENUE,THE CAMBRIDGE PARK ACADEMY,107472
North East Lincolnshire Council,http://statistics.data.gov.uk/id/local-authority/00FC),Children & Family Services,Ass Dir - Education,Sen/Inclusion,Miscellaneous Expenses,Contingency Reserve,LL123,7/25/2019,579061,3413,REVENUE,THE CAMBRIDGE PARK ACADEMY,107472
North East Lincolnshire Council,http://statistics.data.gov.uk/id/local-authority/00FC),Children & Family Services,Ass Dir - Education,Sen/Inclusion,Miscellaneous Expenses,Contingency Reserve,LL123,7/25/2019,579063,1666,REVENUE,THE CAMBRIDGE PARK ACADEMY,107472
North East Lincolnshire Council,http://statistics.data.gov.uk/id/local-authority/00FC),Children & Family Services,Ass Dir - Education,Sen/Inclusion,Miscellaneous Expenses,Contingency Reserve,LL123,7/25/2019,579064,135752,REVENUE,THE CAMBRIDGE PARK ACADEMY,107472
North East Lincolnshire Council,http://statistics.data.gov.uk/id/local-authority/00FC),Children & Family Services,Ass Dir - Education,Sen/Inclusion,Miscellaneous Expenses,Contingency Reserve,LL123,7/25/2019,579065,6666,REVENUE,HUMBERSTON PARK SPECIAL SCHOOL,107911
North East Lincolnshire Council,http://statistics.data.gov.uk/id/local-authority/00FC),Children & Family Services,Ass Dir - Education,Sen/Inclusion,Miscellaneous Expenses,Contingency Reserve,LL123,7/25/2019,579066,108009,REVENUE,HUMBERSTON PARK SPECIAL SCHOOL,107911
North East Lincolnshire Council,http://statistics.data.gov.uk/id/local-authority/00FC),Children & Family Services,Ass Dir - Education,Sen/Inclusion,Miscellaneous Expenses,Other Expenses General,LL119,7/25/2019,579067,5833,REVENUE,EASTFIELD PRIMARY ACADEMY,121907
North East Lincolnshire Council,http://statistics.data.gov.uk/id/local-authority/00FC),Children & Family Services,Ass Dir - Education,Sen/Inclusion,Miscellaneous Expenses,Other Expenses General,LL119,7/25/2019,579068,1944.92,REVENUE,EASTFIELD PRIMARY ACADEMY,121907
North East Lincolnshire Council,http://statistics.data.gov.uk/id/local-authority/00FC),Children & Family Services,Ass Dir - Education,Sen/Inclusion,Miscellaneous Expenses,Other Expenses General,LL119,7/25/2019,579069,8750,REVENUE,EASTFIELD PRIMARY ACADEMY,121907
North East Lincolnshire Council,http://statistics.data.gov.uk/id/local-authority/00FC),Children & Family Services,Ass Dir - Education,School Improvement,Contributions To Provisions,Contributions - Other,LK103,7/4/2019,575634,615,REVENUE,CANON PETER HALL CE PRIMARY ACADEMY,126646
North East Lincolnshire Council,http://statistics.data.gov.uk/id/local-authority/00FC),Children & Family Services,Ass Dir - Education,School Improvement,Contributions To Provisions,Contributions - Other,LK103,7/4/2019,575597,615,REVENUE,HEALING VILLAGE NURSERY,101096
North East Lincolnshire Council,http://statistics.data.gov.uk/id/local-authority/00FC),Children & Family Services,Ass Dir - Education,School Improvement,Contributions To Provisions,Contributions - Other,LK103,7/4/2019,575632,615,REVENUE,IMMINGHAM DAY CARE,122312
North East Lincolnshire Council,http://statistics.data.gov.uk/id/local-authority/00FC),Children & Family Services,Ass Dir - Education,School Improvement,Contributions To Provisions,Contributions - Other,LK103,7/4/2019,575622,615,REVENUE,LISLE MARSDEN CHILDCARE LIMITED,110493
North East Lincolnshire Council,http://statistics.data.gov.uk/id/local-authority/00FC),Children & Family Services,Ass Dir - Education,School Improvement,Contributions To Provisions,Contributions - Other,LK103,7/4/2019,575602,615,REVENUE,ST PETERS CHILDREN CENTRE,101322
North East Lincolnshire Council,http://statistics.data.gov.uk/id/local-authority/00FC),Children & Family Services,Ass Dir - Education,School Improvement,Contributions To Provisions,Contributions - Other,LK103,7/4/2019,575598,616,REVENUE,WELHOLME PRE SCHOOL,101258
North East Lincolnshire Council,http://statistics.data.gov.uk/id/local-authority/00FC),Children & Family Services,Ass Dir - Education,School Improvement,Private Contractors,Third Party Prov - Private,PH101,7/8/2019,576093,286.2,REVENUE,SCARTHO INFANTS SCHOOL,120365
North East Lincolnshire Council,http://statistics.data.gov.uk/id/local-authority/00FC),Children & Family Services,Ass Dir - Education,School Improvement,Other Agencies,Nursery Educ Fund - Standard,PJ139,7/11/2019,576802,1119.3,REVENUE,ANDREA CULLUM - LITTLE GEMS,127347
North East Lincolnshire Council,http://statistics.data.gov.uk/id/local-authority/00FC),Children & Family Services,Ass Dir - Education,School Improvement,Other Agencies,Nursery Educ Fund - Standard,PJ139,7/11/2019,576864,1260,REVENUE,MS AMY VERNON,141558
North East Lincolnshire Council,http://statistics.data.gov.uk/id/local-authority/00FC),Children & Family Services,Ass Dir - Education,School Improvement,Other Agencies,Nursery Educ Fund - Standard,PJ139,7/11/2019,576775,1890,REVENUE,MISS AMANDA YOUNG,119739
North East Lincolnshire Council,http://statistics.data.gov.uk/id/local-authority/00FC),Children & Family Services,Ass Dir - Education,School Improvement,Other Agencies,Nursery Educ Fund - Standard,PJ139,7/11/2019,576857,1260,REVENUE,ALEXANDER BEECH,139871
North East Lincolnshire Council,http://statistics.data.gov.uk/id/local-authority/00FC),Children & Family Services,Ass Dir - Education,School Improvement,Other Agencies,Nursery Educ Fund - Standard,PJ139,7/11/2019,576686,17934,REVENUE,FOR UNDER FIVES LTD,100647
North East Lincolnshire Council,http://statistics.data.gov.uk/id/local-authority/00FC),Children & Family Services,Ass Dir - Education,School Improvement,Other Agencies,Nursery Educ Fund - Standard,PJ139,7/11/2019,576750,25515,REVENUE,BURSAR PLAYGROUP,111550
North East Lincolnshire Council,http://statistics.data.gov.uk/id/local-authority/00FC),Children & Family Services,Ass Dir - Education,School Improvement,Other Agencies,Nursery Educ Fund - Standard,PJ139,7/11/2019,576723,23892.75,REVENUE,BUTTERFLIES DAY NURSERY,101694
North East Lincolnshire Council,http://statistics.data.gov.uk/id/local-authority/00FC),Children & Family Services,Ass Dir - Education,School Improvement,Other Agencies,Nursery Educ Fund - Standard,PJ139,7/11/2019,576832,15946.88,REVENUE,CAMPDEN KIDS LTD,132975
North East Lincolnshire Council,http://statistics.data.gov.uk/id/local-authority/00FC),Children & Family Services,Ass Dir - Education,School Improvement,Other Agencies,Nursery Educ Fund - Standard,PJ139,7/11/2019,576801,12269.25,REVENUE,CANON PETER HALL CE PRIMARY ACADEMY,126646
North East Lincolnshire Council,http://statistics.data.gov.uk/id/local-authority/00FC),Children & Family Services,Ass Dir - Education,School Improvement,Other Agencies,Nursery Educ Fund - Standard,PJ139,7/11/2019,576682,20018.25,REVENUE,FOR UNDER FIVES LTD,100647
North East Lincolnshire Council,http://statistics.data.gov.uk/id/local-authority/00FC),Children & Family Services,Ass Dir - Education,School Improvement,Other Agencies,Nursery Educ Fund - Standard,PJ139,7/11/2019,576700,26166,REVENUE,THE CHILDRENS HOUSE,101141
North East Lincolnshire Council,http://statistics.data.gov.uk/id/local-authority/00FC),Children & Family Services,Ass Dir - Education,School Improvement,Other Agencies,Nursery Educ Fund - Standard,PJ139,7/11/2019,576860,3529.58,REVENUE,CLARE HOLNESS,140793
North East Lincolnshire Council,http://statistics.data.gov.uk/id/local-authority/00FC),Children & Family Services,Ass Dir - Education,School Improvement,Other Agencies,Nursery Educ Fund - Standard,PJ139,7/11/2019,576735,777,REVENUE,CATHERINE WALLACE,103189
North East Lincolnshire Council,http://statistics.data.gov.uk/id/local-authority/00FC),Children & Family Services,Ass Dir - Education,School Improvement,Other Agencies,Nursery Educ Fund - Standard,PJ139,7/11/2019,576837,252,REVENUE,DEBBIE SPACEY,133789
North East Lincolnshire Council,http://statistics.data.gov.uk/id/local-authority/00FC),Children & Family Services,Ass Dir - Education,School Improvement,Other Agencies,Nursery Educ Fund - Standard,PJ139,7/11/2019,576789,21000,REVENUE,EASTFIELD PRIMARY ACADEMY,121907
North East Lincolnshire Council,http://statistics.data.gov.uk/id/local-authority/00FC),Children & Family Services,Ass Dir - Education,School Improvement,Other Agencies,Nursery Educ Fund - Standard,PJ139,7/11/2019,576753,19372.5,REVENUE,EDWARD HENEAGE PRIMARY (ACADEMY),111742
North East Lincolnshire Council,http://statistics.data.gov.uk/id/local-authority/00FC),Children & Family Services,Ass Dir - Education,School Improvement,Other Agencies,Nursery Educ Fund - Standard,PJ139,7/11/2019,576823,32933.25,REVENUE,ELLISTON PRIMARY ACADEMY,129629
North East Lincolnshire Council,http://statistics.data.gov.uk/id/local-authority/00FC),Children & Family Services,Ass Dir - Education,School Improvement,Other Agencies,Nursery Educ Fund - Standard,PJ139,7/11/2019,576835,1260,REVENUE,EMMA BRYAN,133307
North East Lincolnshire Council,http://statistics.data.gov.uk/id/local-authority/00FC),Children & Family Services,Ass Dir - Education,School Improvement,Other Agencies,Nursery Educ Fund - Standard,PJ139,7/11/2019,576820,12600,REVENUE,FAIRFIELD PRIMARY ACADEMY,129030
North East Lincolnshire Council,http://statistics.data.gov.uk/id/local-authority/00FC),Children & Family Services,Ass Dir - Education,School Improvement,Other Agencies,Nursery Educ Fund - Standard,PJ139,7/11/2019,576818,4520.25,REVENUE,FREESTON TOTS PRESCHOOL,128592
North East Lincolnshire Council,http://statistics.data.gov.uk/id/local-authority/00FC),Children & Family Services,Ass Dir - Education,School Improvement,Other Agencies,Nursery Educ Fund - Standard,PJ139,7/11/2019,576709,18726.75,REVENUE,FIRST STEPS GRIMSBY LIMITED,101411
North East Lincolnshire Council,http://statistics.data.gov.uk/id/local-authority/00FC),Children & Family Services,Ass Dir - Education,School Improvement,Other Agencies,Nursery Educ Fund - Standard,PJ139,7/11/2019,576711,966,REVENUE,FIRST STEPS GRIMSBY LIMITED,101411
North East Lincolnshire Council,http://statistics.data.gov.uk/id/local-authority/00FC),Children & Family Services,Ass Dir - Education,School Improvement,Other Agencies,Nursery Educ Fund - Standard,PJ139,7/11/2019,576767,8442,REVENUE,HUMBERSTON PRE SCHOOL,114491
North East Lincolnshire Council,http://statistics.data.gov.uk/id/local-authority/00FC),Children & Family Services,Ass Dir - Education,School Improvement,Other Agencies,Nursery Educ Fund - Standard,PJ139,7/11/2019,576845,20412,REVENUE,GREAT COATES PRIMARY ACADEMY,134467
North East Lincolnshire Council,http://statistics.data.gov.uk/id/local-authority/00FC),Children & Family Services,Ass Dir - Education,School Improvement,Other Agencies,Nursery Educ Fund - Standard,PJ139,7/11/2019,576798,630,REVENUE,HANNAH TOFTON - LITTLE LAMBS CHILDMINDER,123304
North East Lincolnshire Council,http://statistics.data.gov.uk/id/local-authority/00FC),Children & Family Services,Ass Dir - Education,School Improvement,Other Agencies,Nursery Educ Fund - Standard,PJ139,7/11/2019,576851,430.5,REVENUE,AMYS LITTLE ADVENTURERS,137406
North East Lincolnshire Council,http://statistics.data.gov.uk/id/local-authority/00FC),Children & Family Services,Ass Dir - Education,School Improvement,Other Agencies,Nursery Educ Fund - Standard,PJ139,7/11/2019,576689,20160,REVENUE,FOR UNDER FIVES LTD,100647
North East Lincolnshire Council,http://statistics.data.gov.uk/id/local-authority/00FC),Children & Family Services,Ass Dir - Education,School Improvement,Other Agencies,Nursery Educ Fund - Standard,PJ139,7/11/2019,576716,1260,REVENUE,HELEN CROOKS,101529
North East Lincolnshire Council,http://statistics.data.gov.uk/id/local-authority/00FC),Children & Family Services,Ass Dir - Education,School Improvement,Other Agencies,Nursery Educ Fund - Standard,PJ139,7/11/2019,576699,18291,REVENUE,HEALING VILLAGE NURSERY,101096
North East Lincolnshire Council,http://statistics.data.gov.uk/id/local-authority/00FC),Children & Family Services,Ass Dir - Education,School Improvement,Other Agencies,Nursery Educ Fund - Standard,PJ139,7/11/2019,576815,3150,REVENUE,ELLIE TOTS CHILDMINDING SERVICES,128251
North East Lincolnshire Council,http://statistics.data.gov.uk/id/local-authority/00FC),Children & Family Services,Ass Dir - Education,School Improvement,Other Agencies,Nursery Educ Fund - Standard,PJ139,7/11/2019,576718,5725.65,REVENUE,CLEETHORPES CHILDCARE,101591
North East Lincolnshire Council,http://statistics.data.gov.uk/id/local-authority/00FC),Children & Family Services,Ass Dir - Education,School Improvement,Other Agencies,Nursery Educ Fund - Standard,PJ139,7/11/2019,576871,630,REVENUE,CHRISTIANNA HOCKNEY,143657
North East Lincolnshire Council,http://statistics.data.gov.uk/id/local-authority/00FC),Children & Family Services,Ass Dir - Education,School Improvement,Other Agencies,Nursery Educ Fund - Standard,PJ139,7/11/2019,576827,21420,REVENUE,HUMBERSTON CLOVERFIELDS ACADEMY NURSERY,132178
North East Lincolnshire Council,http://statistics.data.gov.uk/id/local-authority/00FC),Children & Family Services,Ass Dir - Education,School Improvement,Other Agencies,Nursery Educ Fund - Standard,PJ139,7/11/2019,576768,20370,REVENUE,HUMBERSTON PRE SCHOOL,114491
North East Lincolnshire Council,http://statistics.data.gov.uk/id/local-authority/00FC),Children & Family Services,Ass Dir - Education,School Improvement,Other Agencies,Nursery Educ Fund - Standard,PJ139,7/11/2019,576795,5040,REVENUE,IMMINGHAM DAY CARE,122312
North East Lincolnshire Council,http://statistics.data.gov.uk/id/local-authority/00FC),Children & Family Services,Ass Dir - Education,School Improvement,Other Agencies,Nursery Educ Fund - Standard,PJ139,7/11/2019,576696,6300,REVENUE,IMMINGHAM DAY NURSERY,100998
North East Lincolnshire Council,http://statistics.data.gov.uk/id/local-authority/00FC),Children & Family Services,Ass Dir - Education,School Improvement,Other Agencies,Nursery Educ Fund - Standard,PJ139,7/11/2019,576843,1260,REVENUE,JULIE MOORE CHILDMINDING,134452
North East Lincolnshire Council,http://statistics.data.gov.uk/id/local-authority/00FC),Children & Family Services,Ass Dir - Education,School Improvement,Other Agencies,Nursery Educ Fund - Standard,PJ139,7/11/2019,576691,2583,REVENUE,JUDY CLARK CHILD CARE,100939
North East Lincolnshire Council,http://statistics.data.gov.uk/id/local-authority/00FC),Children & Family Services,Ass Dir - Education,School Improvement,Other Agencies,Nursery Educ Fund - Standard,PJ139,7/11/2019,576853,630,REVENUE,MRS JO-ANNE WHITE,137431
North East Lincolnshire Council,http://statistics.data.gov.uk/id/local-authority/00FC),Children & Family Services,Ass Dir - Education,School Improvement,Other Agencies,Nursery Educ Fund - Standard,PJ139,7/11/2019,576728,6888,REVENUE,MS KAREN HUDSON,102103
North East Lincolnshire Council,http://statistics.data.gov.uk/id/local-authority/00FC),Children & Family Services,Ass Dir - Education,School Improvement,Other Agencies,Nursery Educ Fund - Standard,PJ139,7/11/2019,576848,1377.6,REVENUE,MRS KAREN RICH,136994
North East Lincolnshire Council,http://statistics.data.gov.uk/id/local-authority/00FC),Children & Family Services,Ass Dir - Education,School Improvement,Other Agencies,Nursery Educ Fund - Standard,PJ139,7/11/2019,576874,2142,REVENUE,KATIE ROBBINS,143660
North East Lincolnshire Council,http://statistics.data.gov.uk/id/local-authority/00FC),Children & Family Services,Ass Dir - Education,School Improvement,Other Agencies,Nursery Educ Fund - Standard,PJ139,7/11/2019,576811,10977.75,REVENUE,LEAP AHEAD NURSERY,128017
North East Lincolnshire Council,http://statistics.data.gov.uk/id/local-authority/00FC),Children & Family Services,Ass Dir - Education,School Improvement,Other Agencies,Nursery Educ Fund - Standard,PJ139,7/11/2019,576808,7103.25,REVENUE,LEAP AHEAD NURSERY,128017
North East Lincolnshire Council,http://statistics.data.gov.uk/id/local-authority/00FC),Children & Family Services,Ass Dir - Education,School Improvement,Other Agencies,Nursery Educ Fund - Standard,PJ139,7/11/2019,576806,6378.75,REVENUE,LEAP AHEAD NURSERY,128017
North East Lincolnshire Council,http://statistics.data.gov.uk/id/local-authority/00FC),Children & Family Services,Ass Dir - Education,School Improvement,Other Agencies,Nursery Educ Fund - Standard,PJ139,7/11/2019,576747,22050,REVENUE,LITTLE BLOSSOMS DAY NURSERY,111058
North East Lincolnshire Council,http://statistics.data.gov.uk/id/local-authority/00FC),Children & Family Services,Ass Dir - Education,School Improvement,Other Agencies,Nursery Educ Fund - Standard,PJ139,7/11/2019,576764,44100,REVENUE,GRIMSBY INSTITUTE - LITTLE STARS DAY NURSERY,114230
North East Lincolnshire Council,http://statistics.data.gov.uk/id/local-authority/00FC),Children & Family Services,Ass Dir - Education,School Improvement,Other Agencies,Nursery Educ Fund - Standard,PJ139,7/11/2019,576793,11481.75,REVENUE,LITTLE TWINKLES CHILDCARE LTD,122217
North East Lincolnshire Council,http://statistics.data.gov.uk/id/local-authority/00FC),Children & Family Services,Ass Dir - Education,School Improvement,Other Agencies,Nursery Educ Fund - Standard,PJ139,7/11/2019,576742,59535,REVENUE,LISLE MARSDEN CHILDCARE LIMITED,110493
North East Lincolnshire Council,http://statistics.data.gov.uk/id/local-authority/00FC),Children & Family Services,Ass Dir - Education,School Improvement,Other Agencies,Nursery Educ Fund - Standard,PJ139,7/11/2019,576840,18726.75,REVENUE,LITTLECOATES PRIMARY ACADEMY,134261
North East Lincolnshire Council,http://statistics.data.gov.uk/id/local-authority/00FC),Children & Family Services,Ass Dir - Education,School Improvement,Other Agencies,Nursery Educ Fund - Standard,PJ139,7/11/2019,576839,1291.5,REVENUE,LINDA PENDRED,133792
North East Lincolnshire Council,http://statistics.data.gov.uk/id/local-authority/00FC),Children & Family Services,Ass Dir - Education,School Improvement,Other Agencies,Nursery Educ Fund - Standard,PJ139,7/11/2019,576761,53966.25,REVENUE,MACAULAY PRIMARY ACADEMY,112680
North East Lincolnshire Council,http://statistics.data.gov.uk/id/local-authority/00FC),Children & Family Services,Ass Dir - Education,School Improvement,Other Agencies,Nursery Educ Fund - Standard,PJ139,7/11/2019,576738,11340,REVENUE,NEW WALTHAM ACADEMY,108556
North East Lincolnshire Council,http://statistics.data.gov.uk/id/local-authority/00FC),Children & Family Services,Ass Dir - Education,School Improvement,Other Agencies,Nursery Educ Fund - Standard,PJ139,7/11/2019,576780,1260,REVENUE,NICKY'S CHILDMINDING,119901
North East Lincolnshire Council,http://statistics.data.gov.uk/id/local-authority/00FC),Children & Family Services,Ass Dir - Education,School Improvement,Other Agencies,Nursery Educ Fund - Standard,PJ139,7/11/2019,576830,1260,REVENUE,NATALIE MUNDAY,132728
North East Lincolnshire Council,http://statistics.data.gov.uk/id/local-authority/00FC),Children & Family Services,Ass Dir - Education,School Improvement,Other Agencies,Nursery Educ Fund - Standard,PJ139,7/11/2019,576813,10437,REVENUE,ONLY ABOUT KIDS,128121
North East Lincolnshire Council,http://statistics.data.gov.uk/id/local-authority/00FC),Children & Family Services,Ass Dir - Education,School Improvement,Other Agencies,Nursery Educ Fund - Standard,PJ139,7/11/2019,576796,12269.25,REVENUE,OASIS ACADEMY SCHOOL (NUNSTHORPE SCHOOL),122861
North East Lincolnshire Council,http://statistics.data.gov.uk/id/local-authority/00FC),Children & Family Services,Ass Dir - Education,School Improvement,Other Agencies,Nursery Educ Fund - Standard,PJ139,7/11/2019,576779,38745,REVENUE,OLD CLEE PRIMARY ACADEMY,119822
North East Lincolnshire Council,http://statistics.data.gov.uk/id/local-authority/00FC),Children & Family Services,Ass Dir - Education,School Improvement,Other Agencies,Nursery Educ Fund - Standard,PJ139,7/11/2019,576754,38745,REVENUE,ORMISTON SOUTH PARADE ACADEMY,111750
North East Lincolnshire Council,http://statistics.data.gov.uk/id/local-authority/00FC),Children & Family Services,Ass Dir - Education,School Improvement,Other Agencies,Nursery Educ Fund - Standard,PJ139,7/11/2019,576847,17010,REVENUE,PILGRIM ACADEMY,136366
North East Lincolnshire Council,http://statistics.data.gov.uk/id/local-authority/00FC),Children & Family Services,Ass Dir - Education,School Improvement,Other Agencies,Nursery Educ Fund - Standard,PJ139,7/11/2019,576713,22176,REVENUE,PRECIOUS TIMES CHILDCARE SERVICES,101420
North East Lincolnshire Council,http://statistics.data.gov.uk/id/local-authority/00FC),Children & Family Services,Ass Dir - Education,School Improvement,Other Agencies,Nursery Educ Fund - Standard,PJ139,7/11/2019,576715,34902,REVENUE,PRECIOUS TIMES CHILDCARE SERVICES,101420
North East Lincolnshire Council,http://statistics.data.gov.uk/id/local-authority/00FC),Children & Family Services,Ass Dir - Education,School Improvement,Other Agencies,Nursery Educ Fund - Standard,PJ139,7/11/2019,576684,7103.25,REVENUE,FOR UNDER FIVES LTD,100647
North East Lincolnshire Council,http://statistics.data.gov.uk/id/local-authority/00FC),Children & Family Services,Ass Dir - Education,School Improvement,Other Agencies,Nursery Educ Fund - Standard,PJ139,7/11/2019,576790,26475.75,REVENUE,REYNOLDS PRIMARY ACADEMY,122175
North East Lincolnshire Council,http://statistics.data.gov.uk/id/local-authority/00FC),Children & Family Services,Ass Dir - Education,School Improvement,Other Agencies,Nursery Educ Fund - Standard,PJ139,7/11/2019,576695,14742,REVENUE,READY TEDDY GO,100973
North East Lincolnshire Council,http://statistics.data.gov.uk/id/local-authority/00FC),Children & Family Services,Ass Dir - Education,School Improvement,Other Agencies,Nursery Educ Fund - Standard,PJ139,7/11/2019,576869,2730,REVENUE,SARA BUNCE,142138
North East Lincolnshire Council,http://statistics.data.gov.uk/id/local-authority/00FC),Children & Family Services,Ass Dir - Education,School Improvement,Other Agencies,Nursery Educ Fund - Standard,PJ139,7/11/2019,576862,420,REVENUE,LITTLE EXPLORERS,140997
North East Lincolnshire Council,http://statistics.data.gov.uk/id/local-authority/00FC),Children & Family Services,Ass Dir - Education,School Improvement,Other Agencies,Nursery Educ Fund - Standard,PJ139,7/11/2019,576804,4465.13,REVENUE,SARAH FARROW-BROWNE,127842
North East Lincolnshire Council,http://statistics.data.gov.uk/id/local-authority/00FC),Children & Family Services,Ass Dir - Education,School Improvement,Other Agencies,Nursery Educ Fund - Standard,PJ139,7/11/2019,576816,1937.25,REVENUE,SARAH'S CHILDMINDING,128578
North East Lincolnshire Council,http://statistics.data.gov.uk/id/local-authority/00FC),Children & Family Services,Ass Dir - Education,School Improvement,Other Agencies,Nursery Educ Fund - Standard,PJ139,7/11/2019,576745,637.88,REVENUE,SHARON SPRINGALL,111029
North East Lincolnshire Council,http://statistics.data.gov.uk/id/local-authority/00FC),Children & Family Services,Ass Dir - Education,School Improvement,Other Agencies,Nursery Educ Fund - Standard,PJ139,7/11/2019,576720,16464,REVENUE,CLEETHORPES CHILDCARE,101591
North East Lincolnshire Council,http://statistics.data.gov.uk/id/local-authority/00FC),Children & Family Services,Ass Dir - Education,School Improvement,Other Agencies,Nursery Educ Fund - Standard,PJ139,7/11/2019,576680,28854,REVENUE,FOR UNDER FIVES LTD,100647
North East Lincolnshire Council,http://statistics.data.gov.uk/id/local-authority/00FC),Children & Family Services,Ass Dir - Education,School Improvement,Other Agencies,Nursery Educ Fund - Standard,PJ139,7/11/2019,576825,13608,REVENUE,SPRINGFIELD PRIMARY ACADEMY,131306
North East Lincolnshire Council,http://statistics.data.gov.uk/id/local-authority/00FC),Children & Family Services,Ass Dir - Education,School Improvement,Other Agencies,Nursery Educ Fund - Standard,PJ139,7/11/2019,576727,1890,REVENUE,SARAH SHOTBOLT,101742
North East Lincolnshire Council,http://statistics.data.gov.uk/id/local-authority/00FC),Children & Family Services,Ass Dir - Education,School Improvement,Other Agencies,Nursery Educ Fund - Standard,PJ139,7/11/2019,576786,7232.4,REVENUE,ST CHRISTOPHERS PRE SCHOOL,121589
North East Lincolnshire Council,http://statistics.data.gov.uk/id/local-authority/00FC),Children & Family Services,Ass Dir - Education,School Improvement,Other Agencies,Nursery Educ Fund - Standard,PJ139,7/11/2019,576785,1134,REVENUE,STEPHANIE DURRANT,120541
North East Lincolnshire Council,http://statistics.data.gov.uk/id/local-authority/00FC),Children & Family Services,Ass Dir - Education,School Improvement,Other Agencies,Nursery Educ Fund - Standard,PJ139,7/11/2019,576693,14490,REVENUE,ST JAMES SCHOOL,100940
North East Lincolnshire Council,http://statistics.data.gov.uk/id/local-authority/00FC),Children & Family Services,Ass Dir - Education,School Improvement,Other Agencies,Nursery Educ Fund - Standard,PJ139,7/11/2019,576740,6457.5,REVENUE,ST JOSEPH'S RC PRIMARY ACADEMY,110066
North East Lincolnshire Council,http://statistics.data.gov.uk/id/local-authority/00FC),Children & Family Services,Ass Dir - Education,School Improvement,Other Agencies,Nursery Educ Fund - Standard,PJ139,7/11/2019,576725,19362,REVENUE,ST MARGARETS PRE-SCHOOL,101724
North East Lincolnshire Council,http://statistics.data.gov.uk/id/local-authority/00FC),Children & Family Services,Ass Dir - Education,School Improvement,Other Agencies,Nursery Educ Fund - Standard,PJ139,7/11/2019,576771,12915,REVENUE,ST MARYS CATHOLIC PRIMARY VOLUNTARY ACADEMY,115108
North East Lincolnshire Council,http://statistics.data.gov.uk/id/local-authority/00FC),Children & Family Services,Ass Dir - Education,School Improvement,Other Agencies,Nursery Educ Fund - Standard,PJ139,7/11/2019,576702,31641.75,REVENUE,ST PETERS CHILDREN CENTRE,101322
North East Lincolnshire Council,http://statistics.data.gov.uk/id/local-authority/00FC),Children & Family Services,Ass Dir - Education,School Improvement,Other Agencies,Nursery Educ Fund - Standard,PJ139,7/11/2019,576757,7103.25,REVENUE,STRAND PRIMARY ACADEMY,111862
North East Lincolnshire Council,http://statistics.data.gov.uk/id/local-authority/00FC),Children & Family Services,Ass Dir - Education,School Improvement,Other Agencies,Nursery Educ Fund - Standard,PJ139,7/11/2019,576732,6457.5,REVENUE,THE AVENUE PLAYGROUP,103168
North East Lincolnshire Council,http://statistics.data.gov.uk/id/local-authority/00FC),Children & Family Services,Ass Dir - Education,School Improvement,Other Agencies,Nursery Educ Fund - Standard,PJ139,7/11/2019,576772,15498,REVENUE,THRUNSCOE PRIMARY AND NURSERY ACADEMY,118749
North East Lincolnshire Council,http://statistics.data.gov.uk/id/local-authority/00FC),Children & Family Services,Ass Dir - Education,School Improvement,Other Agencies,Nursery Educ Fund - Standard,PJ139,7/11/2019,576705,630,REVENUE,MS TRACEY RICHARDS,101325
North East Lincolnshire Council,http://statistics.data.gov.uk/id/local-authority/00FC),Children & Family Services,Ass Dir - Education,School Improvement,Other Agencies,Nursery Educ Fund - Standard,PJ139,7/11/2019,576737,55860,REVENUE,WALTHAM LEAS PRE-SCHOOL,108236
North East Lincolnshire Council,http://statistics.data.gov.uk/id/local-authority/00FC),Children & Family Services,Ass Dir - Education,School Improvement,Other Agencies,Nursery Educ Fund - Standard,PJ139,7/11/2019,576749,7749,REVENUE,WEELSBY ACADEMY,111161
North East Lincolnshire Council,http://statistics.data.gov.uk/id/local-authority/00FC),Children & Family Services,Ass Dir - Education,School Improvement,Other Agencies,Nursery Educ Fund - Standard,PJ139,7/11/2019,576707,6930,REVENUE,WENDOVER PRE-SCHOOL,101350
North East Lincolnshire Council,http://statistics.data.gov.uk/id/local-authority/00FC),Children & Family Services,Ass Dir - Education,School Improvement,Other Agencies,Nursery Educ Fund - Standard,PJ139,7/11/2019,576783,5811.75,REVENUE,WILLOWS PRIMARY ACADEMY,120478
North East Lincolnshire Council,http://statistics.data.gov.uk/id/local-authority/00FC),Children & Family Services,Ass Dir - Education,School Improvement,Other Agencies,Nursery Educ Fund - Standard,PJ139,7/11/2019,576730,23247,REVENUE,WIZ KIDZ,102424
North East Lincolnshire Council,http://statistics.data.gov.uk/id/local-authority/00FC),Children & Family Services,Ass Dir - Education,School Improvement,Other Agencies,Nursery Educ Fund - Standard,PJ139,7/11/2019,576829,12915,REVENUE,WOODLANDS ACADEMY,132649
North East Lincolnshire Council,http://statistics.data.gov.uk/id/local-authority/00FC),Children & Family Services,Ass Dir - Education,School Improvement,Other Agencies,Nursery Educ Fund - Standard,PJ139,7/11/2019,576763,17640,REVENUE,YARBOROUGH ACADEMY,112852
North East Lincolnshire Council,http://statistics.data.gov.uk/id/local-authority/00FC),Children & Family Services,Ass Dir - Education,School Improvement,Other Agencies,Nursery Educ Fund - Standard,PJ139,7/4/2019,575636,553.5,REVENUE,CANON PETER HALL CE PRIMARY ACADEMY,126646
North East Lincolnshire Council,http://statistics.data.gov.uk/id/local-authority/00FC),Children & Family Services,Ass Dir - Education,School Improvement,Other Agencies,Nursery Educ Fund - Standard,PJ139,7/4/2019,575619,588,REVENUE,EAST RAVENDALE C OF E PRIMARY SCHOOL ACADEMY,109167
North East Lincolnshire Council,http://statistics.data.gov.uk/id/local-authority/00FC),Children & Family Services,Ass Dir - Education,School Improvement,Other Agencies,Nursery Educ Fund - Standard,PJ139,7/4/2019,575605,416.7,REVENUE,FIRST STEPS GRIMSBY LIMITED,101411
North East Lincolnshire Council,http://statistics.data.gov.uk/id/local-authority/00FC),Children & Family Services,Ass Dir - Education,School Improvement,Other Agencies,Nursery Educ Fund - Standard,PJ139,7/4/2019,575644,672,REVENUE,HUMBERSTON CLOVERFIELDS ACADEMY NURSERY,132178
North East Lincolnshire Council,http://statistics.data.gov.uk/id/local-authority/00FC),Children & Family Services,Ass Dir - Education,School Improvement,Other Agencies,Nursery Educ Fund - Standard,PJ139,7/4/2019,575637,307.5,REVENUE,LEAP AHEAD NURSERY,128017
North East Lincolnshire Council,http://statistics.data.gov.uk/id/local-authority/00FC),Children & Family Services,Ass Dir - Education,School Improvement,Other Agencies,Nursery Educ Fund - Standard,PJ139,7/4/2019,575650,307.5,REVENUE,LITTLECOATES PRIMARY ACADEMY,134261
North East Lincolnshire Council,http://statistics.data.gov.uk/id/local-authority/00FC),Children & Family Services,Ass Dir - Education,School Improvement,Other Agencies,Nursery Educ Fund - Standard,PJ139,7/4/2019,575642,428.09,REVENUE,ONLY ABOUT KIDS,128121
North East Lincolnshire Council,http://statistics.data.gov.uk/id/local-authority/00FC),Children & Family Services,Ass Dir - Education,School Improvement,Other Agencies,Nursery Educ Fund - Standard,PJ139,7/4/2019,575589,307.5,REVENUE,FOR UNDER FIVES LTD,100647
North East Lincolnshire Council,http://statistics.data.gov.uk/id/local-authority/00FC),Children & Family Services,Ass Dir - Education,School Improvement,Other Agencies,Nursery Educ Fund - Standard,PJ139,7/4/2019,575609,252,REVENUE,CLEETHORPES CHILDCARE,101591
North East Lincolnshire Council,http://statistics.data.gov.uk/id/local-authority/00FC),Children & Family Services,Ass Dir - Education,School Improvement,Other Agencies,Nursery Educ Fund - Standard,PJ139,7/4/2019,575628,1347.15,REVENUE,STRAND PRIMARY ACADEMY,111862
North East Lincolnshire Council,http://statistics.data.gov.uk/id/local-authority/00FC),Children & Family Services,Ass Dir - Education,School Improvement,Other Agencies,Nursery Educ Fund - Standard,PJ139,7/4/2019,575615,272.35,REVENUE,WALTHAM LEAS PRE-SCHOOL,108236
North East Lincolnshire Council,http://statistics.data.gov.uk/id/local-authority/00FC),Children & Family Services,Ass Dir - Education,School Improvement,Other Agencies,Nursery Educ Fund - Standard,PJ139,7/4/2019,575623,799.5,REVENUE,WEELSBY ACADEMY,111161
North East Lincolnshire Council,http://statistics.data.gov.uk/id/local-authority/00FC),Children & Family Services,Ass Dir - Education,School Improvement,Other Agencies,Nursery Educ Fund - Standard,PJ139,7/4/2019,575646,547.56,REVENUE,WOODLANDS ACADEMY,132649
North East Lincolnshire Council,http://statistics.data.gov.uk/id/local-authority/00FC),Children & Family Services,Ass Dir - Education,School Improvement,Other Agencies,Other,PJ121,7/11/2019,576777,787.5,REVENUE,ALISON'S CHILDMINDING SERVICES,119740
North East Lincolnshire Council,http://statistics.data.gov.uk/id/local-authority/00FC),Children & Family Services,Ass Dir - Education,School Improvement,Other Agencies,Other,PJ121,7/11/2019,576863,420,REVENUE,MS AMY VERNON,141558
North East Lincolnshire Council,http://statistics.data.gov.uk/id/local-authority/00FC),Children & Family Services,Ass Dir - Education,School Improvement,Other Agencies,Other,PJ121,7/11/2019,576774,787.5,REVENUE,MISS AMANDA YOUNG,119739
North East Lincolnshire Council,http://statistics.data.gov.uk/id/local-authority/00FC),Children & Family Services,Ass Dir - Education,School Improvement,Other Agencies,Other,PJ121,7/11/2019,576687,13387.5,REVENUE,FOR UNDER FIVES LTD,100647
North East Lincolnshire Council,http://statistics.data.gov.uk/id/local-authority/00FC),Children & Family Services,Ass Dir - Education,School Improvement,Other Agencies,Other,PJ121,7/11/2019,576722,25200,REVENUE,BUTTERFLIES DAY NURSERY,101694
North East Lincolnshire Council,http://statistics.data.gov.uk/id/local-authority/00FC),Children & Family Services,Ass Dir - Education,School Improvement,Other Agencies,Other,PJ121,7/11/2019,576833,10237.5,REVENUE,CAMPDEN KIDS LTD,132975
North East Lincolnshire Council,http://statistics.data.gov.uk/id/local-authority/00FC),Children & Family Services,Ass Dir - Education,School Improvement,Other Agencies,Other,PJ121,7/11/2019,576683,25200,REVENUE,FOR UNDER FIVES LTD,100647
North East Lincolnshire Council,http://statistics.data.gov.uk/id/local-authority/00FC),Children & Family Services,Ass Dir - Education,School Improvement,Other Agencies,Other,PJ121,7/11/2019,576701,4462.5,REVENUE,THE CHILDRENS HOUSE,101141
North East Lincolnshire Council,http://statistics.data.gov.uk/id/local-authority/00FC),Children & Family Services,Ass Dir - Education,School Improvement,Other Agencies,Other,PJ121,7/11/2019,576859,2362.5,REVENUE,CLARE HOLNESS,140793
North East Lincolnshire Council,http://statistics.data.gov.uk/id/local-authority/00FC),Children & Family Services,Ass Dir - Education,School Improvement,Other Agencies,Other,PJ121,7/11/2019,576834,787.5,REVENUE,EMMA BRYAN,133307
North East Lincolnshire Council,http://statistics.data.gov.uk/id/local-authority/00FC),Children & Family Services,Ass Dir - Education,School Improvement,Other Agencies,Other,PJ121,7/11/2019,576866,420,REVENUE,MRS FAY L RENSHAW,141559
North East Lincolnshire Council,http://statistics.data.gov.uk/id/local-authority/00FC),Children & Family Services,Ass Dir - Education,School Improvement,Other Agencies,Other,PJ121,7/11/2019,576819,14962.5,REVENUE,FREESTON TOTS PRESCHOOL,128592
North East Lincolnshire Council,http://statistics.data.gov.uk/id/local-authority/00FC),Children & Family Services,Ass Dir - Education,School Improvement,Other Agencies,Other,PJ121,7/11/2019,576708,18900,REVENUE,FIRST STEPS GRIMSBY LIMITED,101411
North East Lincolnshire Council,http://statistics.data.gov.uk/id/local-authority/00FC),Children & Family Services,Ass Dir - Education,School Improvement,Other Agencies,Other,PJ121,7/11/2019,576710,3150,REVENUE,FIRST STEPS GRIMSBY LIMITED,101411
North East Lincolnshire Council,http://statistics.data.gov.uk/id/local-authority/00FC),Children & Family Services,Ass Dir - Education,School Improvement,Other Agencies,Other,PJ121,7/11/2019,576769,20002.5,REVENUE,HUMBERSTON PRE SCHOOL,114491
North East Lincolnshire Council,http://statistics.data.gov.uk/id/local-authority/00FC),Children & Family Services,Ass Dir - Education,School Improvement,Other Agencies,Other,PJ121,7/11/2019,576799,787.5,REVENUE,HANNAH TOFTON - LITTLE LAMBS CHILDMINDER,123304
North East Lincolnshire Council,http://statistics.data.gov.uk/id/local-authority/00FC),Children & Family Services,Ass Dir - Education,School Improvement,Other Agencies,Other,PJ121,7/11/2019,576850,787.5,REVENUE,AMYS LITTLE ADVENTURERS,137406
North East Lincolnshire Council,http://statistics.data.gov.uk/id/local-authority/00FC),Children & Family Services,Ass Dir - Education,School Improvement,Other Agencies,Other,PJ121,7/11/2019,576681,7087.5,REVENUE,FOR UNDER FIVES LTD,100647
North East Lincolnshire Council,http://statistics.data.gov.uk/id/local-authority/00FC),Children & Family Services,Ass Dir - Education,School Improvement,Other Agencies,Other,PJ121,7/11/2019,576717,787.5,REVENUE,HELEN CROOKS,101529
North East Lincolnshire Council,http://statistics.data.gov.uk/id/local-authority/00FC),Children & Family Services,Ass Dir - Education,School Improvement,Other Agencies,Other,PJ121,7/11/2019,576698,2073.75,REVENUE,HEALING VILLAGE NURSERY,101096
North East Lincolnshire Council,http://statistics.data.gov.uk/id/local-authority/00FC),Children & Family Services,Ass Dir - Education,School Improvement,Other Agencies,Other,PJ121,7/11/2019,576814,1575,REVENUE,ELLIE TOTS CHILDMINDING SERVICES,128251
North East Lincolnshire Council,http://statistics.data.gov.uk/id/local-authority/00FC),Children & Family Services,Ass Dir - Education,School Improvement,Other Agencies,Other,PJ121,7/11/2019,576721,8505,REVENUE,CLEETHORPES CHILDCARE,101591
North East Lincolnshire Council,http://statistics.data.gov.uk/id/local-authority/00FC),Children & Family Services,Ass Dir - Education,School Improvement,Other Agencies,Other,PJ121,7/11/2019,576826,1575,REVENUE,HUMBERSTON CLOVERFIELDS ACADEMY NURSERY,132178
North East Lincolnshire Council,http://statistics.data.gov.uk/id/local-authority/00FC),Children & Family Services,Ass Dir - Education,School Improvement,Other Agencies,Other,PJ121,7/11/2019,576766,2362.5,REVENUE,HUMBERSTON PRE SCHOOL,114491
North East Lincolnshire Council,http://statistics.data.gov.uk/id/local-authority/00FC),Children & Family Services,Ass Dir - Education,School Improvement,Other Agencies,Other,PJ121,7/11/2019,576794,6300,REVENUE,IMMINGHAM DAY CARE,122312
North East Lincolnshire Council,http://statistics.data.gov.uk/id/local-authority/00FC),Children & Family Services,Ass Dir - Education,School Improvement,Other Agencies,Other,PJ121,7/11/2019,576842,787.5,REVENUE,JULIE MOORE CHILDMINDING,134452
North East Lincolnshire Council,http://statistics.data.gov.uk/id/local-authority/00FC),Children & Family Services,Ass Dir - Education,School Improvement,Other Agencies,Other,PJ121,7/11/2019,576690,14962.5,REVENUE,JUDY CLARK CHILD CARE,100939
North East Lincolnshire Council,http://statistics.data.gov.uk/id/local-authority/00FC),Children & Family Services,Ass Dir - Education,School Improvement,Other Agencies,Other,PJ121,7/11/2019,576729,630,REVENUE,MS KAREN HUDSON,102103
North East Lincolnshire Council,http://statistics.data.gov.uk/id/local-authority/00FC),Children & Family Services,Ass Dir - Education,School Improvement,Other Agencies,Other,PJ121,7/11/2019,576810,7087.5,REVENUE,LEAP AHEAD NURSERY,128017
North East Lincolnshire Council,http://statistics.data.gov.uk/id/local-authority/00FC),Children & Family Services,Ass Dir - Education,School Improvement,Other Agencies,Other,PJ121,7/11/2019,576809,3937.5,REVENUE,LEAP AHEAD NURSERY,128017
North East Lincolnshire Council,http://statistics.data.gov.uk/id/local-authority/00FC),Children & Family Services,Ass Dir - Education,School Improvement,Other Agencies,Other,PJ121,7/11/2019,576807,4725,REVENUE,LEAP AHEAD NURSERY,128017
North East Lincolnshire Council,http://statistics.data.gov.uk/id/local-authority/00FC),Children & Family Services,Ass Dir - Education,School Improvement,Other Agencies,Other,PJ121,7/11/2019,576746,7875,REVENUE,LITTLE BLOSSOMS DAY NURSERY,111058
North East Lincolnshire Council,http://statistics.data.gov.uk/id/local-authority/00FC),Children & Family Services,Ass Dir - Education,School Improvement,Other Agencies,Other,PJ121,7/11/2019,576765,18900,REVENUE,GRIMSBY INSTITUTE - LITTLE STARS DAY NURSERY,114230
North East Lincolnshire Council,http://statistics.data.gov.uk/id/local-authority/00FC),Children & Family Services,Ass Dir - Education,School Improvement,Other Agencies,Other,PJ121,7/11/2019,576792,1575,REVENUE,LITTLE TWINKLES CHILDCARE LTD,122217
North East Lincolnshire Council,http://statistics.data.gov.uk/id/local-authority/00FC),Children & Family Services,Ass Dir - Education,School Improvement,Other Agencies,Other,PJ121,7/11/2019,576743,11025,REVENUE,LISLE MARSDEN CHILDCARE LIMITED,110493
North East Lincolnshire Council,http://statistics.data.gov.uk/id/local-authority/00FC),Children & Family Services,Ass Dir - Education,School Improvement,Other Agencies,Other,PJ121,7/11/2019,576841,6300,REVENUE,LITTLECOATES PRIMARY ACADEMY,134261
North East Lincolnshire Council,http://statistics.data.gov.uk/id/local-authority/00FC),Children & Family Services,Ass Dir - Education,School Improvement,Other Agencies,Other,PJ121,7/11/2019,576838,787.5,REVENUE,LINDA PENDRED,133792
North East Lincolnshire Council,http://statistics.data.gov.uk/id/local-authority/00FC),Children & Family Services,Ass Dir - Education,School Improvement,Other Agencies,Other,PJ121,7/11/2019,576867,3150,REVENUE,MS NATASHA DYKE,141560
North East Lincolnshire Council,http://statistics.data.gov.uk/id/local-authority/00FC),Children & Family Services,Ass Dir - Education,School Improvement,Other Agencies,Other,PJ121,7/11/2019,576781,1575,REVENUE,NICKY'S CHILDMINDING,119901
North East Lincolnshire Council,http://statistics.data.gov.uk/id/local-authority/00FC),Children & Family Services,Ass Dir - Education,School Improvement,Other Agencies,Other,PJ121,7/11/2019,576831,787.5,REVENUE,NATALIE MUNDAY,132728
North East Lincolnshire Council,http://statistics.data.gov.uk/id/local-authority/00FC),Children & Family Services,Ass Dir - Education,School Improvement,Other Agencies,Other,PJ121,7/11/2019,576755,30712.5,REVENUE,ORMISTON SOUTH PARADE ACADEMY,111750
North East Lincolnshire Council,http://statistics.data.gov.uk/id/local-authority/00FC),Children & Family Services,Ass Dir - Education,School Improvement,Other Agencies,Other,PJ121,7/11/2019,576712,11340,REVENUE,PRECIOUS TIMES CHILDCARE SERVICES,101420
North East Lincolnshire Council,http://statistics.data.gov.uk/id/local-authority/00FC),Children & Family Services,Ass Dir - Education,School Improvement,Other Agencies,Other,PJ121,7/11/2019,576685,23625,REVENUE,FOR UNDER FIVES LTD,100647
North East Lincolnshire Council,http://statistics.data.gov.uk/id/local-authority/00FC),Children & Family Services,Ass Dir - Education,School Improvement,Other Agencies,Other,PJ121,7/11/2019,576694,2205,REVENUE,READY TEDDY GO,100973
North East Lincolnshire Council,http://statistics.data.gov.uk/id/local-authority/00FC),Children & Family Services,Ass Dir - Education,School Improvement,Other Agencies,Other,PJ121,7/11/2019,576805,787.5,REVENUE,SARAH FARROW-BROWNE,127842
North East Lincolnshire Council,http://statistics.data.gov.uk/id/local-authority/00FC),Children & Family Services,Ass Dir - Education,School Improvement,Other Agencies,Other,PJ121,7/11/2019,576759,787.5,REVENUE,SARA HARRISON,112491
North East Lincolnshire Council,http://statistics.data.gov.uk/id/local-authority/00FC),Children & Family Services,Ass Dir - Education,School Improvement,Other Agencies,Other,PJ121,7/11/2019,576817,3937.5,REVENUE,SARAH'S CHILDMINDING,128578
North East Lincolnshire Council,http://statistics.data.gov.uk/id/local-authority/00FC),Children & Family Services,Ass Dir - Education,School Improvement,Other Agencies,Other,PJ121,7/11/2019,576744,787.5,REVENUE,SHARON SPRINGALL,111029
North East Lincolnshire Council,http://statistics.data.gov.uk/id/local-authority/00FC),Children & Family Services,Ass Dir - Education,School Improvement,Other Agencies,Other,PJ121,7/11/2019,576719,1102.5,REVENUE,CLEETHORPES CHILDCARE,101591
North East Lincolnshire Council,http://statistics.data.gov.uk/id/local-authority/00FC),Children & Family Services,Ass Dir - Education,School Improvement,Other Agencies,Other,PJ121,7/11/2019,576688,7717.5,REVENUE,FOR UNDER FIVES LTD,100647
North East Lincolnshire Council,http://statistics.data.gov.uk/id/local-authority/00FC),Children & Family Services,Ass Dir - Education,School Improvement,Other Agencies,Other,PJ121,7/11/2019,576726,787.5,REVENUE,SARAH SHOTBOLT,101742
North East Lincolnshire Council,http://statistics.data.gov.uk/id/local-authority/00FC),Children & Family Services,Ass Dir - Education,School Improvement,Other Agencies,Other,PJ121,7/11/2019,576787,4095,REVENUE,ST CHRISTOPHERS PRE SCHOOL,121589
North East Lincolnshire Council,http://statistics.data.gov.uk/id/local-authority/00FC),Children & Family Services,Ass Dir - Education,School Improvement,Other Agencies,Other,PJ121,7/11/2019,576784,787.5,REVENUE,STEPHANIE DURRANT,120541
North East Lincolnshire Council,http://statistics.data.gov.uk/id/local-authority/00FC),Children & Family Services,Ass Dir - Education,School Improvement,Other Agencies,Other,PJ121,7/11/2019,576692,3150,REVENUE,ST JAMES SCHOOL,100940
North East Lincolnshire Council,http://statistics.data.gov.uk/id/local-authority/00FC),Children & Family Services,Ass Dir - Education,School Improvement,Other Agencies,Other,PJ121,7/11/2019,576724,787.5,REVENUE,ST MARGARETS PRE-SCHOOL,101724
North East Lincolnshire Council,http://statistics.data.gov.uk/id/local-authority/00FC),Children & Family Services,Ass Dir - Education,School Improvement,Other Agencies,Other,PJ121,7/11/2019,576703,11812.5,REVENUE,ST PETERS CHILDREN CENTRE,101322
North East Lincolnshire Council,http://statistics.data.gov.uk/id/local-authority/00FC),Children & Family Services,Ass Dir - Education,School Improvement,Other Agencies,Other,PJ121,7/11/2019,576733,3150,REVENUE,THE AVENUE PLAYGROUP,103168
North East Lincolnshire Council,http://statistics.data.gov.uk/id/local-authority/00FC),Children & Family Services,Ass Dir - Education,School Improvement,Other Agencies,Other,PJ121,7/11/2019,576704,787.5,REVENUE,MS TRACEY RICHARDS,101325
North East Lincolnshire Council,http://statistics.data.gov.uk/id/local-authority/00FC),Children & Family Services,Ass Dir - Education,School Improvement,Other Agencies,Other,PJ121,7/11/2019,576736,4725,REVENUE,WALTHAM LEAS PRE-SCHOOL,108236
North East Lincolnshire Council,http://statistics.data.gov.uk/id/local-authority/00FC),Children & Family Services,Ass Dir - Education,School Improvement,Other Agencies,Other,PJ121,7/11/2019,576854,2362.5,REVENUE,MRS VERITY TAYLOR-GREEN,138243
North East Lincolnshire Council,http://statistics.data.gov.uk/id/local-authority/00FC),Children & Family Services,Ass Dir - Education,School Improvement,Other Agencies,Other,PJ121,7/11/2019,576706,1575,REVENUE,WENDOVER PRE-SCHOOL,101350
North East Lincolnshire Council,http://statistics.data.gov.uk/id/local-authority/00FC),Children & Family Services,Ass Dir - Education,School Improvement,Other Agencies,Other,PJ121,7/11/2019,576731,18112.5,REVENUE,WIZ KIDZ,102424
North East Lincolnshire Council,http://statistics.data.gov.uk/id/local-authority/00FC),Children & Family Services,Ass Dir - Education,School Improvement,Other Agencies,Other,PJ121,7/4/2019,575585,375,REVENUE,FOR UNDER FIVES LTD,100647
North East Lincolnshire Council,http://statistics.data.gov.uk/id/local-authority/00FC),Children & Family Services,Ass Dir - Education,School Improvement,Other Agencies,Other,PJ121,7/4/2019,575610,910,REVENUE,BUTTERFLIES DAY NURSERY,101694
North East Lincolnshire Council,http://statistics.data.gov.uk/id/local-authority/00FC),Children & Family Services,Ass Dir - Education,School Improvement,Other Agencies,Other,PJ121,7/4/2019,575648,375,REVENUE,CAMPDEN KIDS LTD,132975
North East Lincolnshire Council,http://statistics.data.gov.uk/id/local-authority/00FC),Children & Family Services,Ass Dir - Education,School Improvement,Other Agencies,Other,PJ121,7/4/2019,575604,900,REVENUE,FIRST STEPS GRIMSBY LIMITED,101411
North East Lincolnshire Council,http://statistics.data.gov.uk/id/local-authority/00FC),Children & Family Services,Ass Dir - Education,School Improvement,Other Agencies,Other,PJ121,7/4/2019,575630,1500,REVENUE,HUMBERSTON PRE SCHOOL,114491
North East Lincolnshire Council,http://statistics.data.gov.uk/id/local-authority/00FC),Children & Family Services,Ass Dir - Education,School Improvement,Other Agencies,Other,PJ121,7/4/2019,575639,900,REVENUE,LEAP AHEAD NURSERY,128017
North East Lincolnshire Council,http://statistics.data.gov.uk/id/local-authority/00FC),Children & Family Services,Ass Dir - Education,School Improvement,Other Agencies,Other,PJ121,7/4/2019,575588,300,REVENUE,FOR UNDER FIVES LTD,100647
North East Lincolnshire Council,http://statistics.data.gov.uk/id/local-authority/00FC),Children & Family Services,Ass Dir - Education,School Improvement,Other Agencies,Other,PJ121,7/4/2019,575593,350,REVENUE,ST JAMES SCHOOL,100940
North East Lincolnshire Council,http://statistics.data.gov.uk/id/local-authority/00FC),Children & Family Services,Ass Dir - Education,School Improvement,Other Agencies,Other,PJ121,7/4/2019,575612,875,REVENUE,WIZ KIDZ,102424
North East Lincolnshire Council,http://statistics.data.gov.uk/id/local-authority/00FC),Children & Family Services,Ass Dir - Education,School Improvement,Direct Employee Expenses,Agency Staff,EA105,7/17/2019,577505,1500,REVENUE,MARK PERRY,138952
North East Lincolnshire Council,http://statistics.data.gov.uk/id/local-authority/00FC),Children & Family Services,Ass Dir - Education,School Improvement,Direct Employee Expenses,Agency Staff,EA105,7/26/2019,578443,600,REVENUE,BURSAR PRIMARY ACADEMY,114977
North East Lincolnshire Council,http://statistics.data.gov.uk/id/local-authority/00FC),Children & Family Services,Ass Dir - Education,School Improvement,Direct Employee Expenses,Agency Staff,EA105,7/26/2019,578444,750,REVENUE,HEALING PRIMARY ACADEMY,127192
North East Lincolnshire Council,http://statistics.data.gov.uk/id/local-authority/00FC),Children & Family Services,Ass Dir - Education,School Improvement,Direct Employee Expenses,Agency Staff,EA105,7/26/2019,578442,550,REVENUE,SCARTHO JUNIOR ACADEMY,108738
North East Lincolnshire Council,http://statistics.data.gov.uk/id/local-authority/00FC),Children & Family Services,Ass Dir - Education,School Improvement,Direct Employee Expenses,Agency Staff,EA105,7/26/2019,578437,350,REVENUE,WEELSBY ACADEMY,111161
North East Lincolnshire Council,http://statistics.data.gov.uk/id/local-authority/00FC),Children & Family Services,Ass Dir - Education,School Improvement,Direct Employee Expenses,Agency Staff,EA105,7/26/2019,578440,350,REVENUE,SAINT THERESE OF LISIEUX,143048
North East Lincolnshire Council,http://statistics.data.gov.uk/id/local-authority/00FC),Children & Family Services,Ass Dir - Education,School Improvement,Direct Employee Expenses,Agency Staff,EA105,7/26/2019,578435,2000,REVENUE,MACAULAY PRIMARY ACADEMY,112680
North East Lincolnshire Council,http://statistics.data.gov.uk/id/local-authority/00FC),Children & Family Services,Ass Dir - Education,School Improvement,Direct Employee Expenses,Agency Staff,EA105,7/26/2019,578441,1200,REVENUE,HUMBERSTON C OF E PRIMARY SCHOOL,101566
North East Lincolnshire Council,http://statistics.data.gov.uk/id/local-authority/00FC),Children & Family Services,Ass Dir - Education,School Improvement,Direct Employee Expenses,Agency Staff,EA105,7/24/2019,578993,1000,REVENUE,MARK PERRY,138952
North East Lincolnshire Council,http://statistics.data.gov.uk/id/local-authority/00FC),Children & Family Services,Ass Dir - Education,School Improvement,Direct Employee Expenses,Agency Staff,EA105,7/24/2019,578994,2100,REVENUE,HUMBERSTON C OF E PRIMARY SCHOOL,101566
North East Lincolnshire Council,http://statistics.data.gov.uk/id/local-authority/00FC),Children & Family Services,Ass Dir - Education,School Improvement,Contributions To Provisions,Contributions - Other,LK103,7/4/2019,575578,591.12,REVENUE,LITTLECOATES PRIMARY ACADEMY,134261
North East Lincolnshire Council,http://statistics.data.gov.uk/id/local-authority/00FC),Children & Family Services,Ass Dir - Education,School Improvement,Contributions To Provisions,Contributions - Other,LK103,7/4/2019,575580,591.12,REVENUE,WELHOLME PRE SCHOOL,101258
North East Lincolnshire Council,http://statistics.data.gov.uk/id/local-authority/00FC),Children & Family Services,Ass Dir - Education,School Improvement,Contributions To Provisions,Contributions - Other,LK103,7/4/2019,575579,459.76,REVENUE,LISLE MARSDEN CHILDCARE LIMITED,110493
North East Lincolnshire Council,http://statistics.data.gov.uk/id/local-authority/00FC),Children & Family Services,Ass Dir - Education,School Improvement,Contributions To Provisions,Contributions - Other,LK103,7/4/2019,575658,985.2,REVENUE,CLEETHORPES CHILDCARE (HIGHGATE PRE-SCHOOL),138844
North East Lincolnshire Council,http://statistics.data.gov.uk/id/local-authority/00FC),Children & Family Services,Ass Dir - Education,School Improvement,Contributions To Provisions,Contributions - Other,LK103,7/4/2019,575577,862.05,REVENUE,HUMBERSTON PRE SCHOOL,114491
North East Lincolnshire Council,http://statistics.data.gov.uk/id/local-authority/00FC),Children & Family Services,Ass Dir - Children & Families,Head Of Child Resource & Reg,Private Contractors,Third Party Prov - Private,PH101,7/26/2019,579330,15178.62,REVENUE,REDACTED PERSONAL INFORMATION,REDACTED PERSONAL INFORMATION
North East Lincolnshire Council,http://statistics.data.gov.uk/id/local-authority/00FC),Children & Family Services,Ass Dir - Children & Families,Head Of Child Resource & Reg,Private Contractors,Third Party Prov - Private,PH101,7/4/2019,575497,375,REVENUE,PENNY SHEARDOWN,137278
North East Lincolnshire Council,http://statistics.data.gov.uk/id/local-authority/00FC),Children & Family Services,Ass Dir - Children & Families,Head Of Child Resource & Reg,Private Contractors,Third Party Prov - Private,PH101,7/4/2019,575505,957.2,REVENUE,CORAM VOICE,124206
North East Lincolnshire Council,http://statistics.data.gov.uk/id/local-authority/00FC),Children & Family Services,Ass Dir - Children & Families,Head Of Child Resource & Reg,Private Contractors,Third Party Prov - Private,PH101,7/15/2019,577268,15500,REVENUE,REDACTED PERSONAL INFORMATION,REDACTED PERSONAL INFORMATION
North East Lincolnshire Council,http://statistics.data.gov.uk/id/local-authority/00FC),Children & Family Services,Ass Dir - Children & Families,Head Of Child Resource & Reg,Private Contractors,Third Party Prov - Private,PH101,7/23/2019,577912,2240,REVENUE,PETERBOROUGH CITY COUNCIL,101213
North East Lincolnshire Council,http://statistics.data.gov.uk/id/local-authority/00FC),Children & Family Services,Ass Dir - Children & Families,Head Of Child Resource & Reg,Private Contractors,Third Party Prov - Private,PH101,7/23/2019,578065,28950,REVENUE,PETERBOROUGH CITY COUNCIL,101213
North East Lincolnshire Council,http://statistics.data.gov.uk/id/local-authority/00FC),Children & Family Services,Ass Dir - Children & Families,Head Of Child Resource & Reg,Private Contractors,Third Party Prov - Private,PH101,7/23/2019,578064,29915,REVENUE,PETERBOROUGH CITY COUNCIL,101213
North East Lincolnshire Council,http://statistics.data.gov.uk/id/local-authority/00FC),Children & Family Services,Ass Dir - Children & Families,Head Of Child Resource & Reg,Private Contractors,Third Party Prov - Private,PH101,7/26/2019,579007,26040,REVENUE,LEEDS CITY COUNCIL,100545
North East Lincolnshire Council,http://statistics.data.gov.uk/id/local-authority/00FC),Children & Family Services,Ass Dir - Children & Families,Head Of Child Resource & Reg,Private Contractors,Third Party Prov - Private,PH101,7/31/2019,579506,652.5,REVENUE,QUAYSIDE CHILDCARE LTD.,127974
North East Lincolnshire Council,http://statistics.data.gov.uk/id/local-authority/00FC),Children & Family Services,Ass Dir - Children & Families,Head Of Child Resource & Reg,Private Contractors,Third Party Prov - Private,PH101,7/31/2019,579510,900,REVENUE,QUAYSIDE CHILDCARE LTD.,127974
North East Lincolnshire Council,http://statistics.data.gov.uk/id/local-authority/00FC),Children & Family Services,Ass Dir - Children & Families,Head Of Child Resource & Reg,Private Contractors,Third Party Prov - Private,PH101,7/31/2019,579509,937.5,REVENUE,QUAYSIDE CHILDCARE LTD.,127974
North East Lincolnshire Council,http://statistics.data.gov.uk/id/local-authority/00FC),Children & Family Services,Ass Dir - Children & Families,Head Of Child Resource & Reg,Private Contractors,Third Party Prov - Private,PH101,7/31/2019,579507,918.75,REVENUE,QUAYSIDE CHILDCARE LTD.,127974
North East Lincolnshire Council,http://statistics.data.gov.uk/id/local-authority/00FC),Children & Family Services,Ass Dir - Children & Families,Head Of Child Resource & Reg,Catering,Provisions,LB101,7/16/2019,577437,345.52,REVENUE,VULNERABLE YOUNG PEOPLE PROJECT HENEAGE,110637
North East Lincolnshire Council,http://statistics.data.gov.uk/id/local-authority/00FC),Children & Family Services,Ass Dir - Children & Families,Head Of Child Resource & Reg,Miscellaneous Expenses,Activities - Service Users,LL114,7/16/2019,577437,345.58,REVENUE,VULNERABLE YOUNG PEOPLE PROJECT HENEAGE,110637
North East Lincolnshire Council,http://statistics.data.gov.uk/id/local-authority/00FC),Children & Family Services,Ass Dir - Children & Families,Head Of Child Resource & Reg,Miscellaneous Expenses,Activities - Service Users,LL114,7/2/2019,573027,500,REVENUE,PARKWAY ENTERTAINMENT CO LTD,101537
North East Lincolnshire Council,http://statistics.data.gov.uk/id/local-authority/00FC),Children & Family Services,Ass Dir - Children & Families,Head Of Child Resource & Reg,Private Contractors,Third Party Prov - Private,PH101,7/5/2019,575570,2578,REVENUE,OFSTED,101836
North East Lincolnshire Council,http://statistics.data.gov.uk/id/local-authority/00FC),Children & Family Services,Ass Dir - Children & Families,Head Of Child Resource & Reg,Private Contractors,Third Party Prov - Private,PH101,7/31/2019,579504,525,REVENUE,FORTIS THERAPY & TRAINING,120445
North East Lincolnshire Council,http://statistics.data.gov.uk/id/local-authority/00FC),Children & Family Services,Ass Dir - Children & Families,Head Of Child Resource & Reg,Other Agencies,Additional Cost,PJ114,7/29/2019,709426,1500,REVENUE,REDACTED PERSONAL INFORMATION,REDACTED PERSONAL INFORMATION
North East Lincolnshire Council,http://statistics.data.gov.uk/id/local-authority/00FC),Children & Family Services,Ass Dir - Children & Families,Head Of Child Resource & Reg,Other Agencies,Additional Cost,PJ114,7/11/2019,576883,740,REVENUE,READY RENT A CAR,100557
North East Lincolnshire Council,http://statistics.data.gov.uk/id/local-authority/00FC),Children & Family Services,Ass Dir - Children & Families,Head Of Child Resource & Reg,Other Agencies,Child Care Payments,PJ104,7/29/2019,709207,-271.14,REVENUE,REDACTED PERSONAL INFORMATION,REDACTED PERSONAL INFORMATION
North East Lincolnshire Council,http://statistics.data.gov.uk/id/local-authority/00FC),Children & Family Services,Ass Dir - Children & Families,Head Of Child Resource & Reg,Other Agencies,Child Care Payments,PJ104,7/2/2019,700288,364,REVENUE,REDACTED PERSONAL INFORMATION,REDACTED PERSONAL INFORMATION
North East Lincolnshire Council,http://statistics.data.gov.uk/id/local-authority/00FC),Children & Family Services,Ass Dir - Children & Families,Head Of Child Resource & Reg,Other Agencies,Child Care Payments,PJ104,7/2/2019,700366,546,REVENUE,REDACTED PERSONAL INFORMATION,REDACTED PERSONAL INFORMATION
North East Lincolnshire Council,http://statistics.data.gov.uk/id/local-authority/00FC),Children & Family Services,Ass Dir - Children & Families,Head Of Child Resource & Reg,Other Agencies,Child Care Payments,PJ104,7/2/2019,700477,364,REVENUE,REDACTED PERSONAL INFORMATION,REDACTED PERSONAL INFORMATION
North East Lincolnshire Council,http://statistics.data.gov.uk/id/local-authority/00FC),Children & Family Services,Ass Dir - Children & Families,Head Of Child Resource & Reg,Other Agencies,Child Care Payments,PJ104,7/2/2019,700131,364,REVENUE,REDACTED PERSONAL INFORMATION,REDACTED PERSONAL INFORMATION
North East Lincolnshire Council,http://statistics.data.gov.uk/id/local-authority/00FC),Children & Family Services,Ass Dir - Children & Families,Head Of Child Resource & Reg,Other Agencies,Child Care Payments,PJ104,7/2/2019,700162,364,REVENUE,REDACTED PERSONAL INFORMATION,REDACTED PERSONAL INFORMATION
North East Lincolnshire Council,http://statistics.data.gov.uk/id/local-authority/00FC),Children & Family Services,Ass Dir - Children & Families,Head Of Child Resource & Reg,Other Agencies,Child Care Payments,PJ104,7/9/2019,702859,364,REVENUE,REDACTED PERSONAL INFORMATION,REDACTED PERSONAL INFORMATION
North East Lincolnshire Council,http://statistics.data.gov.uk/id/local-authority/00FC),Children & Family Services,Ass Dir - Children & Families,Head Of Child Resource & Reg,Other Agencies,Child Care Payments,PJ104,7/9/2019,702891,364,REVENUE,REDACTED PERSONAL INFORMATION,REDACTED PERSONAL INFORMATION
North East Lincolnshire Council,http://statistics.data.gov.uk/id/local-authority/00FC),Children & Family Services,Ass Dir - Children & Families,Head Of Child Resource & Reg,Other Agencies,Child Care Payments,PJ104,7/9/2019,703017,364,REVENUE,REDACTED PERSONAL INFORMATION,REDACTED PERSONAL INFORMATION
North East Lincolnshire Council,http://statistics.data.gov.uk/id/local-authority/00FC),Children & Family Services,Ass Dir - Children & Families,Head Of Child Resource & Reg,Other Agencies,Child Care Payments,PJ104,7/9/2019,703095,494,REVENUE,REDACTED PERSONAL INFORMATION,REDACTED PERSONAL INFORMATION
North East Lincolnshire Council,http://statistics.data.gov.uk/id/local-authority/00FC),Children & Family Services,Ass Dir - Children & Families,Head Of Child Resource & Reg,Other Agencies,Child Care Payments,PJ104,7/9/2019,703212,364,REVENUE,REDACTED PERSONAL INFORMATION,REDACTED PERSONAL INFORMATION
North East Lincolnshire Council,http://statistics.data.gov.uk/id/local-authority/00FC),Children & Family Services,Ass Dir - Children & Families,Head Of Child Resource & Reg,Other Agencies,Child Care Payments,PJ104,7/16/2019,705276,364,REVENUE,REDACTED PERSONAL INFORMATION,REDACTED PERSONAL INFORMATION
North East Lincolnshire Council,http://statistics.data.gov.uk/id/local-authority/00FC),Children & Family Services,Ass Dir - Children & Families,Head Of Child Resource & Reg,Other Agencies,Child Care Payments,PJ104,7/16/2019,705045,364,REVENUE,REDACTED PERSONAL INFORMATION,REDACTED PERSONAL INFORMATION
North East Lincolnshire Council,http://statistics.data.gov.uk/id/local-authority/00FC),Children & Family Services,Ass Dir - Children & Families,Head Of Child Resource & Reg,Other Agencies,Child Care Payments,PJ104,7/16/2019,705390,364,REVENUE,REDACTED PERSONAL INFORMATION,REDACTED PERSONAL INFORMATION
North East Lincolnshire Council,http://statistics.data.gov.uk/id/local-authority/00FC),Children & Family Services,Ass Dir - Children & Families,Head Of Child Resource & Reg,Other Agencies,Child Care Payments,PJ104,7/16/2019,705076,364,REVENUE,REDACTED PERSONAL INFORMATION,REDACTED PERSONAL INFORMATION
North East Lincolnshire Council,http://statistics.data.gov.uk/id/local-authority/00FC),Children & Family Services,Ass Dir - Children & Families,Head Of Child Resource & Reg,Other Agencies,Child Care Payments,PJ104,7/16/2019,705199,364,REVENUE,REDACTED PERSONAL INFORMATION,REDACTED PERSONAL INFORMATION
North East Lincolnshire Council,http://statistics.data.gov.uk/id/local-authority/00FC),Children & Family Services,Ass Dir - Children & Families,Head Of Child Resource & Reg,Other Agencies,Child Care Payments,PJ104,7/22/2019,706689,364,REVENUE,REDACTED PERSONAL INFORMATION,REDACTED PERSONAL INFORMATION
North East Lincolnshire Council,http://statistics.data.gov.uk/id/local-authority/00FC),Children & Family Services,Ass Dir - Children & Families,Head Of Child Resource & Reg,Other Agencies,Child Care Payments,PJ104,7/22/2019,706801,364,REVENUE,REDACTED PERSONAL INFORMATION,REDACTED PERSONAL INFORMATION
North East Lincolnshire Council,http://statistics.data.gov.uk/id/local-authority/00FC),Children & Family Services,Ass Dir - Children & Families,Head Of Child Resource & Reg,Other Agencies,Child Care Payments,PJ104,7/22/2019,706461,364,REVENUE,REDACTED PERSONAL INFORMATION,REDACTED PERSONAL INFORMATION
North East Lincolnshire Council,http://statistics.data.gov.uk/id/local-authority/00FC),Children & Family Services,Ass Dir - Children & Families,Head Of Child Resource & Reg,Other Agencies,Child Care Payments,PJ104,7/22/2019,706493,364,REVENUE,REDACTED PERSONAL INFORMATION,REDACTED PERSONAL INFORMATION
North East Lincolnshire Council,http://statistics.data.gov.uk/id/local-authority/00FC),Children & Family Services,Ass Dir - Children & Families,Head Of Child Resource & Reg,Other Agencies,Child Care Payments,PJ104,7/22/2019,706592,338,REVENUE,REDACTED PERSONAL INFORMATION,REDACTED PERSONAL INFORMATION
North East Lincolnshire Council,http://statistics.data.gov.uk/id/local-authority/00FC),Children & Family Services,Ass Dir - Children & Families,Head Of Child Resource & Reg,Other Agencies,Child Care Payments,PJ104,7/22/2019,706611,364,REVENUE,REDACTED PERSONAL INFORMATION,REDACTED PERSONAL INFORMATION
North East Lincolnshire Council,http://statistics.data.gov.uk/id/local-authority/00FC),Children & Family Services,Ass Dir - Children & Families,Head Of Child Resource & Reg,Other Agencies,Child Care Payments,PJ104,7/29/2019,709056,364,REVENUE,REDACTED PERSONAL INFORMATION,REDACTED PERSONAL INFORMATION
North East Lincolnshire Council,http://statistics.data.gov.uk/id/local-authority/00FC),Children & Family Services,Ass Dir - Children & Families,Head Of Child Resource & Reg,Other Agencies,Child Care Payments,PJ104,7/29/2019,709088,364,REVENUE,REDACTED PERSONAL INFORMATION,REDACTED PERSONAL INFORMATION
North East Lincolnshire Council,http://statistics.data.gov.uk/id/local-authority/00FC),Children & Family Services,Ass Dir - Children & Families,Head Of Child Resource & Reg,Other Agencies,Child Care Payments,PJ104,7/29/2019,709096,780,REVENUE,REDACTED PERSONAL INFORMATION,REDACTED PERSONAL INFORMATION
North East Lincolnshire Council,http://statistics.data.gov.uk/id/local-authority/00FC),Children & Family Services,Ass Dir - Children & Families,Head Of Child Resource & Reg,Other Agencies,Child Care Payments,PJ104,7/29/2019,709207,364,REVENUE,REDACTED PERSONAL INFORMATION,REDACTED PERSONAL INFORMATION
North East Lincolnshire Council,http://statistics.data.gov.uk/id/local-authority/00FC),Children & Family Services,Ass Dir - Children & Families,Head Of Child Resource & Reg,Other Agencies,Child Care Payments,PJ104,7/29/2019,709287,364,REVENUE,REDACTED PERSONAL INFORMATION,REDACTED PERSONAL INFORMATION
North East Lincolnshire Council,http://statistics.data.gov.uk/id/local-authority/00FC),Children & Family Services,Ass Dir - Children & Families,Head Of Child Resource & Reg,Other Agencies,Child Care Payments,PJ104,7/29/2019,709400,364,REVENUE,REDACTED PERSONAL INFORMATION,REDACTED PERSONAL INFORMATION
North East Lincolnshire Council,http://statistics.data.gov.uk/id/local-authority/00FC),Children & Family Services,Ass Dir - Children & Families,Head Of Child Resource & Reg,Other Agencies,Child Care Payments,PJ104,7/2/2019,700233,315,REVENUE,REDACTED PERSONAL INFORMATION,REDACTED PERSONAL INFORMATION
North East Lincolnshire Council,http://statistics.data.gov.uk/id/local-authority/00FC),Children & Family Services,Ass Dir - Children & Families,Head Of Child Resource & Reg,Other Agencies,Child Care Payments,PJ104,7/9/2019,702962,315,REVENUE,REDACTED PERSONAL INFORMATION,REDACTED PERSONAL INFORMATION
North East Lincolnshire Council,http://statistics.data.gov.uk/id/local-authority/00FC),Children & Family Services,Ass Dir - Children & Families,Head Of Child Resource & Reg,Other Agencies,Child Care Payments,PJ104,7/16/2019,705145,315,REVENUE,REDACTED PERSONAL INFORMATION,REDACTED PERSONAL INFORMATION
